Workbook

Sheet 2012
B1: INDICADORES MENSUALES 2012 | D1: ENE | E1: FEB | F1: MAR | G1: ABR | H1: MAY | I1: JUN | J1: JUL | K1: AGO | L1: SEP | M1: OCT | N1: NOV | O1: DIC | P1: TOTAL | Q1: PROMEDIO
A2: 2. DIRECCIÓN JURÍDICA CONTENCIOSA
A3: 2.1 | B3: Área de Amparos y Agrario.
B4: Juicios de Amparo
B5: 2.1.1.1 | C5: Registro Anterior | D5: 677 | E5: =D11 -> 706 | F5: 746 | G5: 802 | H5: 816 | I5: 736 | J5: 750 | K5: 629 | L5: =K11 -> 663 | M5: =L11 -> 638 | N5: =M11 -> 633 | O5: =N11 -> 567 | P5: =SUM(D5:O5) -> 8363 | Q5: =P5/12 -> 696.9166667
B6: 2.1.1.2 | C6: Abiertos en el Mes | D6: 108 | E6: 53 | F6: 93 | G6: 41 | H6: 36 | I6: 36 | J6: 57 | K6: 74 | L6: 41 | M6: 66 | N6: 54 | O6: 41 | P6: 700 | Q6: 58.33333333
B7: 2.1.1.3 | C7: Iniciales en | D7: =D5+D6 -> 785 | E7: =SUM(E5:E6) -> 759 | F7: 839 | G7: 843 | H7: 852 | I7: 772 | J7: 807 | K7: 703 | L7: 704 | M7: 704 | N7: 687 | O7: 608 | P7: 9063 | Q7: 755.25
B8: 2.1.1.4 | C8: Resueltos y concluidos | D8: 79 | E8: 13 | F8: 37 | G8: 27 | H8: 116 | I8: 22 | J8: 178 | K8: 40 | L8: 66 | M8: 71 | N8: 120 | O8: 41 | P8: 810 | Q8: 67.5
C9: Sobreseimiento o Negativa de Amparo | D9: 10 | E9: 5 | F9: 17 | G9: 9 | H9: 108 | I9: 8 | J9: 78 | K9: 37 | L9: 36 | M9: 38 | N9: 79 | O9: 24 | P9: 449 | Q9: 37.41666667
C10: Concediendo el amparo | D10: 16 | E10: 8 | F10: 20 | G10: 18 | H10: 8 | I10: 14 | J10: 100 | K10: 3 | L10: 30 | M10: 33 | N10: 41 | O10: 17 | P10: 308 | Q10: 25.66666667
B11: 2.1.1.5 | C11: En trámite | D11: =D7-D8 -> 706 | E11: 746 | F11: 802 | G11: 816 | H11: 736 | I11: 750 | J11: 629 | K11: 663 | L11: 638 | M11: 633 | N11: 567 | O11: 567 | P11: 8253 | Q11: 687.75
B12: Juicios Agrarios
B13: 2.1.2.1 | C13: Registro Anterior | D13: 48 | E13: =D15 -> 49 | F13: 49 | G13: 49 | H13: 49 | I13: 49 | J13: 50 | K13: 54 | L13: 55 | M13: 55 | N13: 60 | O13: 60 | P13: =SUM(D13:O13) -> 627 | Q13: =P13/12 -> 52.25
B14: 2.1.2.2 | C14: Abiertos en el Mes | D14: 1 | E14: 0 | F14: 0 | G14: 0 | H14: 0 | I14: 1 | J14: 4 | K14: 1 | L14: 0 | M14: 5 | N14: 0 | O14: 1 | P14: 13 | Q14: 1.083333333
B15: 2.1.2.3 | C15: Iniciales en | D15: =D13+D14 -> 49 | E15: =SUM(E13:E14) -> 49 | F15: 49 | G15: 49 | H15: 49 | I15: 50 | J15: 54 | K15: 55 | L15: 55 | M15: 60 | N15: 60 | O15: 61 | P15: 640 | Q15: 53.33333333
B16: 2.1.2.4 | C16: Resueltos y concluidos | D16: 0 | E16: 0 | F16: 0 | G16: 0 | H16: 0 | I16: 0 | J16: 0 | K16: 0 | L16: 0 | M16: 0 | N16: 0 | O16: 0 | P16: 0 | Q16: 0
C17: Favorables | D17: 0 | E17: 0 | F17: 0 | G17: 0 | H17: 0 | I17: 0 | J17: 0 | K17: 0 | L17: 0 | M17: 0 | N17: 0 | O17: 0 | P17: 0 | Q17: 0
C18: Desfavorables | D18: 0 | E18: 0 | F18: 0 | G18: 0 | H18: 0 | I18: 0 | J18: 0 | K18: 0 | L18: 0 | M18: 0 | N18: 0 | O18: 0 | P18: 0 | Q18: 0
B19: 2.1.2.5 | C19: En trámite | D19: =D15-D16 -> 49 | E19: 49 | F19: 49 | G19: 49 | H19: 49 | I19: 50 | J19: 54 | K19: 55 | L19: 55 | M19: 60 | N19: 60 | O19: 61 | P19: 640 | Q19: 53.33333333
B20: 2.1.4 Audiencias y diligencias en Juicios. | D20: 25 | E20: 30 | F20: 25 | G20: 20 | H20: 30 | I20: 30 | J20: 35 | K20: 40 | L20: 35 | M20: 50 | N20: 45 | O20: 25 | P20: 390 | Q20: 32.5
B21: 2.1.5 Asesorías y Reuniones. | D21: 15 | E21: 30 | F21: 40 | G21: 35 | H21: 45 | I21: 50 | J21: 40 | K21: 38 | L21: 40 | M21: 48 | N21: 30 | O21: 15 | P21: 426 | Q21: 35.5
B22: 2.1.6 Oficios.
B23: 2.1.6.1 | C23: Recibidos en el Área | D23: 858 | E23: 587 | F23: 667 | G23: 610 | H23: 765 | I23: 604 | J23: 568 | K23: 547 | L23: 521 | M23: 878 | N23: 762 | O23: 391 | P23: =SUM(D23:O23) -> 7758 | Q23: =P23/12 -> 646.5
B24: 2.1.6.2 | C24: Generados por el Área | D24: 543 | E24: 657 | F24: 363 | G24: 289 | H24: 976 | I24: 617 | J24: 544 | K24: 408 | L24: 361 | M24: 616 | N24: 489 | O24: 293 | P24: =SUM(D24:O24) -> 6156 | Q24: =P24/12 -> 513
A33: 2.2 | B33: Área de Contencioso Administrativo.
B34: Juicios de Nulidad
B35: 2.2.1.1 | C35: Registro Anterior | D35: 835 | E35: =D41 -> 841 | F35: 886 | G35: 916 | H35: 928 | I35: 944 | J35: 956 | K35: 966 | L35: 976 | M35: 1004 | N35: 1031 | O35: 1049 | P35: =SUM(D35:O35) -> 11332 | Q35: =P35/12 -> 944.3333333
B36: 2.2.1.2 | C36: Abiertos en el Mes | D36: 22 | E36: 52 | F36: 35 | G36: 19 | H36: 19 | I36: 22 | J36: 15 | K36: 18 | L36: 31 | M36: 34 | N36: 29 | O36: 19 | P36: 315 | Q36: 26.25
B37: 2.2.1.3 | C37: Iniciales en | D37: =D35+D36 -> 857 | E37: =SUM(E35:E36) -> 893 | F37: 921 | G37: 935 | H37: 947 | I37: 966 | J37: 971 | K37: 984 | L37: 1007 | M37: 1038 | N37: 1060 | O37: 1068 | P37: 11647 | Q37: 970.5833333
B38: 2.2.1.4 | C38: Resueltos y concluidos | D38: 16 | E38: 7 | F38: 5 | G38: 7 | H38: 3 | I38: 10 | J38: 5 | K38: 8 | L38: 3 | M38: 7 | N38: 11 | O38: 4 | P38: 86 | Q38: 7.166666667
C39: Favorables | D39: 10 | E39: 4 | F39: 2 | G39: 0 | H39: 2 | I39: 3 | J39: 0 | K39: 3 | L39: 1 | M39: 4 | N39: 4 | O39: 3 | P39: 36 | Q39: 3
C40: Desfavorables | D40: 6 | E40: 3 | F40: 3 | G40: 7 | H40: 1 | I40: 7 | J40: 5 | K40: 5 | L40: 2 | M40: 3 | N40: 7 | O40: 1 | P40: 50 | Q40: 4.166666667
B41: 2.2.1.5 | C41: En trámite | D41: =D37-D38 -> 841 | E41: 886 | F41: 916 | G41: 928 | H41: 944 | I41: 956 | J41: 966 | K41: 976 | L41: 1004 | M41: 1031 | N41: 1049 | O41: 1064 | P41: 11561 | Q41: 963.4166667
B42: 2.1.5 Audiencias y diligencias en Juicios y Proc | D42: 13 | E42: 11 | F42: 11 | G42: 2 | H42: 2 | I42: 2 | J42: 4 | K42: 8 | L42: 4 | M42: 16 | N42: 14 | O42: 10 | P42: 97 | Q42: 8.083333333
B43: 2.1.6 Asesorías y Reuniones. | D43: 30 | E43: 75 | F43: 70 | G43: 70 | H43: 50 | I43: 0 | J43: 45 | K43: 53 | L43: 42 | M43: 60 | N43: 60 | O43: 30 | P43: 585 | Q43: 48.75
B44: 2.1.7 Oficios.
B45: 2.1.7.1 | C45: Recibidos en el Área | D45: 57 | E45: 48 | F45: 67 | G45: 34 | H45: 27 | I45: 55 | J45: 30 | K45: 30 | L45: 28 | M45: 87 | N45: 65 | O45: 36 | P45: =SUM(D45:O45) -> 564 | Q45: =P45/12 -> 47
B46: 2.1.7.2 | C46: Generados por el Área | D46: 156 | E46: 166 | F46: 159 | G46: 126 | H46: 106 | I46: 175 | J46: 78 | K46: 232 | L46: 141 | M46: 155 | N46: 125 | O46: 84 | P46: =SUM(D46:O46) -> 1703 | Q46: =P46/12 -> 141.9166667
B47: Juicios de Lesividad
B48: 2.2.2.1 | C48: Registro Anterior | D48: 39 | E48: =D55 -> 39 | F48: 39 | G48: 39 | H48: 39 | I48: 39 | J48: 38 | K48: 41 | L48: 42 | M48: 44 | N48: 44 | O48: 45 | P48: =SUM(D48:O48) -> 488 | Q48: =P48/12 -> 40.66666667
B49: 2.2.2.2 | C49: Abiertos en el Mes | D49: 0 | E49: 0 | F49: 0 | G49: 0 | H49: 0 | I49: 1 | J49: 3 | K49: 1 | L49: 2 | M49: 0 | N49: 1 | O49: 0 | P49: 8 | Q49: 0.6666666667
B50: 2.2.2.3 | C50: Sub-total | D50: =D48+D49 -> 39 | E50: =SUM(E48:E49) -> 39 | F50: 39 | G50: 39 | H50: 39 | I50: 40 | J50: 41 | K50: 42 | L50: 44 | M50: 44 | N50: 45 | O50: 45 | P50: 496 | Q50: 41.33333333
B51: 2.2.2.4 | C51: Resueltos y concluidos | D51: 0 | E51: 0 | F51: 0 | G51: 0 | H51: 0 | I51: 2 | J51: 0 | K51: 0 | L51: 0 | M51: 0 | N51: 0 | O51: 0 | P51: 2 | Q51: 0.1666666667
C52: Se declara la Nulidad del acto | D52: 0 | E52: 0 | F52: 0 | G52: 0 | H52: 0 | I52: 1 | J52: 0 | K52: 0 | L52: 0 | M52: 0 | N52: 0 | O52: 0 | P52: 1 | Q52: 0.08333333333
C53: Se confir.la validez del acto (Fav.al Part.) | D53: 0 | E53: 0 | F53: 0 | G53: 0 | H53: 0 | I53: 0 | J53: 0 | K53: 0 | L53: 0 | M53: 0 | N53: 0 | O53: 0 | P53: 0 | Q53: 0
C54: Incompetentes | D54: 0 | E54: 0 | F54: 0 | G54: 0 | H54: 0 | I54: 1 | J54: 0 | K54: 0 | L54: 0 | M54: 0 | N54: 0 | O54: 0 | P54: 1 | Q54: 0.08333333333
B55: 2.2.2.5 | C55: En trámite | D55: =D50-D51 -> 39 | E55: 39 | F55: 39 | G55: 39 | H55: 39 | I55: 38 | J55: 41 | K55: 42 | L55: 44 | M55: 44 | N55: 45 | O55: 45 | P55: 494 | Q55: 41.16666667
B56: Recursos
B57: 2.2.2.1 | C57: Registro Anterior | D57: 107 | E57: =D64 -> 114 | F57: 118 | G57: 118 | H57: 117 | I57: 121 | J57: 115 | K57: 119 | L57: 119 | M57: 122 | N57: 124 | O57: 123 | P57: =SUM(D57:O57) -> 1417 | Q57: =P57/12 -> 118.0833333
B58: 2.2.2.2 | C58: Abiertos en el Mes | D58: 14 | E58: 7 | F58: 0 | G58: 1 | H58: 5 | I58: 2 | J58: 7 | K58: 3 | L58: 7 | M58: 6 | N58: 3 | O58: 4 | P58: 59 | Q58: 4.916666667
B59: 2.2.2.3 | C59: Iniciales en | D59: =D57+D58 -> 121 | E59: =SUM(E57:E58) -> 121 | F59: 118 | G59: 119 | H59: 122 | I59: 123 | J59: 122 | K59: 122 | L59: 126 | M59: 128 | N59: 127 | O59: 127 | P59: 1476 | Q59: 123
B60: 2.2.2.4 | C60: Resueltos y concluidos | D60: 7 | E60: 3 | F60: 0 | G60: 2 | H60: 1 | I60: 8 | J60: 3 | K60: 3 | L60: 4 | M60: 4 | N60: 4 | O60: 4 | P60: 43 | Q60: 3.583333333
C61: Se confirma el acto reclamado | D61: 5 | E61: 2 | F61: 0 | G61: 1 | H61: 0 | I61: 3 | J61: 0 | K61: 0 | L61: 1 | M61: 3 | N61: 4 | O61: 2 | P61: 21 | Q61: 1.75
C62: Favorables al particular | D62: 2 | E62: 1 | F62: 0 | G62: 1 | H62: 1 | I62: 5 | J62: 3 | K62: 3 | L62: 3 | M62: 1 | N62: 0 | O62: 2 | P62: 22 | Q62: 1.833333333
C63: Incompetentes | D63: 0 | E63: 0 | F63: 0 | G63: 0 | H63: 0 | I63: 0 | J63: 0 | K63: 0 | L63: 0 | M63: 0 | N63: 0 | O63: 0 | P63: 0 | Q63: 0
B64: 2.2.2.5 | C64: En trámite | D64: =D59-D60 -> 114 | E64: 118 | F64: 118 | G64: 117 | H64: 121 | I64: 115 | J64: 119 | K64: 119 | L64: 122 | M64: 124 | N64: 123 | O64: 123 | P64: 1433 | Q64: 119.4166667
B68: Revocación de Licencia Municipal
B69: 2.2.3.1 | C69: Registro Anterior | D69: 96 | E69: =D75 -> 95 | F69: 95 | G69: 102 | H69: 100 | I69: 100 | J69: 100 | K69: 104 | L69: 105 | M69: 105 | N69: 107 | O69: 110 | P69: =SUM(D69:O69) -> 1219 | Q69: =P69/12 -> 101.5833333
B70: 2.2.3.2 | C70: Abiertos en el Mes | D70: 2 | E70: 0 | F70: 7 | G70: 1 | H70: 2 | I70: 0 | J70: 4 | K70: 3 | L70: 1 | M70: 2 | N70: 3 | O70: 0 | P70: 25 | Q70: 2.083333333
B71: 2.2.3.3 | C71: Iniciales en | D71: =D69+D70 -> 98 | E71: =SUM(E69:E70) -> 95 | F71: 102 | G71: 103 | H71: 102 | I71: 100 | J71: 104 | K71: 107 | L71: =SUM(L69:L70) -> 106 | M71: =SUM(M69:M70) -> 107 | N71: =SUM(N69:N70) -> 110 | O71: =SUM(O69:O70) -> 110 | P71: 1244 | Q71: 103.6666667
B72: 2.2.3.4 | C72: Resueltos y concluidos | D72: 3 | E72: 0 | F72: 0 | G72: 3 | H72: 2 | I72: 0 | J72: 0 | K72: 2 | L72: 1 | M72: 0 | N72: 0 | O72: 1 | P72: 12 | Q72: 1
C73: Procedentes | D73: 1 | E73: 0 | F73: 0 | G73: 1 | H73: 2 | I73: 0 | J73: 0 | K73: 2 | L73: 1 | M73: 0 | N73: 0 | O73: 1 | P73: 8 | Q73: 0.6666666667
C74: Favorables al particular | D74: 1 | E74: 0 | F74: 0 | G74: 2 | H74: 0 | I74: 0 | J74: 0 | K74: 0 | L74: 0 | M74: 0 | N74: 0 | O74: 0 | P74: 3 | Q74: 0.25
B75: 2.2.3.5 | C75: En trámite | D75: =D71-D72 -> 95 | E75: 95 | F75: 102 | G75: 100 | H75: 100 | I75: 100 | J75: 104 | K75: 105 | L75: =L71-L72 -> 105 | M75: =M71-M72 -> 107 | N75: =N71-N72 -> 110 | O75: =O71-O72 -> 109 | P75: 1232 | Q75: 102.6666667
B76: Responsabilidad Patrimonial
B77: 2.2.4.1 | C77: Registro Anterior | D77: 25 | E77: =D84 -> 24 | F77: 19 | G77: 23 | H77: 23 | I77: 14 | J77: 11 | K77: 14 | L77: 18 | M77: 27 | N77: 31 | O77: 31 | P77: =SUM(D77:O77) -> 260 | Q77: =P77/12 -> 21.66666667
B78: 2.2.4.2 | C78: Abiertos en el Mes | D78: 8 | E78: 3 | F78: 6 | G78: 0 | H78: 2 | I78: 2 | J78: 6 | K78: 5 | L78: 10 | M78: 6 | N78: 1 | O78: 2 | P78: 51 | Q78: 4.25
B79: 2.2.4.3 | C79: Iniciales en | D79: =D77+D78 -> 33 | E79: =SUM(E77:E78) -> 27 | F79: 25 | G79: 23 | H79: 25 | I79: 16 | J79: 17 | K79: 19 | L79: 28 | M79: 33 | N79: 32 | O79: 33 | P79: 311 | Q79: 25.91666667
B80: 2.2.4.4 | C80: Resueltos y concluidos | D80: 9 | E80: 8 | F80: 2 | G80: 0 | H80: 11 | I80: 5 | J80: 3 | K80: 1 | L80: 1 | M80: 2 | N80: 1 | O80: 1 | P80: 44 | Q80: 3.666666667
C81: Favorables al particular | D81: 6 | E81: 3 | F81: 2 | G81: 0 | H81: 6 | I81: 4 | J81: 1 | K81: 0 | L81: 0 | M81: 0 | N81: 0 | O81: 0 | P81: 22 | Q81: 1.833333333
C82: Favorables al aytto. | D82: 1 | E82: 3 | F82: 0 | G82: 0 | H82: 4 | I82: 0 | J82: 2 | K82: 1 | L82: 1 | M82: 1 | N82: 0 | O82: 1 | P82: 14 | Q82: 1.166666667
C83: Incompetentes | D83: 2 | E83: 2 | F83: 0 | G83: 0 | H83: 1 | I83: 1 | J83: 0 | K83: 0 | L83: 0 | M83: 1 | N83: 1 | O83: 0 | P83: 8 | Q83: 0.6666666667
B84: 2.2.4.5 | C84: En trámite | D84: =D79-D80 -> 24 | E84: 19 | F84: 23 | G84: 23 | H84: 14 | I84: 11 | J84: 14 | K84: 18 | L84: 27 | M84: 31 | N84: 31 | O84: 32 | P84: 267 | Q84: 22.25
A85: 2.3 | B85: Área de Procedimientos Civiles.
B86: 2.3.1 Juicios Civiles
B87: 2.3.1.1 | C87: Registro Anterior | D87: 130 | E87: =D93 -> 109 | F87: 113 | G87: 116 | H87: 121 | I87: 130 | J87: 135 | K87: 141 | L87: 147 | M87: 152 | N87: 131 | O87: 133 | P87: =SUM(D87:O87) -> 1558 | Q87: =AVERAGE(D87:O87) -> 129.8333333
B88: 2.3.1.2 | C88: Abiertos en el Mes | D88: 7 | E88: 4 | F88: 3 | G88: 5 | H88: 9 | I88: 5 | J88: 6 | K88: 6 | L88: 5 | M88: 8 | N88: 2 | O88: 4 | P88: 64 | Q88: =AVERAGE(D88:O88) -> 5.333333333
B89: 2.3.1.3 | C89: Iniciales en | D89: =D87+D88 -> 137 | E89: =SUM(E87:E88) -> 113 | F89: 116 | G89: 121 | H89: 130 | I89: 135 | J89: 141 | K89: 147 | L89: 152 | M89: 160 | N89: 133 | O89: 137 | P89: 1622 | Q89: =P90/P88 -> 0.890625
B90: 2.3.1.4 | C90: Resueltos y concluidos | D90: 28 | E90: 0 | F90: 0 | G90: 0 | H90: 0 | I90: 0 | J90: 0 | K90: 0 | L90: 0 | M90: 29 | N90: 0 | O90: 0 | P90: 57 | Q90: =AVERAGE(D90:O90) -> 4.75
C91: Favorables | D91: 28 | E91: 0 | F91: 0 | G91: 0 | H91: 0 | I91: 0 | J91: 0 | K91: 0 | L91: 0 | M91: 29 | N91: 0 | O91: 0 | P91: 57 | Q91: =AVERAGE(D91:O91) -> 4.75
C92: Desfavorables | D92: 0 | E92: 0 | F92: 0 | G92: 0 | H92: 0 | I92: 0 | J92: 0 | K92: 0 | L92: 0 | M92: 0 | N92: 0 | O92: 0 | P92: 0 | Q92: =AVERAGE(D92:O92) -> 0
B93: 2.3.1.5 | C93: En trámite | D93: =D89-D90 -> 109 | E93: 113 | F93: 116 | G93: 121 | H93: 130 | I93: 135 | J93: 141 | K93: 147 | L93: 152 | M93: 131 | N93: 133 | O93: 137 | P93: 1565 | Q93: =AVERAGE(D93:P93) -> 240.7692308
B94: Quejas ante la C.E.D.H.J.
B95: 2.3.2.1 | C95: Registro Anterior | D95: 51 | E95: =D102 -> 52 | F95: 59 | G95: 61 | H95: 62 | I95: 62 | J95: 62 | K95: 63 | L95: 62 | M95: =L102 -> 59 | N95: =M102 -> 62 | O95: =N102 -> 62 | P95: =SUM(D95:O95) -> 717 | Q95: =AVERAGE(D95:O95) -> 59.75
B96: 2.3.2.2 | C96: Abiertos en el Mes | D96: 2 | E96: 8 | F96: 3 | G96: 2 | H96: 2 | I96: 3 | J96: 4 | K96: 2 | L96: 0 | M96: 5 | N96: 0 | O96: 1 | P96: 32 | Q96: =AVERAGE(D96:O96) -> 2.666666667
B97: 2.3.2.3 | C97: Iniciales en | D97: =D95+D96 -> 53 | E97: =SUM(E95:E96) -> 60 | F97: 62 | G97: 63 | H97: 64 | I97: 65 | J97: 66 | K97: 65 | L97: 62 | M97: 64 | N97: 62 | O97: 63 | P97: 749 | Q97: =P98/P96 -> 0.65625
B98: 2.3.2.4 | C98: Resueltos y concluidos | D98: 1 | E98: 1 | F98: 1 | G98: 1 | H98: 2 | I98: 3 | J98: 3 | K98: 3 | L98: 3 | M98: 2 | N98: 0 | O98: 1 | P98: 21 | Q98: =AVERAGE(D98:O98) -> 1.75
C99: Se Archiva | D99: 1 | E99: 1 | F99: 1 | G99: 1 | H99: 2 | I99: 3 | J99: 3 | K99: 3 | L99: 3 | M99: 2 | N99: 0 | O99: 1 | P99: 21 | Q99: =AVERAGE(D99:O99) -> 1.75
C100: Conciliación | D100: 0 | E100: 0 | F100: 0 | G100: 0 | H100: 0 | I100: 0 | J100: 0 | K100: 0 | L100: 0 | M100: 0 | N100: 0 | O100: 0 | P100: 0 | Q100: =AVERAGE(D100:O100) -> 0
C101: Cumplimiento | D101: 0 | E101: 0 | F101: 0 | G101: 0 | H101: 0 | I101: 0 | J101: 0 | K101: 0 | L101: 0 | M101: 0 | N101: 0 | O101: 0 | P101: 0 | Q101: =AVERAGE(D101:O101) -> 0
B102: 2.3.2.5 | C102: En trámite | D102: =D97-D98 -> 52 | E102: 59 | F102: 61 | G102: 62 | H102: 62 | I102: 62 | J102: 63 | K102: 62 | L102: 59 | M102: 62 | N102: 62 | O102: 62 | P102: 728 | Q102: =AVERAGE(D102:P102) -> 112
B103: 2.3.3 Reclamaciones de Fianzas.
B104: 2.3.3.1 | C104: Registro Anterior | Q104: =AVERAGE(E104:O104) -> 
B105: 2.3.3.2 | C105: Abiertos en el Mes | Q105: =AVERAGE(D105:O105) -> 
B106: 2.3.3.3 | C106: Iniciales en | Q106: =AVERAGE(E106:O106) -> 
B107: 2.3.3.4 | C107: Resueltas y concluidas | Q107: =AVERAGE(D107:O107) -> 
C108: Pagadas | Q108: =AVERAGE(D108:O108) -> 
C109: sin responsabilidad | Q109: =AVERAGE(D109:O109) -> 
B110: 2.3.3.5 | C110: En trámite (2.3.3.1 menos 2.3.3.2) | Q110: =AVERAGE(D110:O110) -> 
B111: 2.3.4 Instancias.
B112: 2.3.4.1 | C112: Registro Anterior | D112: 14 | E112: =D116 -> 10 | F112: 10 | G112: 10 | H112: 10 | I112: 10 | J112: 10 | K112: 10 | L112: 10 | M112: 10 | N112: 10 | O112: 10 | P112: =SUM(D112:O112) -> 124 | Q112: =AVERAGE(D112:O112) -> 10.33333333
B113: 2.3.4.2 | C113: Abiertos en el Mes | D113: 0 | E113: 0 | F113: 0 | G113: 0 | H113: 0 | I113: 0 | J113: 0 | K113: 0 | L113: 0 | M113: 0 | N113: 0 | O113: 0 | P113: 0 | Q113: =AVERAGE(D113:O113) -> 0
B114: 2.3.4.3 | C114: Iniciales en | D114: =D112+D113 -> 14 | E114: =SUM(E112:E113) -> 10 | F114: 10 | G114: 10 | H114: 10 | I114: 10 | J114: 10 | K114: 10 | L114: 10 | M114: 10 | N114: 10 | O114: 10 | P114: 124 | Q114: =P115/P113 -> 
B115: 2.3.4.4 | C115: Resueltas y concluidas | D115: 4 | E115: 0 | F115: 0 | G115: 0 | H115: 0 | I115: 0 | J115: 0 | K115: 0 | L115: 0 | M115: 0 | N115: 0 | O115: 0 | P115: 4 | Q115: =AVERAGE(D115:O115) -> 0.3333333333
B116: 2.3.4.5 | C116: En trámite | D116: =D114-D115 -> 10 | E116: 10 | F116: 10 | G116: 10 | H116: 10 | I116: 10 | J116: 10 | K116: 10 | L116: 10 | M116: 10 | N116: 10 | O116: 10 | P116: 120 | Q116: =AVERAGE(D116:P116) -> 18.46153846
B117: 2.3.5 Audiencias y diligencias en Juicios | D117: 4 | E117: 7 | F117: 9 | G117: 8 | H117: 8 | I117: 7 | J117: 4 | K117: 4 | L117: 3 | M117: 6 | N117: 4 | O117: 5 | P117: 69 | Q117: =AVERAGE(D117:O117) -> 5.75
B118: 2.3.6 Asesorías y Reuniones. | D118: 3 | E118: 8 | F118: 5 | G118: 8 | H118: 5 | I118: 5 | J118: 4 | K118: 4 | L118: 4 | M118: 7 | N118: 3 | O118: 4 | P118: 60 | Q118: =AVERAGE(D118:O118) -> 5
B119: 2.3.7 Oficios.
B120: 2.3.7.1 | C120: Recibidos en el Área | D120: 58 | E120: 67 | F120: 39 | G120: 45 | H120: 40 | I120: 71 | J120: 38 | K120: 60 | L120: 48 | M120: 48 | N120: 49 | O120: 49 | P120: =SUM(D120:O120) -> 612 | Q120: =AVERAGE(D120:O120) -> 51
B121: 2.3.7.2 | C121: Generados por el Área | D121: 32 | E121: 40 | F121: 34 | G121: 26 | H121: 28 | I121: 42 | J121: 34 | K121: 29 | L121: 20 | M121: 42 | N121: 29 | O121: 58 | P121: =SUM(D121:O121) -> 414 | Q121: =AVERAGE(D121:O121) -> 34.5
A122: 2.4 | B122: Área de Procedimientos Laborales
B123: Juicios Laborales
B124: 2.4.1.1 | C124: Registro Anterior | D124: 329 | E124: =D132 -> 329 | F124: 329 | G124: 329 | H124: 330 | I124: 330 | J124: 333 | K124: 334 | L124: 335 | M124: 335 | N124: 343 | O124: 344 | P124: =SUM(D124:O124) -> 4000 | Q124: =AVERAGE(D124:O124) -> 333.3333333
B125: 2.4.1.2 | C125: Abiertos en el Mes | D125: 3 | E125: 6 | F125: 5 | G125: 9 | H125: 6 | I125: 19 | J125: 7 | K125: 11 | L125: 8 | M125: 13 | N125: 1 | O125: 1 | P125: 89 | Q125: =AVERAGE(D125:O125) -> 7.416666667
B126: 2.4.1.3 | C126: Iniciales en | D126: =D124+D125 -> 332 | E126: =SUM(E124:E125) -> 335 | F126: 334 | G126: 338 | H126: 336 | I126: 349 | J126: 340 | K126: 345 | L126: 343 | M126: 348 | N126: 344 | O126: 345 | P126: 4089 | Q126: =P127/P125 -> 0.8314606742
B127: 2.4.1.4 | C127: Resueltos y concluidos | D127: 3 | E127: 6 | F127: 5 | G127: 8 | H127: 6 | I127: 16 | J127: 6 | K127: 10 | L127: 8 | M127: 5 | N127: 0 | O127: 1 | P127: 74 | Q127: =AVERAGE(D127:O127) -> 6.166666667
C128: Ganados | D128: 0 | E128: 0 | F128: 0 | G128: 0 | H128: 0 | I128: 0 | J128: 0 | K128: 0 | L128: 0 | M128: 0 | N128: 0 | O128: 0 | P128: 0 | Q128: =AVERAGE(D128:O128) -> 0
C129: Perdidos | D129: 0 | E129: 0 | F129: 0 | G129: 0 | H129: 0 | I129: 0 | J129: 0 | K129: 0 | L129: 0 | M129: 0 | N129: 0 | O129: 0 | P129: 0
C130: convenios | D130: 0 | E130: 0 | F130: 0 | G130: 0 | H130: 0 | I130: 0 | J130: 0 | K130: 0 | L130: 0 | M130: 0 | N130: 0 | O130: 0 | P130: 0 | Q130: =AVERAGE(D130:O130) -> 0
C131: remitido a desp. Externo | D131: 3 | E131: 6 | F131: 5 | G131: 8 | H131: 6 | I131: 16 | J131: 6 | K131: 10 | L131: 8 | M131: 5 | N131: 0 | O131: 1 | P131: 74
B132: 2.4.1.5 | C132: En trámite | D132: =D126-D127 -> 329 | E132: 329 | F132: 329 | G132: 330 | H132: 330 | I132: 333 | J132: 334 | K132: 335 | L132: 335 | M132: 343 | N132: 344 | O132: 344 | P132: 4015 | Q132: =AVERAGE(D132:P132) -> 617.6923077
B133: 2.4.6 Audiencias y diligencias en Juicios y Proc | D133: 22 | E133: 24 | F133: 13 | G133: 8 | H133: 10 | I133: 16 | J133: 11 | K133: 10 | L133: 8 | M133: 8 | N133: 8 | O133: 10 | P133: 148 | Q133: =AVERAGE(D133:O133) -> 12.33333333
B134: 2.4.6 Asesorías y Reuniones. | D134: 10 | E134: 11 | F134: 11 | G134: 10 | H134: 11 | I134: 10 | J134: 11 | K134: 11 | L134: 10 | M134: 5 | N134: 9 | O134: 5 | P134: 114 | Q134: =AVERAGE(D134:O134) -> 9.5
B135: 2.4.7 Oficios.
B136: 2.4.7.1 | C136: Recibidos en el Área | D136: 68 | E136: 57 | F136: 63 | G136: 66 | H136: 63 | I136: 85 | J136: 65 | K136: 85 | L136: 69 | M136: 110 | N136: 72 | O136: 13 | P136: =SUM(D136:O136) -> 816 | Q136: =AVERAGE(D136:O136) -> 68
B137: 2.4.7.2 | C137: Generados por el Área | D137: 70 | E137: 57 | F137: 64 | G137: 48 | H137: 54 | I137: 57 | J137: 66 | K137: 60 | L137: 67 | M137: 90 | N137: 67 | O137: 23 | P137: =SUM(D137:O137) -> 723 | Q137: =AVERAGE(D137:O137) -> 60.25
B138: Responsabilidad Laboral
B139: 2.4.2.1 | C139: Registro Anterior | D139: 4 | E139: =D145 -> 5 | F139: 7 | G139: 7 | H139: 3 | I139: 3 | J139: 0 | K139: 1 | L139: 1 | M139: 2 | N139: 1 | O139: 3 | P139: =SUM(D139:O139) -> 37 | Q139: =AVERAGE(D139:O139) -> 3.083333333
B140: 2.4.2.2 | C140: Abiertos en el Mes | D140: 2 | E140: 5 | F140: 4 | G140: 0 | H140: 0 | I140: 0 | J140: 1 | K140: 1 | L140: 2 | M140: 1 | N140: 2 | O140: 1 | P140: 19 | Q140: =AVERAGE(D140:O140) -> 1.583333333
B141: 2.4.2.3 | C141: Iniciales en | D141: =D139+D140 -> 6 | E141: =SUM(E139:E140) -> 10 | F141: 11 | G141: 7 | H141: 3 | I141: 3 | J141: 1 | K141: 2 | L141: 3 | M141: 3 | N141: 3 | O141: 4 | P141: 56 | Q141: =P142/P140 -> 1
B142: 2.4.2.4 | C142: Resueltos y concluidos | D142: 1 | E142: 3 | F142: 4 | G142: 4 | H142: 0 | I142: 3 | J142: 0 | K142: 1 | L142: 1 | M142: 2 | N142: 0 | O142: 0 | P142: 19 | Q142: =AVERAGE(D142:O142) -> 1.583333333
C143: con sanción | D143: 1 | E143: 2 | F143: 2 | G143: 3 | H143: 0 | I143: 2 | J143: 0 | K143: 1 | L143: 1 | M143: 1 | N143: 0 | O143: 0 | P143: 13 | Q143: =AVERAGE(D143:O143) -> 1.083333333
C144: sin sanción | D144: 0 | E144: 1 | F144: 2 | G144: 1 | H144: 0 | I144: 1 | J144: 0 | K144: 0 | L144: 0 | M144: 1 | N144: 0 | O144: 0 | P144: 6 | Q144: =AVERAGE(D144:O144) -> 0.5
B145: 2.4.2.5 | C145: En trámite | D145: =D141-D142 -> 5 | E145: 7 | F145: 7 | G145: 3 | H145: 3 | I145: 0 | J145: 1 | K145: 1 | L145: 2 | M145: 1 | N145: 3 | O145: 4 | P145: =P139+P140-P142 -> 37 | Q145: =AVERAGE(D145:P145) -> 5.692307692
B146: Responsabilidad Administrativa
B147: 2.4.3.1 | C147: Registro Anterior | D147: 189 | E147: =D154 -> 189 | F147: 174 | G147: 162 | H147: 153 | I147: 126 | J147: 103 | K147: 99 | L147: 90 | M147: 73 | N147: 73 | O147: 74 | P147: =SUM(D147:O147) -> 1505 | Q147: =AVERAGE(D147:O147) -> 125.4166667
B148: 2.4.3.2 | C148: Abiertos en el Mes | D148: 10 | E148: 0 | F148: 0 | G148: 1 | H148: 4 | I148: 0 | J148: 10 | K148: 6 | L148: 0 | M148: 4 | N148: 11 | O148: 6 | P148: 52 | Q148: =AVERAGE(D148:O148) -> 4.333333333
B149: 2.4.3.3 | C149: Iniciales en | D149: =D147+D148 -> 199 | E149: =SUM(E147:E148) -> 189 | F149: 174 | G149: 163 | H149: 157 | I149: 126 | J149: 113 | K149: 105 | L149: 90 | M149: 77 | N149: 84 | O149: 80 | P149: 1557 | Q149: =P150/P148 -> 3.288461538
B150: 2.4.3.4 | C150: Resueltos y concluidos | D150: 10 | E150: 15 | F150: 12 | G150: 10 | H150: 31 | I150: 23 | J150: 14 | K150: 15 | L150: 17 | M150: 4 | N150: 10 | O150: 10 | P150: 171 | Q150: =AVERAGE(D150:O150) -> 14.25
C151: con sanción | D151: 10 | E151: 1 | F151: 0 | G151: 0 | H151: 0 | I151: 2 | J151: 1 | K151: 0 | L151: 0 | M151: 0 | N151: 0 | O151: 1 | P151: 15 | Q151: =AVERAGE(D151:O151) -> 1.25
C152: sin sanción | D152: 0 | E152: 14 | F152: 12 | G152: 10 | H152: 31 | I152: 21 | J152: 13 | K152: 15 | L152: 17 | M152: 4 | N152: 10 | O152: 9 | P152: 156 | Q152: =AVERAGE(D152:O152) -> 13
C153: remitido a desp. Externo | D153: 0 | E153: 0 | F153: 0 | G153: 0 | H153: 0 | I153: 0 | J153: 0 | K153: 0 | L153: 0 | M153: 0 | N153: 0 | O153: 0 | P153: 0
B154: 2.4.3.5 | C154: En trámite | D154: =D149-D150 -> 189 | E154: 174 | F154: 162 | G154: 153 | H154: 126 | I154: 103 | J154: 99 | K154: 90 | L154: 73 | M154: 73 | N154: 74 | O154: 70 | P154: 1386
B155: 2.4.6 Audiencias y diligencias en Juicios y Proc | D155: 9 | E155: 6 | F155: 6 | G155: 4 | H155: 4 | I155: 5 | J155: 12 | K155: 13 | L155: 17 | M155: 6 | N155: 9 | O155: 7 | P155: 98 | Q155: =AVERAGE(D155:O155) -> 8.166666667
B156: 2.4.6 Asesorías y Reuniones. | D156: 28 | E156: 26 | F156: 23 | G156: 19 | H156: 14 | I156: 19 | J156: 15 | K156: 15 | L156: 12 | M156: 2 | N156: 20 | O156: 10 | P156: 203 | Q156: =AVERAGE(D156:O156) -> 16.91666667
B157: 2.4.7 Oficios.
B158: 2.4.7.1 | C158: Recibidos en el Área | D158: 30 | E158: 14 | F158: 21 | G158: 10 | H158: 18 | I158: 24 | J158: 17 | K158: 33 | L158: 16 | M158: 53 | N158: 33 | O158: 29 | P158: =SUM(D158:O158) -> 298 | Q158: =AVERAGE(D158:O158) -> 24.83333333
B159: 2.4.7.2 | C159: Generados por el Área | D159: 54 | E159: 33 | F159: 59 | G159: 21 | H159: 35 | I159: 32 | J159: 38 | K159: 59 | L159: 28 | M159: 59 | N159: 36 | O159: 30 | P159: =SUM(D159:O159) -> 484 | Q159: =AVERAGE(D159:O159) -> 40.33333333
A170: 2.5 | B170: Área de Procedimientos Penales
B171: Expedientes Generales (Av. Previas, Juicios, Internos)
B172: 2.5.1.1 | C172: Registro Anterior | D172: 461 | E172: =D176 -> 462 | F172: 464 | G172: 465 | H172: 459 | I172: 466 | J172: 466 | K172: 480 | L172: 485 | M172: 485 | N172: 490 | O172: 495 | P172: =SUM(D172:O172) -> 5678 | Q172: =AVERAGE(D172:O172) -> 473.1666667
B173: 2.5.1.2 | C173: Abiertos en el Mes | D173: 19 | E173: 20 | F173: 14 | G173: 4 | H173: 21 | I173: 10 | J173: 15 | K173: 20 | L173: 14 | M173: 10 | N173: 20 | O173: 10 | P173: =SUM(D173:O173) -> 177 | Q173: =AVERAGE(D173:O173) -> 14.75
B174: 2.5.1.3 | C174: Iniciales en | D174: =D172+D173 -> 480 | E174: =SUM(E172:E173) -> 482 | F174: 478 | G174: 469 | H174: 480 | I174: 476 | J174: 481 | K174: 500 | L174: 499 | M174: 495 | N174: 510 | O174: 505 | P174: =SUM(D174:O174) -> 5855 | Q174: =P175/P173 -> 0.790960452
B175: 2.5.1.4 | C175: Resueltos y concluidos | D175: 18 | E175: 18 | F175: 13 | G175: 10 | H175: 14 | I175: 10 | J175: 1 | K175: 15 | L175: 14 | M175: 5 | N175: 15 | O175: 7 | P175: =SUM(D175:O175) -> 140 | Q175: =AVERAGE(D175:O175) -> 11.66666667
B176: 2.5.1.5 | C176: En trámite | D176: =D174-D175 -> 462 | E176: 464 | F176: 465 | G176: 459 | H176: 466 | I176: 466 | J176: 480 | K176: 485 | L176: 485 | M176: 490 | N176: 495 | O176: 498 | P176: =SUM(D176:O176) -> 5715 | Q176: =AVERAGE(D176:P176) -> 879.2307692
C177: Favorables | Q177: =AVERAGE(D177:O177) -> 
C178: Archivados | Q178: =AVERAGE(D178:O178) -> 
B179: Expedientes Daños a bienes Propiedad Municipal
B180: 2.5.2.1 | C180: Registro Anterior | D180: 35 | E180: =D184 -> 61 | F180: 62 | G180: 64 | H180: 50 | I180: 51 | J180: 49 | K180: 46 | L180: 50 | M180: 42 | N180: 55 | O180: 55 | P180: =SUM(D180:O180) -> 620 | Q180: =AVERAGE(D180:O180) -> 51.66666667
B181: 2.5.2.2 | C181: Abiertos en el Mes | D181: 58 | E181: 38 | F181: 37 | G181: 26 | H181: 38 | I181: 42 | J181: 40 | K181: 39 | L181: 25 | M181: 40 | N181: 30 | O181: 16 | P181: 429 | Q181: =AVERAGE(D181:O181) -> 35.75
B182: 2.5.2.3 | C182: Iniciales en | D182: =D180+D181 -> 93 | E182: 99 | F182: 99 | G182: 90 | H182: 88 | I182: 93 | J182: =SUM(J180:J181) -> 89 | K182: 85 | L182: 75 | M182: 82 | N182: 85 | O182: 71 | P182: 1049 | Q182: =P183/P181 -> 0.972027972
B183: 2.5.2.4 | C183: Resueltos y concluidos | D183: 32 | E183: 37 | F183: 35 | G183: 40 | H183: 37 | I183: 44 | J183: 43 | K183: 35 | L183: 33 | M183: 27 | N183: 30 | O183: 24 | P183: 417 | Q183: =AVERAGE(D183:O183) -> 34.75
B184: 2.5.2.5 | C184: En trámite | D184: =D182-D183 -> 61 | E184: 62 | F184: 64 | G184: 50 | H184: 51 | I184: 49 | J184: 46 | K184: 50 | L184: 42 | M184: 55 | N184: 55 | O184: 47 | P184: 632 | Q184: =AVERAGE(D184:P184) -> 97.23076923
B185: 2.5.2.4 | C185: Dinero Recaudado | D185: 157456.85 | E185: 99429.45 | F185: 75395.17 | G185: 78368.65 | H185: 72041.26 | I185: 142079.63 | J185: 79122.92 | K185: 137429.13 | L185: 71660.35 | M185: 75725.29 | N185: 145282.39 | O185: 145282.39 | P185: 1279273.48 | Q185: =AVERAGE(D185:O185) -> 106606.1233
B186: 2.5.3 Preliberados.
B187: 2.5.3.1 | C187: Registro Anterior | D187: 700 | E187: =D191 -> 702 | F187: 722 | G187: 732 | H187: 732 | I187: 747 | J187: 747 | K187: 762 | L187: 762 | M187: 772 | N187: 782 | O187: 774 | P187: =SUM(D187:O187) -> 8934 | Q187: =AVERAGE(D187:O187) -> 744.5
B188: 2.5.3.2 | C188: Abiertos en el Mes | D188: 12 | E188: 26 | F188: 20 | G188: 20 | H188: 30 | I188: 20 | J188: 25 | K188: 10 | L188: 20 | M188: 20 | N188: 13 | O188: 8 | P188: 224 | Q188: =AVERAGE(D188:O188) -> 18.66666667
B189: 2.5.3.3 | C189: Iniciales en | D189: =D187+D188 -> 712 | E189: =SUM(E187:E188) -> 728 | F189: 742 | G189: 752 | H189: 762 | I189: 767 | J189: 772 | K189: 772 | L189: 782 | M189: 792 | N189: 795 | O189: 782 | P189: 9158 | Q189: =P190/P188 -> 0.6875
B190: 2.5.3.4 | C190: Cumplimentaron | D190: 10 | E190: 6 | F190: 10 | G190: 20 | H190: 15 | I190: 20 | J190: 10 | K190: 10 | L190: 10 | M190: 10 | N190: 21 | O190: 12 | P190: 154 | Q190: =AVERAGE(D190:O190) -> 12.83333333
B191: 2.5.3.5 | C191: En seguimiento | D191: =D189-D190 -> 702 | E191: 722 | F191: 732 | G191: 732 | H191: 747 | I191: 747 | J191: 762 | K191: 762 | L191: 772 | M191: 782 | N191: 774 | O191: 770 | P191: 9004 | Q191: =AVERAGE(D191:P191) -> 1385.230769
B192: 2.5.4 Audiencias y diligencias en Av. Prev y J. | D192: 15 | E192: 10 | F192: 10 | G192: 10 | H192: 10 | I192: 10 | J192: 10 | K192: 10 | L192: 10 | M192: 10 | N192: 10 | O192: 10 | P192: 125 | Q192: =AVERAGE(D192:O192) -> 10.41666667
B193: 2.5.5 Asesorías y Reuniones. | D193: 15 | E193: 10 | F193: 10 | G193: 10 | H193: 10 | I193: 10 | J193: 10 | K193: 10 | L193: 10 | M193: 10 | N193: 10 | O193: 5 | P193: 120 | Q193: =AVERAGE(D193:O193) -> 10
B194: 2.5.6 Oficios.
B195: 2.5.6.1 | C195: Recibidos en el Área | D195: 109 | E195: 78 | F195: 99 | G195: 80 | H195: 70 | I195: 93 | J195: 100 | K195: 160 | L195: 80 | M195: 70 | N195: 100 | O195: 73 | P195: =SUM(D195:O195) -> 1112 | Q195: =AVERAGE(D195:O195) -> 92.66666667
B196: 2.5.6.1 | C196: Generados por el Área | D196: 210 | E196: 179 | F196: 179 | G196: 150 | H196: 200 | I196: 231 | J196: 180 | K196: 142 | L196: 127 | M196: 260 | N196: 200 | O196: 183 | P196: =SUM(D196:O196) -> 2241 | Q196: =AVERAGE(D196:O196) -> 186.75
B200: LIC. ERNESTO GONZALEZ MARAGUED
B201: DIRECTOR JURIDICO CONTENCIOSO

Sheet 2013
B1: INDICADORES MENSUALES 2013 DIRERCCION JURIDICA CONTENCIOSA | D1: ENE | E1: FEB | F1: MAR | G1: ABR | H1: MAY | I1: JUN | J1: JUL | K1: AGO | L1: SEP | M1: OCT | N1: NOV | O1: DIC | P1: TOTAL | Q1: PROMEDIO
A2: 2.1 | B2: Área de Amparos y Agrario.
B3: Juicios de Amparo
B4: 2.1.1.1 | C4: Registro Anterior | D4: 567 | E4: =D10 -> 631 | F4: 646 | G4: 683 | H4: 666 | I4: 635 | J4: 618 | K4: 641 | L4: 637 | M4: 614 | N4: 620 | Q4: =P4/12 -> 0
B5: 2.1.1.2 | C5: Abiertos en el Mes | D5: 101 | E5: 62 | F5: 67 | G5: 40 | H5: 34 | I5: 29 | J5: 46 | K5: 85 | L5: 33 | M5: 38 | N5: 42 | P5: =SUM(D5:O5) -> 577 | Q5: 48.08333333
B6: 2.1.1.3 | C6: Iniciales en | D6: =D4+D5 -> 668 | E6: 693 | F6: 713 | G6: 723 | H6: 700 | I6: 664 | J6: 664 | K6: 726 | L6: 670 | M6: 652 | N6: 662 | P6: 7535 | Q6: 627.9166667
B7: 2.1.1.4 | C7: Resueltos y concluidos | D7: 37 | E7: 47 | F7: 30 | G7: 57 | H7: 65 | I7: 46 | J7: 23 | K7: 89 | L7: 56 | M7: 32 | N7: 43 | P7: 525 | Q7: 43.75
C8: Sobreseimiento o Negativa de Amparo | D8: 9 | E8: 28 | F8: 24 | G8: 40 | H8: 56 | I8: 40 | J8: 21 | K8: 61 | L8: 46 | M8: 27 | N8: 33 | P8: 385 | Q8: 32.08333333
C9: Concediendo el amparo | D9: 28 | E9: 19 | F9: 6 | G9: 17 | H9: 9 | I9: 6 | J9: 2 | K9: 28 | L9: 10 | M9: 5 | N9: 10 | P9: 140 | Q9: 11.66666667
B10: 2.1.1.5 | C10: En trámite | D10: =D6-D7 -> 631 | E10: 646 | F10: 683 | G10: 666 | H10: 635 | I10: 618 | J10: 641 | K10: 637 | L10: 614 | M10: 620 | N10: 619 | P10: 7010 | Q10: 584.1666667
B11: Juicios Agrarios
B12: 2.1.2.1 | C12: Registro Anterior | D12: 61 | E12: =D18 -> 62 | F12: 60 | G12: 60 | H12: 61 | I12: 60 | J12: 59 | K12: 68 | L12: 80 | M12: 92 | N12: 102 | P12: =SUM(D12:O12) -> 765 | Q12: =P12/12 -> 63.75
B13: 2.1.2.2 | C13: Abiertos en el Mes | D13: 1 | E13: 0 | F13: 0 | G13: 1 | H13: 5 | I13: 1 | J13: 11 | K13: 13 | L13: 13 | M13: 10 | N13: 0 | P13: 55 | Q13: 4.583333333
B14: 2.1.2.3 | C14: Iniciales en | D14: =D12+D13 -> 62 | E14: 62 | F14: 60 | G14: 61 | H14: 66 | I14: 61 | J14: 70 | K14: 81 | L14: 93 | M14: 102 | N14: 102 | P14: 820 | Q14: 68.33333333
B15: 2.1.2.4 | C15: Resueltos y concluidos | D15: 0 | E15: 2 | F15: 0 | G15: 0 | H15: 6 | I15: 2 | J15: 2 | K15: 1 | L15: 1 | M15: 0 | N15: 0 | P15: 14 | Q15: 1.166666667
C16: Favorables | D16: 0 | E16: 2 | F16: 0 | G16: 0 | H16: 5 | I16: 2 | J16: 2 | K16: 1 | L16: 1 | M16: 0 | N16: 0 | P16: 13 | Q16: 1.083333333
C17: Desfavorables | D17: 0 | E17: 0 | F17: 0 | G17: 0 | H17: 1 | I17: 0 | J17: 0 | K17: 0 | L17: 0 | M17: 0 | N17: 0 | P17: 1 | Q17: 0.08333333333
B18: 2.1.2.5 | C18: En trámite | D18: =D14-D15 -> 62 | E18: 60 | F18: 60 | G18: 61 | H18: 60 | I18: 59 | J18: 68 | K18: 80 | L18: 92 | M18: 102 | N18: 102 | P18: 806 | Q18: 67.16666667
B19: 2.1.4 Audiencias y diligencias en Juicios. | D19: 30 | E19: 14 | F19: 10 | G19: 15 | H19: 18 | I19: 19 | J19: 106 | K19: 30 | L19: 42 | M19: 50 | N19: 45 | P19: 379 | Q19: 31.58333333
B20: 2.1.5 Asesorías y Reuniones. | D20: 15 | E20: 7 | F20: 20 | G20: 12 | H20: 10 | I20: 11 | J20: 75 | K20: 15 | L20: 21 | M20: 32 | N20: 30 | P20: 248 | Q20: 20.66666667
B21: 2.1.6 Oficios.
B22: 2.1.6.1 | C22: Recibidos en el Área | D22: 771 | E22: 704 | F22: 654 | G22: 693 | H22: 703 | I22: 521 | J22: 625 | K22: 722 | L22: 657 | M22: 750 | N22: 701 | P22: =SUM(D22:O22) -> 7501 | Q22: =P22/12 -> 625.0833333
B23: 2.1.6.2 | C23: Generados por el Área | D23: 559 | E23: 447 | F23: 481 | G23: 413 | H23: 455 | I23: 384 | J23: 557 | K23: 455 | L23: 508 | M23: 501 | N23: 460 | P23: =SUM(D23:O23) -> 5220 | Q23: =P23/12 -> 435
A24: 2.2 | B24: Área de Contencioso Administrativo.
B25: Juicios de Nulidad
B26: 2.2.1.1 | C26: Registro Anterior | D26: 1064 | E26: =D34 -> 1090 | F26: 1116 | G26: 654 | H26: 685 | I26: 698 | J26: 718 | K26: 735 | L26: 768 | M26: 800 | N26: 826 | P26: =SUM(D26:O26) -> 9154 | Q26: =P26/12 -> 762.8333333
B27: 2.2.1.2 | C27: Abiertos en el Mes | D27: 30 | E27: 32 | F27: 29 | G27: 39 | H27: 17 | I27: 34 | J27: 19 | K27: 45 | L27: 40 | M27: 38 | N27: 30 | P27: 353 | Q27: 29.41666667
B28: 2.2.1.3 | C28: Iniciales en | D28: =D26+D27 -> 1094 | E28: 1122 | F28: 1145 | G28: 693 | H28: 702 | I28: 732 | J28: 737 | K28: 780 | L28: 808 | M28: 838 | N28: 856 | P28: 9507 | Q28: 792.25
B29: 2.2.1.4 | C29: Resueltos y concluidos | D29: 4 | E29: 6 | F29: 491 | G29: 8 | H29: 4 | I29: =SUM(I30:I33) -> 14 | J29: 2 | K29: =K30+K31+K32+K33 -> 12 | L29: 8 | M29: 12 | N29: =N30+N31+N32+N33 -> 15 | P29: 576 | Q29: 48
C30: Favorables | D30: 3 | E30: 3 | F30: 21 | G30: 2 | H30: 2 | I30: 2 | J30: 0 | K30: 1 | L30: 3 | M30: 4 | N30: 2 | P30: 43 | Q30: 3.583333333
C31: Desfavorables | D31: 1 | E31: 3 | F31: 16 | G31: 6 | H31: 2 | I31: 4 | J31: 1 | K31: 3 | L31: 3 | M31: 3 | N31: 6
C32: Depurados(ordenado su archivo) | D32: 0 | E32: 0 | F32: 454 | G32: 0 | H32: 0 | I32: 0 | J32: 0 | K32: 0 | L32: 0 | M32: 0 | N32: 0 | P32: =SUM(D32:O32) -> 454 | Q32: =P32/12 -> 37.83333333
C33: Turnadas a Despacho externo | I33: 8 | J33: 1 | K33: 8 | L33: 2 | M33: 5 | N33: 7 | P33: =SUM(I33:O33) -> 31 | Q33: =P33/12 -> 2.583333333
B34: 2.2.1.5 | C34: En trámite | D34: =D28-D29 -> 1090 | E34: 1116 | F34: 654 | G34: 685 | H34: 698 | I34: 718 | J34: 735 | K34: 768 | L34: 800 | M34: 826 | N34: 841 | P34: 8931 | Q34: 744.25
B35: 2.1.5 Audiencias y diligencias en Juicios y Proc | D35: 11 | E35: 17 | F35: 15 | G35: 17 | H35: 15 | I35: 14 | J35: 11 | K35: 11 | L35: 10 | M35: 11 | N35: 10 | P35: 142 | Q35: 11.83333333
B36: 2.1.6 Asesorías y Reuniones. | D36: 43 | E36: 45 | F36: 32 | G36: 15 | H36: 10 | I36: 12 | J36: 12 | K36: 10 | L36: 12 | M36: 10 | N36: 11 | P36: 212 | Q36: 17.66666667
B37: 2.1.7 Oficios.
B38: 2.1.7.1 | C38: Recibidos en el Área | D38: 41 | E38: 52 | F38: 42 | G38: 57 | H38: 54 | I38: 34 | J38: 70 | K38: 57 | L38: 103 | M38: 65 | N38: 59 | P38: =SUM(D38:O38) -> 634 | Q38: =P38/12 -> 52.83333333
B39: 2.1.7.2 | C39: Generados por el Área | D39: 129 | E39: 108 | F39: 108 | G39: 333 | H39: 116 | I39: ç | J39: 128 | K39: 167 | L39: 163 | M39: 146 | N39: 111 | P39: =SUM(D39:O39) -> 1509 | Q39: =P39/12 -> 125.75
B40: Juicios de Lesividad
B41: 2.2.2.1 | C41: Registro Anterior | D41: 44 | E41: =D48 -> 44 | F41: 44 | G41: 44 | H41: 44 | I41: 44 | J41: 43 | K41: 43 | L41: 42 | M41: 46 | N41: 46 | P41: =SUM(D41:O41) -> 484 | Q41: =P41/12 -> 40.33333333
B42: 2.2.2.2 | C42: Abiertos en el Mes | D42: 0 | E42: 0 | F42: 0 | G42: 1 | H42: 0 | I42: 0 | J42: 0 | K42: 0 | L42: 4 | M42: 0 | N42: 0 | P42: 5 | Q42: 0.4166666667
B43: 2.2.2.3 | C43: Sub-total | D43: =D41+D42 -> 44 | E43: 44 | F43: 44 | G43: 45 | H43: 44 | I43: 44 | J43: 43 | K43: 43 | L43: 46 | M43: 46 | N43: 46 | P43: 489 | Q43: 40.75
B44: 2.2.2.4 | C44: Resueltos y concluidos | D44: 0 | E44: 0 | F44: 0 | G44: 1 | H44: 0 | I44: 1 | J44: 0 | K44: 1 | L44: 0 | M44: 0 | N44: 1 | P44: 4 | Q44: 0.3333333333
C45: Se declara la Nulidad del acto | D45: 0 | E45: 0 | F45: 0 | G45: 1 | H45: 0 | I45: 0 | J45: 0 | K45: 0 | L45: 0 | M45: 0 | N45: 0 | P45: 1 | Q45: 0.08333333333
C46: Se confir.la validez del acto (Fav.al Part.) | D46: 0 | E46: 0 | F46: 0 | G46: 0 | H46: 0 | I46: 1 | J46: 0 | K46: 1 | L46: 0 | M46: 0 | N46: 0 | P46: 2 | Q46: 0.1666666667
C47: Incompetentes | D47: 0 | E47: 0 | F47: 0 | G47: 0 | H47: 0 | I47: 0 | J47: 0 | K47: 0 | L47: 0 | M47: 0 | N47: 1 | P47: 1 | Q47: 0.08333333333
B48: 2.2.2.5 | C48: En trámite | D48: =D43-D44 -> 44 | E48: 44 | F48: 44 | G48: 44 | H48: 44 | I48: 43 | J48: 43 | K48: 42 | L48: 46 | M48: 46 | N48: 45 | P48: 485 | Q48: 40.41666667
B49: Recursos
B50: 2.2.2.1 | C50: Registro Anterior | D50: 123 | E50: =D57 -> 129 | F50: 130 | G50: 129 | H50: 135 | I50: 142 | J50: 145 | K50: 146 | L50: 147 | M50: 147 | N50: 155 | P50: =SUM(D50:O50) -> 1528 | Q50: =P50/12 -> 127.3333333
B51: 2.2.2.2 | C51: Abiertos en el Mes | D51: 11 | E51: 4 | F51: 4 | G51: 6 | H51: 11 | I51: 6 | J51: 6 | K51: 5 | L51: 7 | M51: 10 | N51: 11 | P51: 81 | Q51: 6.75
B52: 2.2.2.3 | C52: Iniciales en | D52: =D50+D51 -> 134 | E52: 133 | F52: 134 | G52: 135 | H52: 146 | I52: 148 | J52: 151 | K52: 151 | L52: 154 | M52: 157 | N52: 166 | P52: 1609 | Q52: 134.0833333
B53: 2.2.2.4 | C53: Resueltos y concluidos | D53: 5 | E53: 3 | F53: 5 | G53: 0 | H53: 4 | I53: 3 | J53: 5 | K53: 4 | L53: 7 | M53: 2 | N53: 3 | P53: 41 | Q53: 3.416666667
C54: Se confirma el acto reclamado | D54: 3 | E54: 2 | F54: 4 | G54: 0 | H54: 4 | I54: 2 | J54: 3 | K54: 4 | L54: 3 | M54: 0 | N54: 1 | P54: 26 | Q54: 2.166666667
C55: Favorables al particular | D55: 2 | E55: 1 | F55: 1 | G55: 0 | H55: 0 | I55: 1 | J55: 2 | K55: 0 | L55: 4 | M55: 2 | N55: 2 | P55: 15 | Q55: 1.25
C56: Incompetentes | D56: 0 | E56: 0 | F56: 0 | G56: 0 | H56: 0 | I56: 0 | J56: 0 | K56: 0 | L56: 0 | M56: 0 | N56: 0 | P56: 0 | Q56: 0
B57: 2.2.2.5 | C57: En trámite | D57: =D52-D53 -> 129 | E57: 130 | F57: 129 | G57: 135 | H57: 142 | I57: 145 | J57: 146 | K57: 147 | L57: 147 | M57: 155 | N57: 163 | P57: 1568 | Q57: 130.6666667
B58: Revocación de Licencia Municipal
B59: 2.2.3.1 | C59: Registro Anterior | D59: 110 | E59: =D65 -> 110 | F59: 111 | G59: 113 | H59: 113 | I59: 114 | J59: 115 | K59: 115 | L59: 120 | M59: 121 | N59: 122 | P59: =SUM(D59:O59) -> 1264 | Q59: =P59/12 -> 105.3333333
B60: 2.2.3.2 | C60: Abiertos en el Mes | D60: 0 | E60: 2 | F60: 3 | G60: 0 | H60: 2 | I60: 1 | J60: 2 | K60: 7 | L60: 1 | M60: 1 | N60: 2 | P60: 21 | Q60: 1.75
B61: 2.2.3.3 | C61: Iniciales en | D61: =D59+D60 -> 110 | E61: 112 | F61: 114 | G61: 113 | H61: 115 | I61: 115 | J61: 117 | K61: 122 | L61: 121 | M61: 122 | N61: 124 | P61: 1285 | Q61: 107.0833333
B62: 2.2.3.4 | C62: Resueltos y concluidos | D62: 0 | E62: 1 | F62: 1 | G62: 0 | H62: 1 | I62: 0 | J62: 2 | K62: 2 | L62: 0 | M62: 0 | N62: 0 | P62: 7 | Q62: 0.5833333333
C63: Procedentes | D63: 0 | E63: 0 | F63: 1 | G63: 0 | H63: 1 | I63: 0 | J63: 2 | K63: 0 | L63: 0 | M63: 0 | N63: 0 | P63: 4 | Q63: 0.3333333333
C64: Favorables al particular | D64: 0 | E64: 1 | F64: 0 | G64: 0 | H64: 0 | I64: 0 | J64: 0 | K64: 0 | L64: 0 | M64: 0 | N64: 0 | P64: 1 | Q64: 0.08333333333
B65: 2.2.3.5 | C65: En trámite | D65: =D61-D62 -> 110 | E65: 111 | F65: 113 | G65: 113 | H65: 114 | I65: 115 | J65: 115 | K65: 120 | L65: 121 | M65: 122 | N65: 124 | P65: 1278 | Q65: 106.5
B66: Responsabilidad Patrimonial
B67: 2.2.4.1 | C67: Registro Anterior | D67: 32 | E67: =D74 -> 34 | F67: 33 | G67: 33 | H67: 31 | I67: 31 | J67: 33 | K67: 40 | L67: 45 | M67: 54 | N67: 55 | P67: =SUM(D67:O67) -> 421 | Q67: =P67/12 -> 35.08333333
B68: 2.2.4.2 | C68: Abiertos en el Mes | D68: 4 | E68: 1 | F68: 2 | G68: 0 | H68: 2 | I68: 3 | J68: 8 | K68: 6 | L68: 12 | M68: 12 | N68: 7 | P68: 57 | Q68: 4.75
B69: 2.2.4.3 | C69: Iniciales en | D69: =D67+D68 -> 36 | E69: 35 | F69: 35 | G69: 33 | H69: 33 | I69: 34 | J69: 41 | K69: 46 | L69: 57 | M69: 66 | N69: 62 | P69: 478 | Q69: 39.83333333
B70: 2.2.4.4 | C70: Resueltos y concluidos | D70: 2 | E70: 2 | F70: 2 | G70: 2 | H70: 2 | I70: 1 | J70: 1 | K70: 1 | L70: 3 | M70: 11 | N70: 3 | P70: 30 | Q70: 2.5
C71: Favorables al particular | D71: 1 | E71: 2 | F71: 1 | G71: 1 | H71: 0 | I71: 0 | J71: 0 | K71: 1 | L71: 0 | M71: 0 | N71: 0 | P71: 6 | Q71: 0.5
C72: Favorables al aytto. | D72: 1 | E72: 0 | F72: 1 | G72: 1 | H72: 1 | I72: 1 | J72: 1 | K72: 0 | L72: 0 | M72: 6 | N72: 3 | P72: 15 | Q72: 1.25
C73: Incompetentes | D73: 0 | E73: 0 | F73: 0 | H73: 1 | I73: 0 | J73: 0 | K73: 0 | L73: 3 | M73: 5 | N73: 0 | P73: 9 | Q73: 0.75
B74: 2.2.4.5 | C74: En trámite | D74: =D69-D70 -> 34 | E74: 33 | F74: 33 | G74: 31 | H74: 31 | I74: 33 | J74: 40 | K74: 45 | L74: 54 | M74: 55 | N74: 59 | P74: 448 | Q74: 37.33333333
A75: 2.3 | B75: Área de Procedimientos Civiles.
B76: 2.3.1 Juicios Civiles
B77: 2.3.1.1 | C77: Registro Anterior | D77: 137 | E77: =D83 -> 142 | F77: 146 | G77: 151 | H77: 154 | I77: 158 | J77: 167 | K77: 171 | L77: 175 | M77: 181 | N77: 188 | P77: =SUM(D77:O77) -> 1770 | Q77: =AVERAGE(D77:O77) -> 160.9090909
B78: 2.3.1.2 | C78: Abiertos en el Mes | D78: 5 | E78: 4 | F78: 5 | G78: 3 | H78: 4 | I78: 9 | J78: 4 | K78: 4 | L78: 6 | M78: 7 | N78: 8 | P78: 59 | Q78: =AVERAGE(D78:O78) -> 5.363636364
B79: 2.3.1.3 | C79: Iniciales en | D79: =D77+D78 -> 142 | E79: 146 | F79: 151 | G79: 154 | H79: 158 | I79: 167 | J79: =J77+J78 -> 171 | K79: =K77+K78 -> 175 | L79: =L77+L78 -> 181 | M79: =M77+M78 -> 188 | N79: =N77+N78 -> 196 | P79: 1829 | Q79: =P80/P78 -> 0
B80: 2.3.1.4 | C80: Resueltos y concluidos | D80: 0 | E80: 0 | F80: 0 | G80: 0 | H80: 0 | I80: 0 | J80: 0 | K80: 0 | L80: 0 | M80: 0 | N80: 0 | P80: 0 | Q80: =AVERAGE(D80:O80) -> 0
C81: Favorables | D81: 0 | E81: 0 | F81: 0 | G81: 0 | H81: 0 | I81: 0 | J81: 0 | K81: 0 | L81: 0 | M81: 0 | N81: 0 | P81: 0 | Q81: =AVERAGE(D81:O81) -> 0
C82: Desfavorables | D82: 0 | E82: 0 | F82: 0 | G82: 0 | H82: 0 | I82: 0 | J82: 0 | K82: 0 | L82: 0 | M82: 0 | N82: 0 | P82: 0 | Q82: =AVERAGE(D82:O82) -> 0
B83: 2.3.1.5 | C83: En trámite | D83: =D79-D80 -> 142 | E83: 146 | F83: 151 | G83: 154 | H83: 158 | I83: 167 | J83: 171 | K83: 175 | L83: 181 | M83: 188 | N83: 196 | P83: 1829 | Q83: =AVERAGE(D83:P83) -> 304.8333333
B84: 2.3.4 Instancias.
B85: 2.3.4.1 | C85: Registro Anterior | D85: 10 | E85: =D89 -> 11 | F85: 11 | G85: 11 | H85: 11 | I85: 11 | J85: 11 | K85: 11 | L85: 11 | M85: 11 | N85: 11 | P85: =SUM(D85:O85) -> 120 | Q85: =AVERAGE(D85:O85) -> 10.90909091
B86: 2.3.4.2 | C86: Abiertos en el Mes | D86: 1 | E86: 0 | F86: 0 | G86: 0 | H86: 0 | I86: 0 | J86: 0 | K86: 0 | L86: 0 | M86: 0 | N86: 1 | P86: 2 | Q86: =AVERAGE(D86:O86) -> 0.1818181818
B87: 2.3.4.3 | C87: Iniciales en | D87: =D85+D86 -> 11 | E87: 11 | F87: 11 | G87: 11 | H87: 11 | I87: 11 | J87: =J85+J86 -> 11 | K87: =K85+K86 -> 11 | L87: =L85+L86 -> 11 | M87: =M85+M86 -> 11 | N87: 11 | P87: 121 | Q87: =P88/P86 -> 0.5
B88: 2.3.4.4 | C88: Resueltas y concluidas | D88: 0 | E88: 0 | F88: 0 | G88: 0 | H88: 0 | I88: 0 | J88: 0 | K88: 0 | L88: 0 | M88: 0 | N88: 1 | P88: 1 | Q88: =AVERAGE(D88:O88) -> 0.09090909091
B89: 2.3.4.5 | C89: En trámite | D89: =D87-D88 -> 11 | E89: 11 | F89: 11 | G89: 11 | H89: 11 | I89: 11 | J89: =J87-J88 -> 11 | K89: =K87-K88 -> 11 | L89: =L87-L88 -> 11 | M89: =M87-M88 -> 11 | N89: =N87-N88 -> 10 | P89: 120 | Q89: =AVERAGE(D89:P89) -> 20
B90: 2.3.5 Audiencias y diligencias en Juicios | D90: 5 | E90: 4 | F90: 5 | G90: 6 | H90: 6 | I90: 5 | J90: 4 | K90: 6 | L90: 13 | M90: 6 | N90: 6 | P90: 66 | Q90: =AVERAGE(D90:O90) -> 6
B91: 2.3.6 Asesorías y Reuniones. | D91: 4 | E91: 7 | F91: 5 | G91: 11 | H91: 10 | I91: 6 | J91: 4 | K91: 6 | L91: 8 | M91: 5 | N91: 5 | P91: 71 | Q91: =AVERAGE(D91:O91) -> 6.454545455
B92: 2.3.7 Oficios.
B93: 2.3.7.1 | C93: Recibidos en el Área | D93: 28 | E93: 24 | F93: 15 | G93: 21 | H93: 25 | I93: 47 | J93: 38 | K93: 34 | L93: 31 | M93: 24 | N93: 20 | P93: =SUM(D93:O93) -> 307 | Q93: =AVERAGE(D93:O93) -> 27.90909091
B94: 2.3.7.2 | C94: Generados por el Área | D94: 17 | E94: 7 | F94: 9 | G94: 14 | H94: 14 | I94: 16 | J94: 18 | K94: 9 | L94: 9 | M94: 10 | N94: 7 | P94: =SUM(D94:O94) -> 130 | Q94: =AVERAGE(D94:O94) -> 11.81818182
B95: Quejas ante la C.E.D.H.J.
B96: 2.3.2.1 | C96: Registro Anterior | D96: 62 | E96: =D103 -> 63 | F96: 66 | G96: 67 | H96: 69 | I96: 70 | J96: 74 | K96: 74 | L96: 76 | M96: 78 | N96: 86 | O96: 88 | P96: =SUM(D96:O96) -> 873 | Q96: =AVERAGE(D96:O96) -> 72.75
B97: 2.3.2.2 | C97: Abiertos en el Mes | D97: 3 | E97: 3 | F97: 1 | G97: 3 | H97: 2 | I97: 5 | J97: 1 | K97: 7 | L97: 2 | M97: 10 | N97: 3 | O97: 4 | P97: 44 | Q97: =AVERAGE(D97:O97) -> 3.666666667
B98: 2.3.2.3 | C98: Iniciales en | D98: =D96+D97 -> 65 | E98: 66 | F98: 67 | G98: 70 | H98: 71 | I98: 75 | J98: =J96+J97 -> 75 | K98: 81 | L98: 78 | M98: 88 | N98: 89 | O98: 92 | P98: 917 | Q98: =P99/P97 -> 0.3636363636
B99: 2.3.2.4 | C99: Resueltos y concluidos | D99: 2 | E99: 0 | F99: 0 | G99: 1 | H99: 1 | I99: 1 | J99: 1 | K99: 5 | L99: 0 | M99: 2 | N99: 1 | O99: 2 | P99: 16 | Q99: =AVERAGE(D99:O99) -> 1.333333333
C100: Se Archiva | D100: 2 | E100: 0 | F100: 0 | G100: 1 | H100: 1 | I100: 1 | J100: 1 | K100: 5 | L100: 0 | M100: 2 | N100: 1 | P100: 14 | Q100: =AVERAGE(D100:O100) -> 1.272727273
C101: Conciliación | D101: 0 | E101: 0 | F101: 0 | G101: 0 | H101: 0 | I101: 0 | J101: 0 | K101: 0 | L101: 0 | M101: 0 | N101: 0 | P101: 0 | Q101: =AVERAGE(D101:O101) -> 0
C102: Cumplimiento | D102: 0 | E102: 0 | F102: 0 | G102: 0 | H102: 0 | I102: 0 | J102: 0 | K102: 0 | L102: 0 | M102: 0 | N102: 0 | P102: 0 | Q102: =AVERAGE(D102:O102) -> 0
B103: 2.3.2.5 | C103: En trámite | D103: =D98-D99 -> 63 | E103: 66 | F103: 67 | G103: 69 | H103: 70 | I103: 74 | J103: 74 | K103: 76 | L103: 78 | M103: 86 | N103: 88 | O103: 90 | P103: =SUM(D103:O103) -> 901 | Q103: =AVERAGE(D103:P103) -> 138.6153846
B104: 2.3.7 Oficios.
B105: 2.3.7.1 | C105: Recibidos en el Área | D105: 17 | E105: 23 | F105: 12 | G105: 18 | H105: 27 | I105: 49 | J105: 80 | K105: 48 | L105: 29 | M105: 77 | N105: 32 | P105: =SUM(D105:O105) -> 412 | Q105: =AVERAGE(D105:O105) -> 37.45454545
B106: 2.3.7.2 | C106: Generados por el Área | D106: 18 | E106: 14 | F106: 20 | G106: 32 | H106: 24 | I106: 37 | J106: 54 | K106: 38 | L106: 30 | M106: 54 | N106: 27 | P106: =SUM(D106:O106) -> 348 | Q106: =AVERAGE(D106:O106) -> 31.63636364
B107: 2.3.3 Reclamaciones de Fianzas.
B108: 2.3.3.1 | C108: Registro Anterior | Q108: =AVERAGE(E108:O108) -> 
B109: 2.3.3.2 | C109: Abiertos en el Mes | Q109: =AVERAGE(D109:O109) -> 
B110: 2.3.3.3 | C110: Iniciales en | Q110: =AVERAGE(E110:O110) -> 
B111: 2.3.3.4 | C111: Resueltas y concluidas | Q111: =AVERAGE(D111:O111) -> 
C112: Pagadas | Q112: =AVERAGE(D112:O112) -> 
C113: sin responsabilidad | Q113: =AVERAGE(D113:O113) -> 
B114: 2.3.3.5 | C114: En trámite (2.3.3.1 menos 2.3.3.2) | Q114: =AVERAGE(D114:O114) -> 
A116: 2.4 | B116: Área de Procedimientos Laborales
B117: Juicios Laborales
B118: 2.4.1.1 | C118: Registro Anterior | D118: 344 | E118: =D126 -> 345 | F118: =E126 -> 352 | G118: 0 | H118: 0 | I118: 0 | J118: 0 | K118: 0 | L118: 0 | M118: 0 | N118: 0 | P118: =SUM(D118:O118) -> 1041 | Q118: =AVERAGE(D118:O118) -> 94.63636364
B119: 2.4.1.2 | C119: Abiertos en el Mes | D119: 1 | E119: 9 | F119: 11 | G119: 0 | H119: 0 | I119: 0 | J119: 0 | L119: 0 | M119: 0 | N119: 0 | P119: 21 | Q119: =AVERAGE(D119:O119) -> 2.1
B120: 2.4.1.3 | C120: Iniciales en | D120: =D118+D119 -> 345 | E120: =E118+E119 -> 354 | F120: =F118+F119 -> 363 | G120: 0 | H120: 0 | I120: 0 | J120: 0 | K120: 0 | L120: 0 | M120: 0 | N120: 0 | P120: 1062 | Q120: =P121/P119 -> 0.1904761905
B121: 2.4.1.4 | C121: Resueltos y concluidos | D121: 0 | E121: 2 | F121: 2 | G121: 0 | H121: 0 | I121: 0 | J121: 0 | K121: 0 | L121: 0 | M121: 0 | N121: 0 | P121: 4 | Q121: =AVERAGE(D121:O121) -> 0.3636363636
C122: Ganados | D122: 0 | E122: 0 | F122: 0 | G122: 0 | H122: 0 | I122: 0 | J122: 0 | K122: 0 | L122: 0 | M122: 0 | N122: 0 | P122: 0 | Q122: =AVERAGE(D122:O122) -> 0
C123: Perdidos | D123: 0 | E123: 0 | F123: 0 | G123: 0 | H123: 0 | I123: 0 | J123: 0 | K123: 0 | L123: 0 | M123: 0 | N123: 0 | P123: 0
C124: convenios | D124: 0 | E124: 0 | F124: 0 | G124: 0 | H124: 0 | I124: 0 | J124: 0 | K124: 0 | L124: 0 | M124: 0 | N124: 0 | P124: 0 | Q124: =AVERAGE(D124:O124) -> 0
C125: remitido a desp. Externo | D125: 0 | E125: 2 | F125: 2 | G125: 0 | H125: 0 | I125: 0 | J125: 0 | K125: 0 | L125: 0 | M125: 0 | N125: 0 | P125: 4
B126: 2.4.1.5 | C126: En trámite | D126: =D120-D121 -> 345 | E126: =E120-E121 -> 352 | F126: =F120-F121 -> 361 | G126: 0 | H126: 0 | I126: 0 | J126: 0 | K126: 0 | L126: 0 | M126: 0 | N126: 0 | P126: 1058 | Q126: =AVERAGE(D126:P126) -> 176.3333333
B127: 2.4.6 Audiencias y diligencias en Juicios y Proc | D127: 20 | E127: 10 | F127: 10 | G127: 0 | H127: 0 | I127: 0 | J127: 0 | K127: 0 | L127: 0 | M127: 0 | N127: 0 | P127: 40 | Q127: =AVERAGE(D127:O127) -> 3.636363636
B128: 2.4.6 Asesorías y Reuniones. | D128: 5 | E128: 10 | F128: 10 | G128: 0 | H128: 0 | I128: 0 | J128: 0 | K128: 0 | L128: 0 | M128: 0 | N128: 0 | P128: 25 | Q128: =AVERAGE(D128:O128) -> 2.272727273
B129: 2.4.7 Oficios.
B130: 2.4.7.1 | C130: Recibidos en el Área | D130: 54 | E130: 80 | F130: 100 | G130: 0 | H130: 0 | I130: 0 | J130: 0 | K130: 0 | L130: 0 | M130: 0 | N130: 0 | P130: =SUM(D130:O130) -> 234 | Q130: =AVERAGE(D130:O130) -> 21.27272727
B131: 2.4.7.2 | C131: Generados por el Área | D131: 44 | E131: 67 | F131: 67 | G131: 0 | H131: 0 | I131: 0 | J131: 0 | K131: 0 | L131: 0 | M131: 0 | N131: 0 | P131: =SUM(D131:O131) -> 178 | Q131: =AVERAGE(D131:O131) -> 16.18181818
B132: Responsabilidad Laboral
B133: 2.4.2.1 | C133: Registro Anterior | D133: 4 | E133: =D139 -> 7 | F133: 9 | G133: 10 | H133: 10 | I133: 14 | J133: 16 | K133: 14 | L133: 13 | M133: 14 | N133: 17 | P133: =SUM(D133:O133) -> 128 | Q133: =AVERAGE(D133:O133) -> 11.63636364
B134: 2.4.2.2 | C134: Abiertos en el Mes | D134: 4 | E134: 2 | F134: 1 | G134: 0 | H134: 4 | I134: 2 | J134: 2 | K134: 2 | L134: 4 | M134: 6 | P134: 27 | Q134: =AVERAGE(D134:O134) -> 2.7
B135: 2.4.2.3 | C135: Iniciales en | D135: =D133+D134 -> 8 | E135: 9 | F135: 10 | G135: 10 | H135: 14 | I135: 16 | J135: =J133+J134 -> 18 | K135: =K133+K134 -> 16 | L135: =L133+L134 -> 17 | M135: =M133+M134 -> 20 | N135: =N133+N134 -> 17 | P135: 155 | Q135: =P136/P134 -> 0.5185185185
B136: 2.4.2.4 | C136: Resueltos y concluidos | D136: 1 | E136: 0 | F136: 0 | G136: 0 | H136: 0 | I136: 0 | J136: 4 | K136: 3 | L136: 3 | M136: 3 | P136: 14 | Q136: =AVERAGE(D136:O136) -> 1.4
C137: con sanción | D137: 1 | E137: 0 | F137: 0 | G137: 0 | H137: 0 | I137: 0 | J137: 1 | K137: 3 | L137: 1 | M137: 0 | P137: 6 | Q137: =AVERAGE(D137:O137) -> 0.6
C138: sin sanción | D138: 0 | E138: 0 | F138: 0 | G138: 0 | H138: 0 | I138: 0 | J138: 3 | K138: 0 | L138: 2 | M138: 3 | P138: 8 | Q138: =AVERAGE(D138:O138) -> 0.8
B139: 2.4.3.5 | C139: En trámite | D139: =D135-D136 -> 7 | E139: 9 | F139: 10 | G139: 10 | H139: 14 | I139: 16 | J139: 14 | K139: 13 | L139: 14 | M139: 17 | N139: 17 | P139: =SUM(D139:O139) -> 141
B140: 2.4.6 Audiencias y Diligencias | E140: 5 | F140: 1 | G140: 3 | I140: 4 | J140: 2 | K140: 3 | L140: 2 | M140: 7 | P140: =SUM(D140:O140) -> 27 | Q140: =AVERAGE(D140:O140) -> 3.375
B141: 2.4.6 Asesorías y Reuniones. | D141: 7 | E141: 0 | F141: 2 | G141: 11 | H141: 6 | I141: 10 | J141: 9 | K141: 11 | L141: 7 | M141: 13 | P141: =SUM(D141:O141) -> 76 | Q141: =AVERAGE(D141:O141) -> 7.6
B142: 2.4.7 Oficios.
B143: 2.4.7.1 | C143: Recibidos en el Área | P143: =SUM(D143:O143) -> 0 | Q143: =AVERAGE(D143:O143) -> 
B144: 2.4.7.2 | C144: Generados por el Área | D144: 17 | E144: 8 | F144: 14 | G144: 0 | H144: 16 | I144: 4 | J144: 15 | K144: 17 | L144: 13 | M144: 22 | P144: =SUM(D144:O144) -> 126 | Q144: =AVERAGE(D144:O144) -> 12.6
B145: Responsabilidad Administrativa
B146: 2.4.3.1 | C146: Registro Anterior | D146: 70 | E146: =D153 -> 60 | F146: 64 | G146: 62 | H146: 52 | I146: 47 | J146: 37 | K146: 37 | L146: 35 | M146: 39 | P146: =SUM(D146:O146) -> 503 | Q146: =AVERAGE(D146:O146) -> 50.3
B147: 2.4.3.2 | C147: Abiertos en el Mes | D147: 8 | E147: 7 | F147: 4 | G147: 13 | H147: 8 | I147: 2 | J147: 11 | K147: 7 | L147: 10 | M147: 13 | P147: 83 | Q147: =AVERAGE(D147:O147) -> 8.3
B148: 2.4.3.3 | C148: Iniciales en | D148: =D146+D147 -> 78 | E148: 67 | F148: 68 | G148: 75 | H148: 60 | I148: 49 | J148: =J146+J147 -> 48 | K148: =K146+K147 -> 44 | L148: =L146+L147 -> 45 | M148: =M146+M147 -> 52 | P148: 586 | Q148: =P149/P147 -> 1.325301205
B149: 2.4.3.4 | C149: Resueltos y concluidos | D149: 18 | E149: 3 | F149: 6 | G149: 23 | H149: 13 | I149: 12 | J149: 11 | K149: 9 | L149: 6 | M149: 9 | P149: 110 | Q149: =AVERAGE(D149:O149) -> 11
C150: con sanción | D150: 1 | E150: 0 | F150: 0 | G150: 0 | H150: 1 | I150: 1 | J150: 0 | K150: 0 | L150: 0 | M150: 1 | P150: 4 | Q150: =AVERAGE(D150:O150) -> 0.4
C151: sin sanción | D151: 17 | E151: 3 | F151: 6 | G151: 23 | H151: 12 | I151: 11 | J151: 11 | K151: 9 | L151: 6 | M151: 8 | P151: 106 | Q151: =AVERAGE(D151:O151) -> 10.6
C152: remitido a desp. Externo | D152: 0 | E152: 0 | F152: 0 | G152: 0 | H152: 0 | I152: 0 | J152: 0 | K152: 0 | L152: 0 | M152: 0 | P152: 0
B153: 2.4.3.5 | C153: En trámite | D153: =D148-D149 -> 60 | E153: 64 | F153: 62 | G153: 52 | H153: 47 | I153: 37 | J153: 37 | K153: 35 | L153: 39 | M153: 43 | P153: 476
B154: 2.4.6 Audiencias y diligencias en Juicios y Proc | D154: 24 | E154: 25 | F154: 13 | G154: 24 | H154: 19 | I154: 20 | J154: 12 | K154: 13 | L154: 20 | M154: 34 | P154: 204 | Q154: =AVERAGE(D154:O154) -> 20.4
B155: 2.4.6 Asesorías y Reuniones. | D155: 22 | E155: 16 | F155: 19 | G155: 12 | H155: 22 | I155: 21 | J155: 23 | K155: 19 | L155: 40 | M155: 26 | P155: 220 | Q155: =AVERAGE(D155:O155) -> 22
B156: 2.4.7 Oficios.
B157: 2.4.7.1 | C157: Recibidos en el Área | D157: 87 | E157: 42 | F157: 35 | G157: 23 | H157: 44 | I157: 25 | J157: 40 | K157: 41 | L157: 27 | M157: 54 | P157: =SUM(D157:O157) -> 418 | Q157: =AVERAGE(D157:O157) -> 41.8
B158: 2.4.7.2 | C158: Generados por el Área | D158: 37 | E158: 43 | F158: 21 | G158: 38 | H158: 78 | I158: 55 | J158: 80 | K158: 65 | L158: 50 | M158: 121 | P158: =SUM(D158:O158) -> 588 | Q158: =AVERAGE(D158:O158) -> 58.8
A159: 2.5 | B159: Área de Procedimientos Penales
B160: Expedientes Generales (Av. Previas, Juicios, Internos)
B161: 2.5.1.1 | C161: Registro Anterior | D161: 498 | E161: =D165 -> 505 | F161: 524 | G161: 530 | H161: 495 | I161: 482 | J161: 487 | K161: 492 | L161: 495 | M161: 496 | P161: =SUM(D161:O161) -> 5004 | Q161: =AVERAGE(D161:O161) -> 500.4
B162: 2.5.1.2 | C162: Abiertos en el Mes | D162: 13 | E162: 19 | F162: 6 | G162: 12 | H162: 7 | I162: 7 | J162: 15 | K162: 8 | L162: 7 | M162: 12 | P162: =SUM(D162:O162) -> 106 | Q162: =AVERAGE(D162:O162) -> 10.6
B163: 2.5.1.3 | C163: Iniciales en | D163: =D161+D162 -> 511 | E163: 524 | F163: 530 | G163: 542 | H163: 502 | I163: 489 | J163: =J161+J162 -> 502 | K163: =K161+K162 -> 500 | L163: =L161+L162 -> 502 | M163: =M161+M162 -> 508 | P163: =SUM(D163:O163) -> 5110 | Q163: =P164/P162 -> 0.9433962264
B164: 2.5.1.4 | C164: Resueltos y concluidos | D164: 6 | E164: 0 | F164: 0 | G164: 47 | H164: 20 | I164: 2 | J164: 10 | K164: 5 | L164: 6 | M164: 4 | P164: =SUM(D164:O164) -> 100 | Q164: =AVERAGE(D164:O164) -> 10
B165: 2.5.1.5 | C165: En trámite | D165: =D163-D164 -> 505 | E165: 524 | F165: 530 | G165: 495 | H165: 482 | I165: 487 | J165: =J163-J164 -> 492 | K165: =K163-K164 -> 495 | L165: =L163-L164 -> 496 | M165: =M163-M164 -> 504 | P165: =SUM(D165:O165) -> 5010 | Q165: =AVERAGE(D165:P165) -> 910.9090909
C166: Favorables | Q166: =AVERAGE(D166:O166) -> 
C167: Archivados | Q167: =AVERAGE(D167:O167) -> 
B168: Expedientes Daños a bienes Propiedad Municipal
B169: 2.5.2.1 | C169: Registro Anterior | D169: 47 | E169: =D173 -> 64 | F169: 57 | G169: 69 | H169: 86 | I169: 81 | J169: 94 | K169: 81 | L169: 88 | M169: 91 | P169: =SUM(D169:O169) -> 758 | Q169: =AVERAGE(D169:O169) -> 75.8
B170: 2.5.2.2 | C170: Abiertos en el Mes | D170: 50 | E170: 20 | F170: 31 | G170: 35 | H170: 39 | I170: 40 | J170: 29 | K170: 25 | L170: 18 | M170: 23 | P170: 310 | Q170: =AVERAGE(D170:O170) -> 31
B171: 2.5.2.3 | C171: Iniciales en | D171: =D169+D170 -> 97 | E171: 84 | F171: 88 | G171: 104 | H171: 125 | I171: 121 | J171: =J169+J170 -> 123 | K171: =K169+K170 -> 106 | L171: =L169+L170 -> 106 | M171: =M169+M170 -> 114 | P171: 1068 | Q171: =P172/P170 -> 0.9032258065
B172: 2.5.2.4 | C172: Resueltos y concluidos | D172: 33 | E172: 27 | F172: 19 | G172: 18 | H172: 44 | I172: 27 | J172: 42 | K172: 18 | L172: 15 | M172: 37 | P172: 280 | Q172: =AVERAGE(D172:O172) -> 28
B173: 2.5.2.5 | C173: En trámite | D173: =D171-D172 -> 64 | E173: 57 | F173: 69 | G173: 86 | H173: 81 | I173: 94 | J173: =J171-J172 -> 81 | K173: =K171-K172 -> 88 | L173: =L171-L172 -> 91 | M173: =M171-M172 -> 77 | P173: 788 | Q173: =AVERAGE(D173:P173) -> 143.2727273
A174: , | B174: 2.5.2.4 | C174: Dinero Recaudado | D174: 157736.93 | E174: 120283.63 | F174: 80646.19 | G174: 39884.62 | H174: 173207.74 | I174: 777378.38 | J174: 192234.81 | K174: 34003.14 | L174: 34003.14 | M174: 66275.94 | P174: 1675654.52 | Q174: =AVERAGE(D174:O174) -> 167565.452
B175: 2.5.3 Preliberados.
B176: 2.5.3.1 | C176: Registro Anterior | D176: 778 | E176: =D180 -> 766 | F176: 759 | G176: 750 | H176: 734 | I176: 718 | J176: 717 | K176: 708 | L176: 697 | M176: 698 | P176: =SUM(D176:O176) -> 7325 | Q176: =AVERAGE(D176:O176) -> 732.5
B177: 2.5.3.2 | C177: Abiertos en el Mes | D177: 14 | E177: 17 | F177: 7 | G177: 9 | H177: 9 | I177: 11 | J177: 9 | K177: 12 | L177: 11 | M177: 16 | P177: 115 | Q177: =AVERAGE(D177:O177) -> 11.5
B178: 2.5.3.3 | C178: Iniciales en | D178: =D176+D177 -> 792 | E178: 783 | F178: 766 | G178: 759 | H178: 743 | I178: 729 | J178: =J176+J177 -> 726 | K178: =K176+K177 -> 720 | L178: =L176+L177 -> 708 | M178: =M176+M177 -> 714 | P178: 7440 | Q178: =P179/P177 -> 1.67826087
B179: 2.5.3.4 | C179: Cumplimentaron | D179: 26 | E179: 24 | F179: 16 | G179: 25 | H179: 25 | I179: 12 | J179: 18 | K179: 23 | L179: 10 | M179: 14 | P179: 193 | Q179: =AVERAGE(D179:O179) -> 19.3
B180: 2.5.3.5 | C180: En seguimiento | D180: =D178-D179 -> 766 | E180: 759 | F180: 750 | G180: 734 | H180: 718 | I180: 717 | J180: =J178-J179 -> 708 | K180: =K178-K179 -> 697 | L180: =L178-L179 -> 698 | M180: =M178-M179 -> 700 | P180: 7247 | Q180: =AVERAGE(D180:P180) -> 1317.636364
B181: 2.5.4 Audiencias y Diligencias | D181: 10 | E181: 10 | F181: 10 | G181: 10 | H181: 10 | I181: 10 | J181: 14 | K181: 16 | L181: 12 | M181: 8 | P181: 110 | Q181: =AVERAGE(D181:O181) -> 11
B182: 2.5.5 Asesorías y Reuniones. | D182: 10 | E182: 10 | F182: 10 | G182: 10 | H182: 10 | I182: 10 | J182: 12 | K182: 8 | L182: 14 | M182: 5 | P182: 99 | Q182: =AVERAGE(D182:O182) -> 9.9
B183: 2.5.6 Oficios.
B184: 2.5.6.1 | C184: Recibidos en el Área | D184: 78 | E184: 90 | F184: 70 | G184: 125 | H184: 103 | I184: 87 | J184: 69 | K184: 62 | L184: 58 | M184: 81 | P184: =SUM(D184:O184) -> 823 | Q184: =AVERAGE(D184:O184) -> 82.3
B185: 2.5.6.1 | C185: Generados por el Área | D185: 235 | E185: 192 | F185: 130 | G185: 170 | H185: 190 | I185: 160 | J185: 195 | K185: 136 | L185: 100 | M185: 74 | P185: =SUM(D185:O185) -> 1582 | Q185: =AVERAGE(D185:O185) -> 158.2
B190: LIC. ERNESTO GONZALEZ MARAGUED
B191: DIRECTOR JURIDICO CONTENCIOSO

Sheet 2016
B2: INDICADORES MENSUALES 2016 DIRERCCIÓN JURÍDICA CONTENCIOSA | D2: ENE | E2: FEB | F2: MAR | G2: ABR | H2: MAY | I2: JUN | J2: JUL | K2: AGO | L2: SEP | M2: OCT | N2: NOV | O2: DIC | P2: TOTAL | Q2: PROMEDIO
A3: 2.1 | B3: Área de Amparos y Agrario.
B4: Juicios de Amparo
B5: 2.1.1.1 | C5: Registro Anterior | D5: 482 | E5: =D13 -> 488 | F5: 567 | G5: 660 | H5: 712 | I5: 716 | J5: 684 | K5: 699 | L5: =K13 -> 683 | M5: =L13 -> 660 | N5: =M13 -> 666 | O5: =N13 -> 658 | P5: =SUM(D5:O5) -> 7675 | Q5: =P5/12 -> 639.5833333
B6: 2.1.1.2 | C6: Abiertos en el Mes | D6: 98 | E6: 85 | F6: 102 | G6: 76 | H6: 51 | I6: 39 | J6: 41 | K6: 31 | L6: 24 | M6: 31 | N6: 27 | O6: 31 | P6: =SUM(D6:O6) -> 636 | Q6: 53
B7: 2.1.1.3 | C7: Iniciales en | D7: =D5+D6 -> 580 | E7: 573 | F7: 669 | G7: 736 | H7: 763 | I7: 755 | J7: 725 | K7: 730 | L7: 707 | M7: 691 | N7: 693 | O7: 689 | P7: 8311 | Q7: 692.5833333
B8: 2.1.1.4 | C8: Resueltos y concluidos | D8: 92 | E8: 6 | F8: 9 | G8: 24 | H8: 47 | I8: 71 | J8: 26 | K8: 47 | L8: 47 | M8: 25 | N8: 35 | O8: 14 | P8: 443 | Q8: 36.91666667
C9: Sobreseimiento o Negativa de Amparo | D9: 61 | E9: 5 | F9: 6 | G9: 19 | H9: 24 | I9: 50 | J9: 12 | K9: 31 | L9: 24 | M9: 12 | N9: 22 | O9: 10 | P9: 276 | Q9: 23
C10: Concediendo el amparo | D10: 16 | E10: 0 | F10: 1 | G10: 1 | H10: 0 | I10: 8 | J10: 11 | K10: 5 | L10: 2 | M10: 4 | N10: 4 | O10: 2 | P10: 54 | Q10: 4.5
C11: Sobreseimiento y concede Amparo | D11: 9 | E11: 1 | F11: 2 | G11: 3 | H11: 12 | I11: 13 | J11: 3 | K11: 10 | L11: 7 | M11: 1 | N11: 0 | O11: 1 | P11: 62 | Q11: 5.166666667
C12: Sobresee, no Ampara y Ampara | D12: 6 | E12: 0 | F12: 0 | G12: 1 | H12: 11 | I12: 0 | J12: 0 | K12: 1 | L12: 13 | M12: 8 | N12: 8 | O12: 1 | P12: 49 | Q12: 4.083333333
B13: 2.1.1.5 | C13: En trámite | D13: =D7-D8 -> 488 | E13: 567 | F13: 660 | G13: 712 | H13: 716 | I13: 684 | J13: 699 | K13: 683 | L13: 660 | M13: 666 | N13: 658 | O13: 675 | P13: 7868 | Q13: 655.6666667
B14: 2.1.4 Audiencias y diligencias en Juicios. | D14: 98 | E14: 80 | F14: 30 | G14: 25 | H14: 25 | I14: 20 | J14: 30 | K14: 25 | L14: 30 | M14: 30 | N14: 30 | O14: 25 | P14: 448 | Q14: 37.33333333
B15: 2.1.5 Asesorías y Reuniones. | D15: 50 | E15: 30 | F15: 20 | G15: 15 | H15: 15 | I15: 20 | J15: 30 | K15: 25 | L15: 30 | M15: 30 | N15: 30 | O15: 25 | P15: 320 | Q15: 26.66666667
B16: 2.1.6 Oficios.
B17: 2.1.6.1 | C17: Recibidos en el Área | D17: 924 | E17: 799 | F17: 896 | G17: 1115 | H17: 981 | I17: 1031 | J17: 720 | K17: 779 | L17: 554 | M17: 691 | N17: 548 | O17: 436 | P17: =SUM(D17:O17) -> 9474 | Q17: =P17/12 -> 789.5
B18: 2.1.6.2 | C18: Generados por el Área | D18: 648 | E18: 586 | F18: 702 | G18: 802 | H18: 782 | I18: 774 | J18: 684 | K18: 680 | L18: 548 | M18: 646 | N18: 464 | O18: 339 | P18: =SUM(D18:O18) -> 7655 | Q18: =P18/12 -> 637.9166667
B19: Juicios Agrarios
B20: 2.1.2.1 | C20: Registro Anterior | D20: 75 | E20: =D26 -> 75 | F20: 75 | G20: 75 | H20: 75 | I20: 75 | J20: 72 | K20: 70 | L20: =K26 -> 70 | M20: =L26 -> 70 | N20: =M26 -> 70 | O20: =N26 -> 68 | P20: =SUM(D20:O20) -> 870 | Q20: =P20/12 -> 72.5
B21: 2.1.2.2 | C21: Abiertos en el Mes | D21: 0 | E21: 0 | F21: 0 | G21: 0 | H21: 0 | I21: 0 | J21: 0 | K21: 0 | L21: 0 | M21: 0 | N21: 0 | O21: 0 | P21: 0 | Q21: 0
B22: 2.1.2.3 | C22: Iniciales en | D22: =D20+D21 -> 75 | E22: 75 | F22: 75 | G22: 75 | H22: 75 | I22: 75 | J22: 72 | K22: 70 | L22: 70 | M22: 70 | N22: 70 | O22: 68 | P22: 870 | Q22: 72.5
B23: 2.1.2.4 | C23: Resueltos y concluidos | D23: 0 | E23: 0 | F23: 0 | G23: 0 | H23: 0 | I23: 3 | J23: 2 | K23: 0 | L23: 0 | M23: 0 | N23: 2 | O23: 0 | P23: 7 | Q23: 0.5833333333
C24: Favorables | D24: 0 | E24: 0 | F24: 0 | G24: 0 | H24: 0 | I24: 3 | J24: 2 | K24: 0 | L24: 0 | M24: 0 | N24: 2 | O24: 0 | P24: 7 | Q24: 0.5833333333
C25: Desfavorables | D25: 0 | E25: 0 | F25: 0 | G25: 0 | H25: 0 | I25: 0 | J25: 0 | K25: 0 | L25: 0 | M25: 0 | N25: 0 | O25: 0 | P25: 0 | Q25: 0
B26: 2.1.2.5 | C26: En trámite | D26: =D22-D23 -> 75 | E26: 75 | F26: 75 | G26: 75 | H26: 75 | I26: 72 | J26: 70 | K26: 70 | L26: 70 | M26: 70 | N26: 68 | O26: 68 | P26: 863 | Q26: 71.91666667
B27: 2.1.4 Audiencias y diligencias en Juicios. | D27: 4 | E27: 5 | F27: 4 | G27: 6 | H27: 3 | I27: 4 | J27: 2 | K27: 7 | L27: 1 | M27: 0 | N27: 3 | O27: 1 | P27: 40 | Q27: 3.333333333
B28: 2.1.5 Asesorías y Reuniones. | D28: 2 | E28: 5 | F28: 0 | G28: 8 | H28: 6 | I28: 8 | J28: 4 | K28: 5 | L28: 6 | M28: 0 | N28: 11 | O28: 9 | P28: 64 | Q28: 5.333333333
B29: 2.1.6 Oficios.
B30: 2.1.6.1 | C30: Recibidos en el Área | D30: 13 | E30: 42 | F30: 46 | G30: 25 | H30: 28 | I30: 26 | J30: 25 | K30: 17 | L30: 20 | M30: 0 | N30: 12 | O30: 7 | P30: =SUM(D30:O30) -> 261 | Q30: =P30/12 -> 21.75
B31: 2.1.6.2 | C31: Generados por el Área | D31: 13 | E31: 30 | F31: 46 | G31: 25 | H31: 28 | I31: 26 | J31: 12 | K31: 31 | L31: 37 | M31: 0 | N31: 14 | O31: 5 | P31: =SUM(D31:O31) -> 267 | Q31: =P31/12 -> 22.25
A34: 2.2 | B34: Área de Juicios Administrativos
B35: Juicios de Nulidad
B36: 2.2.1.1 | C36: Registro Anterior | D36: 1418 | E36: =D43 -> 1473 | F36: 1523 | G36: 1586 | H36: 1666 | I36: 1704 | J36: 1783 | K36: 1809 | L36: =K43 -> 1917 | M36: =L43 -> 2000 | N36: =M43 -> 2031 | O36: =N43 -> 2065 | P36: =SUM(D36:O36) -> 20975 | Q36: =P36/12 -> 1747.916667
B37: 2.2.1.2 | C37: Abiertos en el Mes | D37: 61 | E37: 61 | F37: 66 | G37: 86 | H37: 39 | I37: 92 | J37: 27 | K37: 109 | L37: 91 | M37: 55 | N37: 84 | O37: 34 | P37: 805 | Q37: 67.08333333
B38: 2.2.1.3 | C38: Iniciales en | D38: =D36+D37 -> 1479 | E38: 1534 | F38: 1589 | G38: 1672 | H38: 1705 | I38: 1796 | J38: 1810 | K38: 1918 | L38: 2008 | M38: 2055 | N38: 2115 | O38: 2099 | P38: 21780 | Q38: 1815
B39: 2.2.1.4 | C39: Resueltos y concluidos | D39: 6 | E39: 11 | F39: 3 | G39: 6 | H39: 1 | I39: 13 | J39: 1 | K39: 1 | L39: 8 | M39: 24 | N39: 50 | O39: 4 | P39: 128 | Q39: 10.66666667
C40: Favorables | D40: 3 | E40: 9 | F40: 1 | G40: 4 | H40: 0 | I40: 2 | J40: 1 | K40: 0 | L40: 6 | M40: 8 | N40: 19 | O40: 2 | P40: 55 | Q40: 4.583333333
C41: Desfavorables | D41: 3 | E41: 2 | F41: 2 | G41: 2 | H41: 1 | I41: 11 | J41: 0 | K41: 1 | L41: 2 | M41: 16 | N41: 31 | O41: 2 | P41: 73
C42: Turnadas a Despacho Externo | D42: 0 | E42: 0 | F42: 0 | G42: 0 | H42: 0 | I42: 0 | J42: 0 | K42: 0 | L42: 0 | M42: 0 | N42: 0 | O42: 0 | P42: =SUM(I42:O42) -> 0 | Q42: =P42/12 -> 0
B43: 2.2.1.5 | C43: En trámite | D43: =D38-D39 -> 1473 | E43: 1523 | F43: 1586 | G43: 1666 | H43: 1704 | I43: 1783 | J43: 1809 | K43: 1917 | L43: 2000 | M43: 2031 | N43: 2065 | O43: 2095
B44: 2.2.5 Audiencias y diligencias en Juicios | D44: 10 | E44: 15 | F44: 9 | G44: 10 | H44: 16 | I44: 23 | J44: 6 | K44: 4 | L44: 6 | M44: 9 | N44: 12 | O44: 6 | P44: 126 | Q44: 10.5
B45: 2.2.6 Asesorías y Reuniones. | D45: 10 | E45: 0 | F45: 0 | G45: 13 | H45: 10 | I45: 32 | J45: 20 | K45: 13 | L45: 15 | M45: 13 | N45: 22 | O45: 4 | P45: 152 | Q45: 12.66666667
B46: 2.2.7 Oficios.
B47: 2.2.7.1 | C47: Recibidos en el Área | D47: 46 | E47: 89 | F47: 55 | G47: 69 | H47: 40 | I47: 169 | J47: 52 | K47: 22 | L47: 22 | M47: 78 | N47: 55 | O47: 21 | P47: =SUM(D47:O47) -> 718 | Q47: =P47/12 -> 59.83333333
B48: 2.2.7.2 | C48: Generados por el Área | D48: 215 | E48: 179 | F48: 341 | G48: 260 | H48: 149 | I48: 383 | J48: 122 | K48: 264 | L48: 166 | M48: 309 | N48: 370 | O48: 162 | P48: =SUM(D48:O48) -> 2920 | Q48: =P48/12 -> 243.3333333
B49: Juicios de Lesividad
B50: 2.2.2.1 | C50: Registro Anterior | D50: 23 | E50: =D57 -> 22 | F50: 22 | G50: 23 | H50: 22 | I50: 22 | J50: 22 | K50: 22 | L50: =K57 -> 22 | M50: =L57 -> 22 | N50: =M57 -> 18 | O50: =N57 -> 18 | P50: =SUM(D50:O50) -> 258 | Q50: =P50/12 -> 21.5
B51: 2.2.2.2 | C51: Abiertos en el Mes | D51: 0 | E51: 0 | F51: 1 | G51: 0 | H51: 0 | I51: 0 | J51: 0 | K51: 1 | L51: 0 | M51: 0 | N51: 0 | O51: 0 | P51: 2 | Q51: 0.1666666667
B52: 2.2.2.3 | C52: Sub-total | D52: =D50+D51 -> 23 | E52: 22 | F52: 23 | G52: 23 | H52: 22 | I52: 22 | J52: 22 | K52: 23 | L52: 22 | M52: 22 | N52: 18 | O52: 18 | P52: 260 | Q52: 21.66666667
B53: 2.2.2.4 | C53: Resueltos y concluidos | D53: 1 | E53: 0 | F53: 0 | G53: 1 | H53: 0 | I53: 0 | J53: 0 | K53: 1 | L53: 0 | M53: 4 | N53: 0 | O53: 0 | P53: 7 | Q53: 0.5833333333
C54: Se declara la Nulidad del acto | D54: 0 | E54: 0 | F54: 0 | G54: 1 | H54: 0 | I54: 0 | J54: 0 | K54: 1 | L54: 0 | M54: 3 | N54: 0 | O54: 0 | P54: 5 | Q54: 0.4166666667
C55: Desist.de la accion y validez del acto (Fav.al Part.) | D55: 1 | E55: 0 | F55: 0 | G55: 0 | H55: 0 | I55: 0 | J55: 0 | K55: 0 | L55: 0 | M55: 1 | N55: 0 | O55: 0 | P55: 2 | Q55: 0.1666666667
C56: Defensa Legal en otras Dependencias | D56: 0 | E56: 0 | F56: 0 | G56: 0 | H56: 0 | I56: 0 | J56: 0 | K56: 0 | L56: 0 | M56: 0 | N56: 0 | O56: 0 | P56: 0 | Q56: 0
B57: 2.2.2.5 | C57: En trámite | D57: =D52-D53 -> 22 | E57: 22 | F57: 23 | G57: 22 | H57: 22 | I57: 22 | J57: 22 | K57: 22 | L57: 22 | M57: 18 | N57: 18 | O57: 18
A58: 2.3 | B58: Área de Procedimientos Administrativos
B59: Responsabilidad Laboral
B60: 2.3.1.1 | C60: Registro Anterior | D60: 3 | E60: =D66 -> 6 | F60: 7 | G60: 11 | H60: 14 | I60: 15 | J60: 14 | K60: 17 | L60: =K66 -> 17 | M60: =L66 -> 18 | N60: =M66 -> 15 | O60: =N66 -> 15 | P60: =SUM(D60:O60) -> 152 | Q60: =AVERAGE(D60:O60) -> 12.66666667
B61: 2.3.1.2 | C61: Abiertos en el Mes | D61: 3 | E61: 4 | F61: 6 | G61: 5 | H61: 5 | I61: 2 | J61: 3 | K61: 2 | L61: 5 | M61: 2 | N61: 2 | O61: 0 | P61: 39 | Q61: =AVERAGE(D61:O61) -> 3.25
B62: 2.3.1.3 | C62: Iniciales en | D62: =D60+D61 -> 6 | E62: 10 | F62: 13 | G62: 16 | H62: 19 | I62: 17 | J62: =J60+J61 -> 17 | K62: =K60+K61 -> 19 | L62: =L60+L61 -> 22 | M62: 20 | N62: 17 | O62: 15 | P62: 191 | Q62: =P63/P61 -> 0.7435897436
B63: 2.3.1.4 | C63: Resueltos y concluidos | D63: 0 | E63: 3 | F63: 2 | G63: 2 | H63: 4 | I63: 3 | J63: 0 | K63: 2 | L63: 4 | M63: 5 | N63: 2 | O63: 2 | P63: 29 | Q63: =AVERAGE(D63:O63) -> 2.416666667
C64: con sanción | D64: 0 | E64: 2 | F64: 1 | G64: 0 | H64: 1 | I64: 0 | J64: 0 | K64: 0 | L64: 2 | M64: 3 | N64: 0 | O64: 1 | P64: 10 | Q64: =AVERAGE(D64:O64) -> 0.8333333333
C65: sin sanción | D65: 0 | E65: 1 | F65: 1 | G65: 2 | H65: 3 | I65: 3 | J65: 0 | K65: 2 | L65: 2 | M65: 2 | N65: 2 | O65: 1 | P65: 19 | Q65: =AVERAGE(D65:O65) -> 1.583333333
B66: 2.3.1.5 | C66: En trámite | D66: =D62-D63 -> 6 | E66: 7 | F66: 11 | G66: 14 | H66: 15 | I66: 14 | J66: 17 | K66: 17 | L66: 18 | M66: 15 | N66: 15 | O66: 13 | P66: =SUM(D66:O66) -> 162
B67: 2.3.6 Audiencias y Diligencias | D67: 3 | E67: 3 | F67: 3 | G67: 7 | H67: 12 | I67: 9 | J67: 6 | K67: 7 | L67: 3 | M67: 8 | N67: 4 | O67: 3 | P67: =SUM(D67:O67) -> 68 | Q67: =AVERAGE(D67:O67) -> 5.666666667
B68: 2.3.7 Asesorías y Reuniones. | D68: 10 | E68: 17 | F68: 7 | G68: 9 | H68: 11 | I68: 7 | J68: 11 | K68: 11 | L68: 18 | M68: 14 | N68: 10 | O68: 10 | P68: =SUM(D68:O68) -> 135 | Q68: =AVERAGE(D68:O68) -> 11.25
B69: 2.3.8 Oficios.
B70: 2.3.8.1 | C70: Recibidos en el Área | E70: 13 | F70: 10 | G70: 8 | H70: 6 | I70: 3 | J70: 8 | K70: 13 | L70: 6 | M70: 9 | N70: 8 | O70: 4 | P70: =SUM(D70:O70) -> 88 | Q70: =AVERAGE(D70:O70) -> 8
B71: 2.3.8.2 | C71: Generados por el Área | D71: 23 | E71: 36 | F71: 35 | G71: 40 | H71: 18 | I71: 26 | J71: 18 | K71: 27 | L71: 28 | M71: 5 | N71: 38 | O71: 10 | P71: =SUM(D71:O71) -> 304 | Q71: =AVERAGE(D71:O71) -> 25.33333333
B72: Organo de Dontrol Disciplinario (OCD)
B73: 2.3.2.1 | C73: Registro Anterior | D73: 99 | E73: =D80 -> 109 | F73: =E80 -> 122 | G73: =F80 -> 136 | H73: =G80 -> 147 | I73: =H80 -> 145 | J73: =I80 -> 152 | K73: 155 | L73: =K80 -> 158 | M73: =L80 -> 173 | N73: =M80 -> 177 | O73: =N80 -> 173 | P73: =SUM(D73:O73) -> 1746 | Q73: =AVERAGE(D73:O73) -> 145.5
B74: 2.3.2.2 | C74: Abiertos en el Mes | D74: 27 | E74: 19 | F74: 15 | G74: 18 | H74: 11 | I74: 13 | J74: 13 | K74: 13 | L74: 21 | M74: 23 | N74: 13 | O74: 7 | P74: 193 | Q74: =AVERAGE(D74:O74) -> 16.08333333
B75: 2.3.2.3 | C75: Iniciales en | D75: =D73+D74 -> 126 | E75: 128 | F75: 137 | G75: 154 | H75: 158 | I75: 158 | J75: 165 | K75: 168 | L75: 179 | M75: 196 | N75: 190 | O75: 180 | P75: 1939 | Q75: =P76/P74 -> 0.621761658
B76: 2.3.2.4 | C76: Resueltos y concluidos | D76: 17 | E76: 6 | F76: 1 | G76: 7 | H76: 13 | I76: 6 | J76: 10 | K76: 10 | L76: 6 | M76: 19 | N76: 17 | O76: 8 | P76: 120 | Q76: =AVERAGE(D76:O76) -> 10
C77: con sanción | D77: 6 | E77: 5 | F77: 0 | G77: 1 | H77: 5 | I77: 0 | J77: 3 | K77: 3 | L77: 0 | M77: 1 | N77: 1 | O77: 2 | P77: 27 | Q77: =AVERAGE(D77:O77) -> 2.25
C78: sin sanción | D78: 11 | E78: 1 | F78: 1 | G78: 6 | H78: 8 | I78: 6 | J78: 7 | K78: 7 | L78: 6 | M78: 16 | N78: 16 | O78: 5 | P78: 90 | Q78: =AVERAGE(D78:O78) -> 7.5
C79: no se admite (acumulado | D79: 0 | E79: 0 | F79: 0 | G79: 0 | H79: 0 | I79: 0 | J79: 0 | K79: 0 | L79: 0 | M79: 2 | N79: 0 | O79: 1 | P79: 3
B80: 2.4.3.5 | C80: En trámite | D80: =D75-D76 -> 109 | E80: 122 | F80: 136 | G80: 147 | H80: 145 | I80: 152 | J80: 155 | K80: 158 | L80: 173 | M80: 177 | N80: 173 | O80: 172 | P80: 1819
B81: 2.4.6 Audiencias y diligencias en Juicios y Proc | D81: 26 | E81: 34 | F81: 28 | G81: 14 | H81: 11 | I81: 23 | J81: 24 | K81: 21 | L81: 21 | M81: 26 | N81: 18 | O81: 11 | P81: 257 | Q81: =AVERAGE(D81:O81) -> 21.41666667
B82: 2.4.6 Asesorías y Reuniones. | D82: 20 | E82: 28 | F82: 24 | G82: 23 | H82: 20 | I82: 16 | J82: 19 | K82: 24 | L82: 23 | M82: 31 | N82: 6 | O82: 17 | P82: 251 | Q82: =AVERAGE(D82:O82) -> 20.91666667
B83: 2.4.7 Oficios.
B84: 2.4.7.1 | C84: Recibidos en el Área | D84: 73 | E84: 50 | F84: 48 | G84: 55 | H84: 47 | I84: 59 | J84: 69 | K84: 62 | L84: 94 | M84: 75 | N84: 58 | O84: 46 | P84: =SUM(D84:O84) -> 736 | Q84: =AVERAGE(D84:O84) -> 61.33333333
B85: 2.4.7.2 | C85: Generados por el Área | D85: 72 | E85: 113 | F85: 63 | G85: 94 | H85: 57 | I85: 91 | J85: 74 | K85: 80 | L85: 138 | M85: 144 | N85: 88 | O85: 48 | P85: =SUM(D85:O85) -> 1062 | Q85: =AVERAGE(D85:O85) -> 88.5
B86: Recursos
B87: 2.2.2.1 | C87: Registro Anterior | D87: 56 | E87: =D93 -> 54 | F87: 50 | G87: 50 | H87: 54 | I87: 57 | J87: 56 | K87: 43 | L87: =K93 -> 31 | M87: =L93 -> 31 | N87: =M93 -> 34 | O87: =N93 -> 40 | P87: =SUM(D87:O87) -> 556 | Q87: =P87/12 -> 46.33333333
B88: 2.2.2.2 | C88: Abiertos en el Mes | D88: 8 | E88: 7 | F88: 10 | G88: 10 | H88: 10 | I88: 12 | J88: 12 | K88: 5 | L88: 9 | M88: 16 | N88: 11 | O88: 10 | P88: 120 | Q88: 10
B89: 2.2.2.3 | C89: Iniciales en | D89: =D87+D88 -> 64 | E89: 61 | F89: 60 | G89: 60 | H89: 64 | I89: 69 | J89: 68 | K89: 48 | L89: 40 | M89: 47 | N89: 45 | O89: 50 | P89: 676 | Q89: 56.33333333
B90: 2.2.2.4 | C90: Resueltos y concluidos | D90: 10 | E90: 11 | F90: 10 | G90: 6 | H90: 7 | I90: 13 | J90: 25 | K90: 17 | L90: 9 | M90: 13 | N90: 5 | O90: 0 | P90: 126 | Q90: 10.5
C91: Se confirma el acto reclamado | D91: 5 | E91: 9 | G91: 0 | H91: 2 | I91: 7 | J91: 13 | K91: 4 | L91: 5 | M91: 6 | N91: 1 | O91: 0 | P91: 52 | Q91: 4.333333333
C92: Favorables al particular | D92: 5 | E92: 2 | F92: 3 | G92: 6 | H92: 5 | I92: 6 | J92: 12 | K92: 13 | L92: 4 | M92: 7 | N92: 4 | O92: 0 | P92: 67 | Q92: 5.583333333
B93: 2.2.2.5 | C93: En trámite | D93: =D89-D90 -> 54 | E93: 50 | F93: 50 | G93: 54 | H93: 57 | I93: 56 | J93: 43 | K93: 31 | L93: 31 | M93: 34 | N93: 40 | O93: 50 | P93: 550 | Q93: 45.83333333
B94: Revocación de Licencia Municipal
B95: 2.2.3.1 | C95: Registro Anterior | D95: 103 | E95: =D102 -> 106 | F95: 106 | G95: 106 | H95: 107 | I95: 107 | J95: 36 | K95: 39 | L95: =K102 -> 38 | M95: =L102 -> 38 | N95: =M102 -> 36 | O95: =N102 -> 33 | P95: =SUM(D95:O95) -> 855 | Q95: =P95/12 -> 71.25
B96: 2.2.3.2 | C96: Abiertos en el Mes | D96: 3 | E96: 1 | F96: 0 | G96: 1 | H96: 0 | I96: 1 | J96: 3 | K96: 1 | L96: 1 | M96: 0 | N96: 0 | O96: 0 | P96: 11 | Q96: 0.9166666667
B97: 2.2.3.3 | C97: Iniciales en | D97: =D95+D96 -> 106 | E97: 107 | F97: 106 | G97: 107 | H97: 107 | I97: 108 | J97: 39 | K97: 40 | L97: 39 | M97: 38 | N97: 36 | O97: 33 | P97: 866 | Q97: 72.16666667
B98: 2.2.3.4 | C98: Resueltos y concluidos | D98: 0 | E98: 1 | F98: 0 | G98: 0 | H98: 0 | I98: 72 | J98: 0 | K98: 2 | L98: 1 | M98: 2 | N98: 3 | O98: 2 | P98: 83 | Q98: 6.916666667
C99: Procedentes | D99: 0 | E99: 1 | F99: 0 | G99: 0 | H99: 0 | I99: 1 | J99: 0 | K99: 0 | L99: 0 | M99: 0 | N99: 2 | O99: 1 | P99: 5 | Q99: 0.4166666667
C100: Favorables al particular | D100: 0 | E100: 0 | F100: 0 | G100: 0 | H100: 0 | I100: 6 | J100: 0 | K100: 2 | L100: 1 | M100: 0 | N100: 0 | O100: 1 | P100: 10 | Q100: 0.8333333333
C101: Caducidad | M101: 2 | N101: 1 | O101: 0 | P101: 3
B102: 2.2.3.5 | C102: En trámite | D102: =D97-D98 -> 106 | E102: 106 | F102: 106 | G102: 107 | H102: 107 | I102: =I97-I9798-I98 -> 36 | J102: =J97-J9798-J98 -> 39 | K102: =K97-K9798-K98 -> 38 | L102: =L97-L9798-L98 -> 38 | M102: 36 | N102: 33 | O102: 31
B103: 2.3.5 Audiencias y diligencias en Juicios | E103: 0 | F103: 0 | G103: 2 | H103: 1 | I103: 7 | J103: 0 | K103: 3 | L103: 2 | M103: 0 | N103: 0 | O103: 0 | P103: =SUM(D103:O103) -> 15 | Q103: =AVERAGE(D103:O103) -> 1.363636364
B104: 2.3.6 Asesorías y Reuniones. | E104: 15 | F104: 10 | G104: 13 | H104: 30 | I104: 9 | J104: 9 | K104: 8 | L104: 13 | M104: 15 | N104: 9 | O104: 11 | P104: =SUM(D104:O104) -> 142 | Q104: =AVERAGE(D104:O104) -> 12.90909091
B105: 2.3.7 Oficios.
B106: 2.3.7.1 | C106: Recibidos en el Área | E106: 0 | F106: 10 | G106: 11 | H106: 35 | I106: 8 | J106: 11 | K106: 18 | L106: 21 | M106: 25 | N106: 21 | O106: 15 | P106: =SUM(D106:O106) -> 175 | Q106: =AVERAGE(D106:O106) -> 15.90909091
B107: 2.3.7.2 | C107: Generados por el Área | E107: 22 | F107: 29 | G107: 41 | H107: 60 | I107: 62 | J107: 33 | K107: 30 | L107: 27 | M107: 51 | N107: 41 | O107: 33 | P107: =SUM(D107:O107) -> 429 | Q107: =AVERAGE(D107:O107) -> 39
B109: Responsabilidad Patrimonial
B110: 2.2.4.1 | C110: Registro Anterior | D110: 43 | E110: =D117 -> 48 | F110: 48 | G110: 48 | H110: 48 | I110: 40 | J110: 36 | K110: 45 | L110: =K117 -> 56 | M110: =L117 -> 67 | N110: =M117 -> 71 | O110: =N117 -> 79 | P110: =SUM(D110:O110) -> 629 | Q110: =P110/12 -> 52.41666667
B111: 2.2.4.2 | C111: Abiertos en el Mes | D111: 11 | E111: 4 | F111: 7 | G111: 4 | H111: 6 | I111: 8 | J111: 11 | K111: 22 | L111: 17 | M111: 17 | N111: 16 | O111: 4 | P111: 127 | Q111: 10.58333333
B112: 2.2.4.3 | C112: Iniciales en | D112: =D110+D111 -> 54 | E112: 52 | F112: 55 | G112: 52 | H112: 54 | I112: 48 | J112: 47 | K112: 67 | L112: 73 | M112: 84 | N112: 87 | O112: 83 | P112: 756 | Q112: 63
B113: 2.2.4.4 | C113: Resueltos y concluidos | D113: 6 | E113: 4 | F113: 7 | G113: 4 | H113: 14 | I113: 12 | J113: 2 | K113: 11 | L113: 6 | M113: 13 | N113: 8 | O113: 5 | P113: 92 | Q113: 7.666666667
C114: Favorables al particular | D114: 3 | E114: 1 | F114: 3 | G114: 2 | H114: 9 | I114: 5 | J114: 0 | K114: 4 | L114: 1 | M114: 1 | N114: 5 | O114: 2 | P114: 36 | Q114: 3
C115: Favorables al aytto. | D115: 2 | E115: 2 | F115: 1 | G115: 1 | H115: 3 | I115: 6 | J115: 1 | K115: 2 | L115: 4 | M115: 7 | N115: 2 | O115: 1 | P115: 32 | Q115: 2.666666667
C116: Incompetencias | D116: 1 | E116: 1 | F116: 2 | G116: 1 | H116: 2 | I116: 1 | J116: 1 | K116: 5 | L116: 1 | M116: 5 | N116: 1 | O116: 5 | P116: 26 | Q116: 2.166666667
B117: 2.2.4.5 | C117: En trámite | D117: =D112-D113 -> 48 | E117: 48 | F117: 48 | G117: 48 | H117: 40 | I117: 36 | J117: 45 | K117: 56 | L117: 67 | M117: 71 | N117: 79 | O117: 78 | P117: =SUM(D117:O117) -> 664 | Q117: 55.33333333
B118: 2.3.5 Audiencias y diligencias en Juicios | E118: 1 | F118: 1 | G118: 1 | H118: 3 | I118: 0 | J118: 0 | K118: 4 | L118: 0 | M118: 2 | N118: 0 | O118: 1 | P118: =SUM(D118:O118) -> 13 | Q118: =AVERAGE(D118:O118) -> 1.181818182
B119: 2.3.6 Asesorías y Reuniones. | E119: 15 | F119: 7 | G119: 17 | H119: 10 | I119: 7 | J119: 9 | K119: 17 | L119: 37 | M119: 35 | N119: 14 | O119: 14 | P119: =SUM(D119:O119) -> 182 | Q119: =AVERAGE(D119:O119) -> 16.54545455
B120: 2.3.7 Oficios.
B121: 2.3.7.1 | C121: Recibidos en el Área | E121: 17 | F121: 15 | G121: 14 | H121: 14 | I121: 13 | J121: 14 | K121: 26 | L121: 95 | M121: 81 | N121: 108 | O121: 30 | P121: =SUM(D121:O121) -> 427 | Q121: =AVERAGE(D121:O121) -> 38.81818182
B122: 2.3.7.2 | C122: Generados por el Área | E122: 16 | F122: 26 | G122: 16 | H122: 17 | I122: 12 | J122: 12 | K122: 24 | L122: 23 | M122: 41 | N122: 39 | O122: 7 | P122: =SUM(D122:O122) -> 233 | Q122: =AVERAGE(D122:O122) -> 21.18181818
A123: 2.4 | B123: Área de Procedimientos Civiles.
B124: 2.3.1 Juicios Civiles
B125: 2.3.1.1 | C125: Registro Anterior | D125: 323 | E125: =D131 -> 323 | F125: 326 | G125: 328 | H125: 332 | I125: 333 | J125: 334 | K125: 334 | L125: =K131 -> 337 | M125: =L131 -> 338 | N125: =M131 -> 339 | O125: =N131 -> 341 | P125: =SUM(D125:O125) -> 3988 | Q125: =AVERAGE(D125:O125) -> 332.3333333
B126: 2.3.1.2 | C126: Abiertos en el Mes | D126: 0 | E126: 4 | F126: 2 | G126: 4 | H126: 1 | I126: 1 | J126: 0 | K126: 3 | L126: 1 | M126: 1 | N126: 2 | O126: 3 | P126: 22 | Q126: =AVERAGE(D126:O126) -> 1.833333333
B127: 2.3.1.3 | C127: Iniciales en | D127: =D125+D126 -> 323 | E127: 327 | F127: 328 | G127: 332 | H127: 333 | I127: 334 | J127: 334 | K127: 337 | L127: 338 | M127: 339 | N127: 341 | O127: 344 | P127: 4010 | Q127: =P128/P126 -> 0.04545454545
B128: 2.3.1.4 | C128: Resueltos y concluidos | D128: 0 | E128: 1 | F128: 0 | G128: 0 | H128: 0 | I128: 0 | J128: 0 | K128: 0 | L128: 0 | M128: 0 | N128: 0 | O128: 0 | P128: 1 | Q128: =AVERAGE(D128:O128) -> 0.08333333333
C129: Favorables | D129: 0 | E129: 0 | F129: 0 | G129: 0 | H129: 0 | I129: 0 | J129: 0 | K129: 0 | L129: 0 | M129: 0 | N129: 0 | O129: 0 | P129: 0 | Q129: =AVERAGE(D129:O129) -> 0
C130: Desfavorables | D130: 0 | E130: 1 | F130: 0 | G130: 0 | H130: 0 | I130: 0 | J130: 0 | K130: 0 | L130: 0 | M130: 0 | N130: 0 | O130: 0 | P130: 1 | Q130: =AVERAGE(D130:O130) -> 0.08333333333
B131: 2.3.1.5 | C131: En trámite | D131: =D127-D128 -> 323 | E131: 326 | F131: 328 | G131: 332 | H131: 333 | I131: 334 | J131: 334 | K131: 337 | L131: 338 | M131: 339 | N131: 341 | O131: 344 | P131: 4009 | Q131: =AVERAGE(D131:P131) -> 616.7692308
B132: 2.3.4 Instancias.
B133: 2.3.4.1 | C133: Registro Anterior | D133: 11 | E133: =D137 -> 11 | F133: 11 | G133: 11 | H133: 11 | I133: 11 | J133: 11 | K133: =J137 -> 11 | L133: =K137 -> 11 | M133: =L137 -> 11 | N133: =M137 -> 11 | O133: =N137 -> 11 | P133: =SUM(D133:O133) -> 132 | Q133: =AVERAGE(D133:O133) -> 11
B134: 2.3.4.2 | C134: Abiertos en el Mes | D134: 0 | E134: 0 | F134: 0 | G134: 0 | H134: 0 | I134: 0 | J134: 0 | K134: 0 | L134: 0 | M134: 0 | N134: 0 | O134: 0 | P134: 0 | Q134: =AVERAGE(D134:O134) -> 0
B135: 2.3.4.3 | C135: Iniciales en | D135: =D133+D134 -> 11 | E135: 11 | F135: 11 | G135: 11 | H135: 11 | I135: 11 | J135: 11 | K135: 11 | L135: 11 | M135: 11 | N135: 11 | O135: 11 | P135: 132 | Q135: =P136/P134 -> 
B136: 2.3.4.4 | C136: Resueltas y concluidas | D136: 0 | E136: 0 | F136: 0 | G136: 0 | H136: 0 | I136: 0 | J136: 0 | K136: 0 | L136: 0 | M136: 0 | N136: 0 | O136: 0 | P136: 0 | Q136: =AVERAGE(D136:O136) -> 0
B137: 2.3.4.5 | C137: En trámite | D137: =D135-D136 -> 11 | E137: 11 | F137: 11 | G137: 11 | H137: 11 | I137: 11 | J137: 11 | K137: 11 | L137: 11 | M137: 11 | N137: 11 | O137: 11 | P137: 132 | Q137: =AVERAGE(D137:P137) -> 20.30769231
B138: 2.3.5 Audiencias y diligencias en Juicios | D138: 2 | E138: 5 | F138: 2 | G138: 4 | H138: 3 | I138: 2 | J138: 6 | K138: 4 | L138: 3 | M138: 6 | N138: 8 | O138: 3 | P138: 48 | Q138: =AVERAGE(D138:O138) -> 4
B139: 2.3.6 Asesorías y Reuniones. | D139: 11 | E139: 9 | F139: 15 | G139: 8 | H139: 12 | I139: 11 | J139: 14 | K139: 22 | L139: 20 | M139: 4 | N139: 9 | O139: 5 | P139: 140 | Q139: =AVERAGE(D139:O139) -> 11.66666667
B140: 2.3.7 Oficios.
B141: 2.3.7.1 | C141: Recibidos en el Área | D141: 25 | E141: 16 | F141: 8 | G141: 19 | H141: 42 | I141: 20 | J141: 13 | K141: 22 | L141: 17 | M141: 27 | N141: 27 | O141: 28 | P141: =SUM(D141:O141) -> 264 | Q141: =AVERAGE(D141:O141) -> 22
B142: 2.3.7.2 | C142: Generados por el Área | D142: 25 | E142: 16 | F142: 8 | G142: 19 | H142: 42 | I142: 20 | J142: 13 | K142: 22 | L142: 17 | M142: 27 | N142: 27 | O142: 11 | P142: =SUM(D142:O142) -> 247 | Q142: =AVERAGE(D142:O142) -> 20.58333333
A143: 2.5 | B143: Área de Procedimientos Penales
B144: Expedientes Generales (Av. Previas, Juicios, Internos)
B145: 2.5.1.1 | C145: Registro Anterior | D145: 573 | E145: =D149 -> 592 | F145: 606 | G145: 616 | H145: 619 | I145: 626 | J145: 628 | K145: =J149 -> 637 | L145: =K149 -> 646 | M145: =L149 -> 652 | N145: =M149 -> 654 | O145: =N149 -> 663 | P145: =SUM(D145:O145) -> 7512 | Q145: =AVERAGE(D145:O145) -> 626
B146: 2.5.1.2 | C146: Abiertos en el Mes | D146: 19 | E146: 18 | F146: 10 | G146: 11 | H146: 19 | I146: 12 | J146: 15 | K146: 19 | L146: 13 | M146: 9 | N146: 15 | O146: 3 | P146: =SUM(D146:O146) -> 163 | Q146: =AVERAGE(D146:O146) -> 13.58333333
B147: 2.5.1.3 | C147: Iniciales en | D147: =D145+D146 -> 592 | E147: 610 | F147: 616 | G147: 627 | H147: 638 | I147: 638 | J147: 643 | K147: 656 | L147: 659 | M147: 661 | N147: 669 | O147: 666 | P147: =SUM(D147:O147) -> 7675 | Q147: =P148/P146 -> 0.4846625767
B148: 2.5.1.4 | C148: Resueltos y concluidos | D148: 0 | E148: 4 | F148: 0 | G148: 8 | H148: 12 | I148: 10 | J148: 6 | K148: 10 | L148: 7 | M148: 7 | N148: 6 | O148: 9 | P148: =SUM(D148:O148) -> 79 | Q148: =AVERAGE(D148:O148) -> 6.583333333
B149: 2.5.1.5 | C149: En trámite | D149: =D147-D148 -> 592 | E149: 606 | F149: 616 | G149: 619 | H149: 626 | I149: 628 | J149: 637 | K149: 646 | L149: 652 | M149: 654 | N149: 663 | O149: 657 | P149: =SUM(D149:O149) -> 7596 | Q149: =AVERAGE(D149:P149) -> 1168.615385
C150: Favorables | Q150: =AVERAGE(D150:O150) -> 
C151: Archivados | Q151: =AVERAGE(D151:O151) -> 
B153: Expedientes Daños a bienes Propiedad Municipal
B154: 2.5.2.1 | C154: Registro Anterior | D154: 199 | E154: =D158 -> 198 | F154: 198 | G154: 204 | H154: 210 | I154: 207 | J154: 209 | K154: =J158 -> 208 | L154: =K158 -> 219 | M154: =L158 -> 227 | N154: =M158 -> 227 | O154: =N158 -> 221 | P154: =SUM(D154:O154) -> 2527 | Q154: =AVERAGE(D154:O154) -> 210.5833333
B155: 2.5.2.2 | C155: Abiertos en el Mes | D155: 20 | E155: 26 | F155: 21 | G155: 26 | H155: 23 | I155: 21 | J155: 16 | K155: 26 | L155: 27 | M155: 23 | N155: 17 | O155: 6 | P155: 252 | Q155: =AVERAGE(D155:O155) -> 21
B156: 2.5.2.3 | C156: Iniciales en | D156: =D154+D155 -> 219 | E156: 224 | F156: 219 | G156: 230 | H156: 233 | I156: 228 | J156: 225 | K156: 234 | L156: 246 | M156: 250 | N156: 244 | O156: 227 | P156: 2779 | Q156: =P157/P155 -> 0.9642857143
B157: 2.5.2.4 | C157: Resueltos y concluidos | D157: 21 | E157: 26 | F157: 15 | G157: 20 | H157: 26 | I157: 19 | J157: 17 | K157: 15 | L157: 19 | M157: 23 | N157: 23 | O157: 19 | P157: 243 | Q157: =AVERAGE(D157:O157) -> 20.25
B158: 2.5.2.5 | C158: En trámite | D158: =D156-D157 -> 198 | E158: 198 | F158: 204 | G158: 210 | H158: 207 | I158: 209 | J158: 208 | K158: 219 | L158: 227 | M158: 227 | N158: 221 | O158: 208 | P158: 2536 | Q158: =AVERAGE(D158:P158) -> 390.1538462
A159: , | B159: 2.5.2.4 | C159: Dinero Recaudado | D159: 121978.57 | E159: 151027.38 | F159: 41773.82 | G159: 164697.46 | H159: 148450.96 | I159: 45898.42 | J159: 63128 | K159: 70345 | L159: 68323 | M159: 174377 | N159: 123178 | O159: 56652 | P159: 1229829.61 | Q159: =AVERAGE(D159:O159) -> 102485.8008
B160: 2.5.3 Preliberados.
B161: 2.5.3.1 | C161: Registro Anterior | D161: 690 | E161: =D165 -> 681 | F161: 688 | G161: 686 | H161: 691 | I161: 693 | J161: 694 | K161: =J165 -> 690 | L161: =K165 -> 681 | M161: =L165 -> 680 | N161: =M165 -> 675 | O161: =N165 -> 660 | P161: =SUM(D161:O161) -> 8209 | Q161: =AVERAGE(D161:O161) -> 684.0833333
B162: 2.5.3.2 | C162: Abiertos en el Mes | D162: 3 | E162: 7 | F162: 6 | G162: 13 | H162: 12 | I162: 4 | J162: 5 | K162: 2 | L162: 5 | M162: 1 | N162: 5 | O162: 1 | P162: 64 | Q162: =AVERAGE(D162:O162) -> 5.333333333
B163: 2.5.3.3 | C163: Iniciales en | D163: =D161+D162 -> 693 | E163: 688 | F163: 694 | G163: 699 | H163: 703 | I163: 697 | J163: 699 | K163: 692 | L163: 686 | M163: 681 | N163: 680 | O163: 661 | P163: 8273 | Q163: =P164/P162 -> 1.5
B164: 2.5.3.4 | C164: Cumplimentaron | D164: 12 | E164: 0 | F164: 8 | G164: 8 | H164: 10 | I164: 3 | J164: 9 | K164: 11 | L164: 6 | M164: 6 | N164: 20 | O164: 3 | P164: 96 | Q164: =AVERAGE(D164:O164) -> 8
B165: 2.5.3.5 | C165: En seguimiento | D165: =D163-D164 -> 681 | E165: 688 | F165: 686 | G165: 691 | H165: 693 | I165: 694 | J165: 690 | K165: 681 | L165: 680 | M165: 675 | N165: 660 | O165: 658 | P165: 8177 | Q165: =AVERAGE(D165:P165) -> 1258
B166: 2.5.4 Audiencias y Diligencias | D166: 14 | E166: 20 | F166: 0 | G166: 10 | H166: 7 | I166: 10 | J166: 12 | K166: 20 | L166: 16 | M166: 22 | N166: 16 | O166: 10 | P166: 157 | Q166: =AVERAGE(D166:O166) -> 13.08333333
B167: 2.5.5 Asesorías y Reuniones. | D167: 12 | E167: 15 | F167: 5 | G167: 5 | H167: 12 | I167: 14 | J167: 18 | K167: 13 | L167: 15 | M167: 21 | N167: 25 | O167: 12 | P167: 167 | Q167: =AVERAGE(D167:O167) -> 13.91666667
B168: 2.5.6 Oficios.
B169: 2.5.6.1 | C169: Recibidos en el Área | D169: 89 | E169: 111 | F169: 68 | G169: 63 | H169: 90 | I169: 65 | J169: 40 | K169: 69 | L169: 73 | M169: 57 | N169: 37 | O169: 20 | P169: =SUM(D169:O169) -> 782 | Q169: =AVERAGE(D169:O169) -> 65.16666667
B170: 2.5.6.1 | C170: Generados por el Área | D170: 74 | E170: 151 | F170: 123 | G170: 139 | H170: 154 | I170: 148 | J170: 107 | K170: 142 | L170: 104 | M170: 133 | N170: 126 | O170: 68 | P170: =SUM(D170:O170) -> 1469 | Q170: =AVERAGE(D170:O170) -> 122.4166667
B175: LIC. GABRIEL ALBERTO LARA CASTRO
B176: DIRECTOR JURIDICO DE LO CONTENCIOSO

Sheet 2017
B2: INFORME MENSUAL DE ACT. 2017 DIRERCCIÓN JURÍDICA CONTENCIOSA | D2: ENE | E2: FEB | F2: MAR | G2: ABR | H2: MAY | I2: JUN | J2: JUL | K2: AGO | L2: SEP | M2: OCT | N2: NOV | O2: DIC | P2: TOTAL | Q2: PROMEDIO
A3: 2.1. | B3: Juicios de Amparo
B4: 2.1.1. | C4: Registro Anterior | D4: 675 | E4: =D12 -> 678 | F4: 730 | G4: 805 | H4: 852 | I4: 815 | J4: 812 | K4: 836 | L4: 803 | M4: 815 | N4: 816 | O4: 835 | Q4: =P4/12 -> 0
B5: 2.1.2 | C5: Abiertos en el Mes | D5: 39 | E5: 76 | F5: 106 | G5: 58 | H5: 54 | I5: 39 | J5: 34 | K5: 31 | L5: 28 | M5: 38 | N5: 60 | O5: 33 | P5: =SUM(D5:O5) -> 596 | Q5: 49.66666667
B6: 2.1.3 | C6: Iniciales en | D6: =D4+D5 -> 714 | E6: 754 | F6: 836 | G6: 863 | H6: 906 | I6: 854 | J6: 846 | K6: 867 | L6: 831 | M6: 853 | N6: 876 | O6: 868 | P6: 10068 | Q6: 839
B7: 2.1.4 | C7: Resueltos y concluidos | D7: 36 | E7: 24 | F7: 31 | G7: 11 | H7: 91 | I7: 42 | J7: 10 | K7: 64 | L7: 16 | M7: 37 | N7: 41 | O7: 10 | P7: 413 | Q7: 34.41666667
C8: Sobreseimiento o Negativa de Amparo | D8: 18 | E8: 9 | F8: 21 | G8: 8 | H8: 43 | I8: 27 | J8: 2 | K8: 42 | L8: 7 | M8: 20 | N8: 24 | O8: 3 | P8: 224 | Q8: 18.66666667
C9: Concediendo el amparo | D9: 8 | E9: 3 | F9: 3 | G9: 0 | H9: 11 | I9: 5 | J9: 3 | K9: 7 | L9: 1 | M9: 8 | N9: 4 | O9: 4 | P9: 57 | Q9: 4.75
C10: Sobreseimiento y concede Amparo | D10: 4 | E10: 3 | F10: 2 | G10: 0 | H10: 15 | I10: 5 | J10: 2 | K10: 9 | L10: 3 | M10: 5 | N10: 7 | O10: 2 | P10: 57 | Q10: 4.75
C11: Sobresee, no Ampara y Ampara | D11: 6 | E11: 9 | F11: 5 | G11: 350 | H11: 22 | I11: 5 | J11: 3 | K11: 6 | L11: 5 | M11: 4 | N11: 6 | O11: 2 | P11: 423 | Q11: 35.25
B12: 2.1.5 | C12: En trámite | D12: =D6-D7 -> 678 | E12: 730 | F12: 805 | G12: =G6-G7 -> 852 | H12: 815 | I12: 812 | J12: 836 | K12: 803 | L12: 815 | M12: 816 | N12: 835 | O12: 858 | P12: 9655 | Q12: 804.5833333
B13: 2.1.6 Audiencias y diligencias en Juicios. | D13: 25 | E13: 25 | F13: 25 | G13: 25 | H13: 22 | I13: 15 | J13: 25 | K13: 90 | L13: 20 | M13: 30 | N13: 35 | O13: 15 | P13: 352 | Q13: 29.33333333
B14: 2.1.7 Asesorías y Reuniones. | D14: 25 | E14: 25 | F14: 25 | G14: 25 | H14: 25 | I14: 15 | J14: 8 | K14: 73 | L14: 25 | M14: 30 | N14: 15 | O14: 10 | P14: 301 | Q14: 25.08333333
B15: 2.1.8 Oficios.
B16: 2.1.8.1 | C16: Recibidos en el Área | D16: 799 | E16: 676 | F16: 1088 | G16: 972 | H16: 1001 | I16: 863 | J16: 752 | K16: 691 | L16: 601 | M16: 660 | N16: 765 | O16: 503 | P16: =SUM(D16:O16) -> 9371 | Q16: =P16/12 -> 780.9166667
B17: 2.1.8.2 | C17: Generados por el Área | D17: 692 | E17: 529 | F17: 767 | G17: 694 | H17: 822 | I17: 787 | J17: 681 | K17: 495 | L17: 483 | M17: 504 | N17: 544 | O17: 562 | P17: =SUM(D17:O17) -> 7560 | Q17: =P17/12 -> 630
A18: 2.2 | B18: Juicios Agrarios
B19: 2.1.2.1 | C19: Registro Anterior | D19: 68 | E19: =D25 -> 65 | F19: 53 | G19: 53 | H19: 53 | I19: 53 | J19: 49 | K19: 45 | L19: 45 | M19: 46 | N19: 46 | O19: 49 | P19: =SUM(D19:O19) -> 625 | Q19: =P19/12 -> 52.08333333
B20: 2.1.2.2 | C20: Abiertos en el Mes | D20: 0 | E20: 0 | F20: 0 | G20: 0 | H20: 0 | I20: 0 | J20: 0 | K20: 0 | L20: 1 | M20: 0 | N20: 3 | O20: 0 | P20: 4 | Q20: 0.3333333333
B21: 2.1.2.3 | C21: Iniciales en | D21: =D19+D20 -> 68 | E21: 65 | F21: 53 | G21: 53 | H21: 53 | I21: 53 | J21: 49 | K21: 45 | L21: 46 | M21: 46 | N21: 49 | O21: 49 | P21: 629 | Q21: 52.41666667
B22: 2.1.2.4 | C22: Resueltos y concluidos | D22: 3 | E22: 12 | F22: 0 | G22: 0 | H22: 0 | I22: 4 | J22: 4 | K22: 0 | L22: 0 | M22: 0 | N22: 0 | O22: 0 | P22: 23 | Q22: 1.916666667
C23: Favorables | D23: 3 | E23: 12 | F23: 0 | G23: 0 | H23: 0 | I23: 4 | J23: 4 | K23: 0 | L23: 0 | M23: 0 | N23: 0 | O23: 0 | P23: 23 | Q23: 1.916666667
C24: Desfavorables | D24: 0 | E24: 0 | F24: 0 | G24: 0 | H24: 0 | I24: 0 | J24: 0 | K24: 0 | L24: 0 | M24: 0 | N24: 0 | O24: 0 | P24: 0 | Q24: 0
B25: 2.1.2.5 | C25: En trámite | D25: =D21-D22 -> 65 | E25: 53 | F25: 53 | G25: 53 | H25: 53 | I25: 49 | J25: 45 | K25: 45 | L25: 46 | M25: 46 | N25: 49 | O25: 49 | P25: 606 | Q25: 50.5
B26: 2.1.4 Audiencias y diligencias en Juicios. | D26: 5 | E26: 6 | F26: 6 | G26: 6 | H26: 5 | I26: 5 | J26: 0 | K26: 3 | L26: 3 | M26: 4 | N26: 5 | O26: 2 | Q26: 0
B27: 2.1.5 Asesorías y Reuniones. | D27: 9 | E27: 13 | F27: 5 | G27: 9 | H27: 9 | I27: 7 | J27: 5 | K27: 10 | L27: 8 | M27: 5 | N27: 15 | O27: 15 | P27: 110 | Q27: 9.166666667
B28: 2.1.6 Oficios.
B29: 2.1.6.1 | C29: Recibidos en el Área | D29: 25 | E29: 15 | F29: 8 | G29: 13 | H29: 14 | I29: 16 | J29: 17 | K29: 18 | L29: 25 | M29: 14 | N29: 16 | O29: 8 | P29: =SUM(D29:O29) -> 189 | Q29: =P29/12 -> 15.75
B30: 2.1.6.2 | C30: Generados por el Área | D30: 25 | E30: 34 | F30: 8 | G30: 6 | H30: 19 | I30: 57 | J30: 20 | K30: 27 | L30: 26 | M30: 16 | N30: 15 | O30: 3 | P30: =SUM(D30:O30) -> 256 | Q30: =P30/12 -> 21.33333333
D33: ENE | E33: FEB | F33: MAR | G33: ABR | H33: MAY | I33: JUN | J33: JUL | K33: AGO | L33: SEP | M33: OCT | N33: NOV | O33: DIC | P33: TOTAL | Q33: PROMEDIO
A34: 2.3 | B34: Área de Juicios Administrativos
B35: 2.3.1 Juicios de Nulidad
B36: 2.3.1.1 | C36: Registro Anterior | D36: 2095 | E36: =D43 -> 2098 | F36: 2159 | G36: 2266 | H36: 2351 | I36: 2405 | J36: 2496 | K36: 2260 | L36: 2396 | M36: 2480 | N36: 2568 | O36: 2571 | P36: =SUM(D36:O36) -> 28145 | Q36: =P36/12 -> 2345.416667
B37: 2.3.1.2 | C37: Abiertos en el Mes | D37: 87 | E37: 71 | F37: 112 | G37: 92 | H37: 57 | I37: 97 | J37: 63 | K37: 141 | L37: 91 | M37: 89 | N37: 100 | O37: 64 | P37: 1064 | Q37: 88.66666667
B38: 2.3.1.3 | C38: Iniciales en | D38: =D36+D37 -> 2182 | E38: 2169 | F38: 2271 | G38: 2358 | H38: 2408 | I38: 2502 | J38: 2559 | K38: 2401 | L38: 2487 | M38: 2569 | N38: 2668 | O38: 2635 | P38: 29209 | Q38: 2434.083333
B39: 2.3.1.4 | C39: Resueltos y concluidos | D39: 84 | E39: 10 | F39: 5 | G39: 7 | H39: 3 | I39: 6 | J39: 299 | K39: 5 | L39: 7 | M39: 1 | N39: 97 | O39: 3 | P39: 527 | Q39: 43.91666667
C40: Favorables | D40: 3 | E40: 8 | F40: 2 | G40: 4 | H40: 1 | I40: 3 | J40: 150 | K40: 1 | L40: 1 | M40: 0 | N40: 34 | O40: 3 | P40: 210 | Q40: 17.5
C41: Desfavorables | D41: 3 | E41: 2 | F41: 3 | G41: 3 | H41: 2 | I41: 3 | J41: 149 | K41: 4 | L41: 6 | M41: 1 | N41: 63 | O41: 0 | P41: 239 | Q41: 19.91666667
C42: Turnadas a Despacho Externo | D42: 0 | E42: 0 | F42: 0 | G42: 0 | H42: 0 | I42: 0 | J42: 0 | K42: 0 | L42: 0 | M42: 0 | N42: 0 | O42: 0 | P42: =SUM(I42:O42) -> 0 | Q42: =P42/12 -> 0
B43: 2.3.1.5 | C43: En trámite | D43: =D38-D39 -> 2098 | E43: 2159 | F43: 2266 | G43: 2351 | H43: 2405 | I43: 2496 | J43: 2260 | K43: 2396 | L43: 2480 | M43: 2568 | N43: 2571 | O43: 2632
B44: 2.3.1.6 Audiencias y diligencias en Juicios y Proc | D44: 12 | E44: 4 | F44: 1 | G44: 4 | H44: 2 | I44: 1 | J44: 2 | K44: 8 | L44: 12 | M44: 9 | N44: 8 | O44: 11 | P44: 74 | Q44: 6.166666667
B45: 2.3.1.7 Asesorías y Reuniones. | D45: 15 | E45: 13 | F45: 15 | G45: 22 | H45: 12 | I45: 13 | J45: 9 | K45: 13 | L45: 9 | M45: 20 | N45: 31 | O45: 18 | P45: 190 | Q45: 15.83333333
B46: 2.3.1.8 Oficios.
C47: Recibidos en el Área | D47: 25 | E47: 19 | F47: 22 | G47: 14 | H47: 8 | I47: 12 | J47: 24 | K47: 30 | L47: 67 | M47: 29 | N47: 36 | O47: 20 | P47: =SUM(D47:O47) -> 306 | Q47: =P47/12 -> 25.5
C48: Generados por el Área | D48: 297 | E48: 227 | F48: 318 | G48: 272 | H48: 236 | I48: 334 | J48: 218 | K48: 341 | L48: 244 | M48: 246 | N48: 299 | O48: 194 | P48: =SUM(D48:O48) -> 3226 | Q48: =P48/12 -> 268.8333333
B49: 2.3.2 Juicios de Lesividad
B50: 2.3.2.1 | C50: Registro Anterior | D50: 18 | E50: =D57 -> 18 | F50: 18 | G50: 18 | H50: 18 | I50: 18 | J50: 17 | K50: 19 | L50: 19 | M50: 19 | N50: 19 | O50: 19 | P50: =SUM(D50:O50) -> 220 | Q50: =P50/12 -> 18.33333333
B51: 2.3.2.2 | C51: Abiertos en el Mes | D51: 0 | E51: 0 | F51: 0 | G51: 0 | H51: 0 | I51: 0 | J51: 2 | K51: 0 | L51: 0 | M51: 0 | N51: 0 | O51: 0 | P51: 2 | Q51: 0.1666666667
B52: 2.3.2.3 | C52: Sub-total | D52: =D50+D51 -> 18 | E52: 18 | F52: 18 | G52: 18 | H52: 18 | I52: 18 | J52: 19 | K52: 19 | L52: 19 | M52: 19 | N52: 19 | O52: 19 | P52: 222 | Q52: 18.5
B53: 2.3.2.4 | C53: Resueltos y concluidos | D53: 0 | E53: 0 | F53: 0 | G53: 0 | H53: 0 | I53: 1 | J53: 0 | K53: 0 | L53: 0 | M53: 0 | N53: 0 | O53: 0 | P53: 1 | Q53: 0.08333333333
C54: Se declara la Nulidad del acto | D54: 0 | E54: 0 | F54: 0 | G54: 0 | H54: 0 | I54: 1 | J54: 0 | K54: 0 | L54: 0 | M54: 0 | N54: 0 | O54: 0 | P54: 1 | Q54: 0.08333333333
C55: desist.de la accion y validez del acto (Fav.al Part.) | D55: 0 | E55: 0 | F55: 0 | G55: 0 | H55: 0 | I55: 0 | J55: 0 | K55: 0 | L55: 0 | M55: 0 | N55: 0 | O55: 0 | P55: 0 | Q55: 0
C56: Defensa Legal en otras Dependencias | D56: 0 | E56: 0 | F56: 0 | G56: 0 | H56: 0 | I56: 0 | J56: 0 | K56: 0 | L56: 0 | M56: 0 | N56: 0 | O56: 0 | P56: 0 | Q56: 0
B57: 2.3.2.5 | C57: En trámite | D57: =D52-D53 -> 18 | E57: 18 | F57: 18 | G57: =G52-G53 -> 18 | H57: 18 | I57: 17 | J57: 19 | K57: 19 | L57: 19 | M57: 19 | N57: 19 | O57: 19
D63: ENE | E63: FEB | F63: MAR | G63: ABR | H63: MAY | I63: JUN | J63: JUL | K63: AGO | L63: SEP | M63: OCT | N63: NOV | O63: DIC | P63: TOTAL | Q63: PROMEDIO
A64: 2.3 | B64: Área de Procedimientos Administrativos
B65: Responsabilidad Laboral
B66: 2.3.1.1 | C66: Registro Anterior | D66: 13 | E66: =D72 -> 15 | F66: 13 | G66: 10 | H66: 9 | I66: 11 | J66: 11 | K66: 15 | L66: 18 | M66: =L72 -> 14 | N66: =M72 -> 17 | O66: =N72 -> 21 | P66: =SUM(D66:O66) -> 167 | Q66: =AVERAGE(D66:O66) -> 13.91666667
B67: 2.3.1.2 | C67: Abiertos en el Mes | D67: 6 | E67: 3 | F67: 2 | G67: 3 | H67: 4 | I67: 3 | J67: 7 | K67: 10 | L67: 5 | M67: 9 | N67: 7 | O67: 1 | P67: 60 | Q67: =AVERAGE(D67:O67) -> 5
B68: 2.3.1.3 | C68: Iniciales en | D68: =D66+D67 -> 19 | E68: 18 | F68: 15 | G68: 13 | H68: 13 | I68: 14 | J68: 18 | K68: 25 | L68: 23 | M68: =M66+M67 -> 23 | N68: =N66+N67 -> 24 | O68: =O66+O67 -> 22 | P68: 227 | Q68: =P69/P67 -> 1
B69: 2.3.1.4 | C69: Resueltos y concluidos | D69: 4 | E69: 5 | F69: 5 | G69: 4 | H69: 2 | I69: 3 | J69: 3 | K69: 7 | L69: 9 | M69: 6 | N69: 3 | O69: 9 | P69: 60 | Q69: =AVERAGE(D69:O69) -> 5
C70: con sanción | D70: 3 | E70: 2 | F70: 1 | G70: 2 | H70: 1 | I70: 3 | J70: 0 | K70: 2 | L70: 3 | M70: 2 | N70: 1 | O70: 4 | P70: 24 | Q70: =AVERAGE(D70:O70) -> 2
C71: sin sanción | D71: 1 | E71: 3 | F71: 4 | G71: 2 | H71: 1 | I71: 0 | J71: 3 | K71: 5 | L71: 6 | M71: 4 | N71: 2 | O71: 5 | P71: 36 | Q71: =AVERAGE(D71:O71) -> 3
B72: 2.3.1.5 | C72: En trámite | D72: =D68-D69 -> 15 | E72: 13 | F72: 10 | G72: 9 | H72: 11 | I72: 11 | J72: 15 | K72: 18 | L72: 14 | M72: 17 | N72: 21 | O72: 13 | P72: =SUM(D72:O72) -> 167
B73: 2.3.6 Audiencias y Diligencias | D73: 9 | E73: 10 | F73: 9 | G73: 4 | H73: 6 | I73: 7 | J73: 6 | K73: 16 | L73: 14 | M73: 15 | N73: 11 | O73: 9 | P73: =SUM(D73:O73) -> 116 | Q73: =AVERAGE(D73:O73) -> 9.666666667
B74: 2.3.7 Asesorías y Reuniones. | D74: 7 | E74: 13 | F74: 17 | G74: 7 | H74: 7 | I74: 13 | J74: 19 | K74: 13 | L74: 12 | M74: 13 | N74: 12 | O74: 7 | P74: =SUM(D74:O74) -> 140 | Q74: =AVERAGE(D74:O74) -> 11.66666667
B75: 2.3.8 Oficios.
B76: 2.3.8.1 | C76: Recibidos en el Área | D76: 10 | E76: 11 | F76: 12 | G76: 4 | H76: 8 | I76: 19 | J76: 18 | K76: 25 | L76: 13 | M76: 16 | N76: 16 | O76: 13 | P76: =SUM(D76:O76) -> 165 | Q76: =AVERAGE(D76:O76) -> 13.75
B77: 2.3.8.2 | C77: Generados por el Área | D77: 31 | E77: 24 | F77: 39 | G77: 17 | H77: 23 | I77: 34 | J77: 39 | K77: 70 | L77: 43 | M77: 53 | N77: 65 | O77: 27 | P77: =SUM(D77:O77) -> 465 | Q77: =AVERAGE(D77:O77) -> 38.75
B78: Organo de Control Disciplinario (OCD)
B79: 2.3.2.1 | C79: Registro Anterior | D79: 172 | E79: =D86 -> 164 | F79: 148 | G79: 148 | H79: 145 | I79: 134 | J79: 141 | K79: 151 | L79: =K86 -> 159 | M79: 157 | N79: 160 | O79: 161 | P79: =SUM(D79:O79) -> 1840 | Q79: =AVERAGE(D79:O79) -> 153.3333333
B80: 2.3.2.2 | C80: Abiertos en el Mes | D80: 14 | E80: 8 | F80: 13 | G80: 3 | H80: 17 | I80: 16 | J80: 14 | K80: 11 | L80: 12 | M80: 14 | N80: 7 | O80: 6 | P80: 135 | Q80: =AVERAGE(D80:O80) -> 11.25
B81: 2.3.2.3 | C81: Iniciales en | D81: =D79+D80 -> 186 | E81: 172 | F81: 161 | G81: 151 | H81: 162 | I81: 150 | J81: 155 | K81: =K79+K80 -> 162 | L81: =L79+L80 -> 171 | M81: =M79+M80 -> 171 | N81: =N79+N80 -> 167 | O81: =O79+O80 -> 167 | P81: 1975 | Q81: =P82/P80 -> 1.074074074
B82: 2.3.2.4 | C82: Resueltos y concluidos | D82: 22 | E82: 24 | F82: 13 | G82: 6 | H82: 28 | I82: 9 | J82: 4 | K82: 3 | L82: 14 | M82: 11 | N82: 6 | O82: 5 | P82: 145 | Q82: =AVERAGE(D82:O82) -> 12.08333333
C83: con sanción | D83: 8 | E83: 18 | F83: 1 | G83: 1 | H83: 27 | I83: 1 | J83: 1 | K83: 2 | L83: 7 | M83: 5 | N83: 4 | O83: 3 | P83: 78 | Q83: =AVERAGE(D83:O83) -> 6.5
C84: sin sanción | D84: 14 | E84: 5 | F84: 12 | G84: 5 | H84: 0 | I84: 8 | J84: 3 | K84: 1 | L84: 6 | M84: 6 | N84: 2 | O84: 2 | P84: 64 | Q84: =AVERAGE(D84:O84) -> 5.333333333
C85: no se admite (acumulado | D85: 0 | E85: 1 | F85: 0 | G85: 0 | H85: 1 | I85: 0 | J85: 0 | K85: 0 | L85: 1 | M85: 0 | N85: 0 | O85: 0 | P85: 3
B86: 2.4.3.5 | C86: En trámite | D86: =D81-D82 -> 164 | E86: 148 | F86: 148 | G86: 145 | H86: 134 | I86: 141 | J86: 151 | K86: =K81-K82 -> 159 | L86: =L81-L82 -> 157 | M86: =M81-M82 -> 160 | N86: =N81-N82 -> 161 | O86: =O81-O82 -> 162 | P86: 1830
B87: 2.4.6 Audiencias y diligencias en Proc | D87: 15 | E87: 21 | F87: 25 | G87: 18 | H87: 25 | I87: 20 | J87: 26 | K87: 19 | L87: 35 | M87: 33 | N87: 42 | O87: 23 | P87: 302 | Q87: =AVERAGE(D87:O87) -> 25.16666667
B88: 2.4.6 Asesorías y Reuniones. | D88: 18 | E88: 18 | F88: 19 | G88: 22 | H88: 26 | I88: 17 | J88: 17 | K88: 25 | L88: 37 | M88: 36 | N88: 28 | O88: 17 | P88: 280 | Q88: =AVERAGE(D88:O88) -> 23.33333333
B89: 2.4.7 Oficios.
B90: 2.4.7.1 | C90: Recibidos en el Área | D90: 68 | E90: 46 | F90: 57 | G90: 26 | H90: 62 | I90: 81 | J90: 141 | K90: 98 | L90: 83 | M90: 88 | N90: 75 | O90: 51 | P90: =SUM(D90:O90) -> 876 | Q90: =AVERAGE(D90:O90) -> 73
B91: 2.4.7.2 | C91: Generados por el Área | D91: 134 | E91: 86 | F91: 77 | G91: 45 | H91: 128 | I91: 154 | J91: 144 | K91: 129 | L91: 107 | M91: 119 | N91: 144 | O91: 41 | P91: =SUM(D91:O91) -> 1308 | Q91: =AVERAGE(D91:O91) -> 109
D97: ENE | E97: FEB | F97: MAR | G97: ABR | H97: MAY | I97: JUN | J97: JUL | K97: AGO | L97: SEP | M97: OCT | N97: NOV | O97: DIC | P97: TOTAL | Q97: PROMEDIO
B98: Recursos
B99: 2.2.2.1 | C99: Registro Anterior | D99: 50 | E99: =D105 -> 57 | F99: 65 | G99: 70 | H99: 80 | I99: 74 | J99: 84 | K99: 84 | L99: 82 | M99: 83 | N99: 77 | O99: 84 | P99: =SUM(D99:O99) -> 890 | Q99: =P99/12 -> 74.16666667
B100: 2.2.2.2 | C100: Abiertos en el Mes | D100: 11 | E100: 14 | F100: 14 | G100: 14 | H100: 5 | I100: 21 | J100: 13 | K100: 12 | L100: 17 | M100: 9 | N100: 7 | O100: 5 | P100: 142 | Q100: 11.83333333
B101: 2.2.2.3 | C101: Iniciales en | D101: =D99+D100 -> 61 | E101: 71 | F101: 79 | G101: 84 | H101: 85 | I101: 95 | J101: 97 | K101: 96 | L101: 99 | M101: 92 | N101: 84 | O101: 89 | P101: 1032 | Q101: 86
B102: 2.2.2.4 | C102: Resueltos y concluidos | D102: 4 | E102: 6 | F102: 9 | G102: 4 | H102: 11 | I102: 11 | J102: 13 | K102: 14 | L102: 16 | M102: 15 | N102: 0 | O102: 23 | P102: 126 | Q102: 10.5
C103: Se confirma el acto reclamado | D103: 2 | E103: 3 | F103: 3 | G103: 4 | H103: 5 | I103: 2 | J103: 6 | K103: 10 | L103: 13 | M103: 9 | N103: 0 | O103: 3 | P103: 60 | Q103: 5
C104: Favorables al particular | D104: 2 | E104: 3 | F104: 6 | G104: 0 | H104: 6 | I104: 9 | J104: 6 | K104: 4 | L104: 3 | M104: 6 | N104: 0 | O104: 20 | P104: 65 | Q104: 5.416666667
B105: 2.2.2.5 | C105: En trámite | D105: =D101-D102 -> 57 | E105: 65 | F105: 70 | G105: 80 | H105: 74 | I105: 84 | J105: 84 | K105: 82 | L105: 83 | M105: 77 | N105: 84 | O105: 66 | P105: 906 | Q105: 75.5
B106: Revocación de Licencia Municipal
B107: 2.2.3.1 | C107: Registro Anterior | D107: 31 | E107: =D113 -> 29 | F107: 27 | G107: 25 | H107: 32 | I107: 31 | J107: 31 | K107: 33 | L107: 30 | M107: 31 | N107: 33 | O107: 34 | P107: =SUM(D107:O107) -> 367 | Q107: =P107/12 -> 30.58333333
B108: 2.2.3.2 | C108: Abiertos en el Mes | D108: 0 | E108: 1 | F108: 1 | G108: 8 | H108: 2 | I108: 1 | J108: 2 | K108: 1 | L108: 1 | M108: 2 | N108: 1 | O108: 0 | P108: 20 | Q108: 1.666666667
B109: 2.2.3.3 | C109: Iniciales en | D109: =D107+D108 -> 31 | E109: 30 | F109: 28 | G109: 33 | H109: 34 | I109: 32 | J109: 33 | K109: 34 | L109: 31 | M109: 33 | N109: 34 | O109: 34 | P109: 387 | Q109: 32.25
B110: 2.2.3.4 | C110: Resueltos y concluidos | D110: 2 | E110: 3 | F110: 3 | G110: 1 | H110: 3 | I110: 1 | J110: 0 | K110: 4 | L110: 0 | M110: 0 | N110: 0 | O110: 6 | P110: 23 | Q110: 1.916666667
C111: Procedentes | D111: 1 | E111: 1 | F111: 2 | G111: 0 | H111: 0 | I111: 1 | J111: 0 | K111: 3 | L111: 0 | M111: 0 | N111: 0 | O111: 6 | P111: 14 | Q111: 1.166666667
C112: Favorables al particular | D112: 1 | E112: 2 | F112: 1 | G112: 1 | H112: 3 | I112: 0 | J112: 0 | K112: 1 | L112: 0 | M112: 0 | N112: 0 | O112: 0 | P112: 9 | Q112: 0.75
B113: 2.2.3.5 | C113: En trámite | D113: =D109-D110 -> 29 | E113: 27 | F113: 25 | G113: 32 | H113: 31 | I113: 31 | J113: 33 | K113: 30 | L113: 31 | M113: 33 | N113: 34 | O113: 28
B114: 2.3.5 Audiencias y diligencias en Juicios | D114: 0 | E114: 0 | F114: 0 | G114: 0 | H114: 2 | I114: 2 | J114: 3 | K114: 7 | L114: 3 | M114: 3 | N114: 0 | O114: 0 | P114: =SUM(D114:O114) -> 20 | Q114: =AVERAGE(D114:O114) -> 1.666666667
B115: 2.3.6 Asesorías y Reuniones. | D115: 8 | E115: 3 | F115: 18 | G115: 11 | H115: 21 | I115: 14 | J115: 15 | K115: 11 | L115: 10 | M115: 13 | N115: 15 | O115: 10 | P115: =SUM(D115:O115) -> 149 | Q115: =AVERAGE(D115:O115) -> 12.41666667
B116: 2.3.7 Oficios.
B117: 2.3.7.1 | C117: Recibidos en el Área | D117: 16 | E117: 17 | F117: 19 | G117: 12 | H117: 48 | I117: 35 | J117: 21 | K117: 18 | L117: 19 | M117: 42 | N117: 20 | O117: 19 | P117: =SUM(D117:O117) -> 286 | Q117: =AVERAGE(D117:O117) -> 23.83333333
B118: 2.3.7.2 | C118: Generados por el Área | D118: 38 | E118: 28 | F118: 64 | G118: 25 | H118: 43 | I118: 67 | J118: 55 | K118: 58 | L118: 46 | M118: 60 | N118: 51 | O118: 23 | P118: =SUM(D118:O118) -> 558 | Q118: =AVERAGE(D118:O118) -> 46.5
B119: Responsabilidad Patrimonial
B120: 2.2.4.1 | C120: Registro Anterior | D120: 78 | E120: =D127 -> 69 | F120: =E127 -> 64 | G120: =F127 -> 60 | H120: 63 | I120: 60 | J120: 61 | K120: 58 | L120: 57 | M120: 61 | N120: 64 | O120: 58 | P120: =SUM(D120:O120) -> 753 | Q120: =P120/12 -> 62.75
B121: 2.2.4.2 | C121: Abiertos en el Mes | D121: 6 | E121: 2 | F121: 1 | G121: 5 | H121: 5 | I121: 10 | J121: 3 | K121: 10 | L121: 15 | M121: 9 | N121: 7 | O121: 4 | P121: 77 | Q121: 6.416666667
B122: 2.2.4.3 | C122: Iniciales en | D122: =D120+D121 -> 84 | E122: 71 | F122: 65 | G122: 65 | H122: 68 | I122: 70 | J122: 64 | K122: 68 | L122: 72 | M122: 70 | N122: 71 | O122: 62 | P122: 830 | Q122: 69.16666667
B123: 2.2.4.4 | C123: Resueltos y concluidos | D123: 15 | E123: 7 | F123: 5 | G123: 2 | H123: 8 | I123: 9 | J123: 6 | K123: 11 | L123: 11 | M123: 6 | N123: 13 | O123: 2 | P123: 95 | Q123: 7.916666667
C124: Favorables al particular | D124: 5 | E124: 6 | F124: 2 | G124: 1 | H124: 6 | I124: 1 | J124: 2 | K124: 5 | L124: 6 | M124: 1 | N124: 2 | O124: 1 | P124: 38 | Q124: 3.166666667
C125: Favorables al aytto. | D125: 6 | E125: 0 | F125: 1 | G125: 1 | H125: 2 | I125: 3 | J125: 3 | K125: 6 | L125: 5 | M125: 3 | N125: 5 | O125: 0 | P125: 35 | Q125: 2.916666667
C126: Incompetentes | D126: 4 | E126: 1 | F126: 2 | G126: 0 | H126: 0 | I126: 7 | J126: 1 | K126: 0 | L126: 0 | M126: 2 | N126: 6 | O126: 1 | P126: 24 | Q126: 2
B127: 2.2.4.5 | C127: En trámite | D127: =D122-D123 -> 69 | E127: 64 | F127: 60 | G127: 63 | H127: 60 | I127: 61 | J127: 58 | K127: 57 | L127: 61 | M127: 64 | N127: 58 | O127: 60 | P127: =SUM(D127:O127) -> 735 | Q127: 61.25
B128: 2.3.5 Audiencias y diligencias en Juicios | D128: 2 | E128: 3 | F128: 1 | G128: 1 | H128: 2 | I128: 3 | J128: 3 | K128: 4 | L128: 3 | M128: 3 | N128: 2 | O128: 2 | P128: =SUM(D128:O128) -> 29 | Q128: =AVERAGE(D128:O128) -> 2.416666667
B129: 2.3.6 Asesorías y Reuniones. | D129: 17 | E129: 15 | F129: 13 | G129: 11 | H129: 13 | I129: 15 | J129: 15 | K129: 17 | L129: 16 | M129: 14 | N129: 16 | O129: 15 | P129: =SUM(D129:O129) -> 177 | Q129: =AVERAGE(D129:O129) -> 14.75
B130: 2.3.7 Oficios.
B131: 2.3.7.1 | C131: Recibidos en el Área | D131: 37 | E131: 84 | F131: 17 | G131: 19 | H131: 20 | I131: 24 | J131: 33 | K131: 60 | L131: 58 | M131: 46 | N131: 76 | O131: 40 | P131: =SUM(D131:O131) -> 514 | Q131: =AVERAGE(D131:O131) -> 42.83333333
B132: 2.3.7.2 | C132: Generados por el Área | D132: 43 | E132: 19 | F132: 16 | G132: 11 | H132: 20 | I132: 39 | J132: 25 | K132: 29 | L132: 26 | M132: 24 | N132: 20 | O132: 12 | P132: =SUM(D132:O132) -> 284 | Q132: =AVERAGE(D132:O132) -> 23.66666667
D133: ENE | E133: FEB | F133: MAR | G133: ABR | H133: MAY | I133: JUN | J133: JUL | K133: AGO | L133: SEP | M133: OCT | N133: NOV | O133: DIC | P133: TOTAL | Q133: PROMEDIO
A134: 2.4 | B134: Área de Procedimientos Civiles.
B135: 2.3.1 Juicios Civiles
B136: 2.3.1.1 | C136: Registro Anterior | D136: 343 | E136: =D142 -> 343 | F136: 343 | G136: 343 | H136: 342 | I136: 342 | J136: 344 | K136: 348 | L136: 342 | M136: 342 | N136: 343 | O136: 344 | P136: =SUM(D136:O136) -> 4119 | Q136: =AVERAGE(D136:O136) -> 343.25
B137: 2.3.1.2 | C137: Abiertos en el Mes | D137: 1 | E137: 1 | F137: 1 | G137: 0 | H137: 1 | I137: 2 | J137: 4 | K137: 2 | L137: 0 | M137: 1 | N137: 1 | O137: 2 | P137: 16 | Q137: =AVERAGE(D137:O137) -> 1.333333333
B138: 2.3.1.3 | C138: Iniciales en | D138: =D136+D137 -> 344 | E138: 344 | F138: 344 | G138: 343 | H138: 343 | I138: 344 | J138: 348 | K138: 350 | L138: 342 | M138: 343 | N138: 344 | O138: 346 | P138: 4135 | Q138: =P139/P137 -> 0.8125
B139: 2.3.1.4 | C139: Resueltos y concluidos | D139: 1 | E139: 1 | F139: 1 | G139: 1 | H139: 1 | I139: 0 | J139: 0 | K139: 8 | L139: 0 | M139: 0 | N139: 0 | O139: 0 | P139: 13 | Q139: =AVERAGE(D139:O139) -> 1.083333333
C140: Favorables | D140: 1 | E140: 1 | F140: 1 | G140: 1 | H140: 1 | I140: 0 | J140: 0 | K140: 8 | L140: 0 | M140: 0 | N140: 0 | O140: 0 | P140: 13 | Q140: =AVERAGE(D140:O140) -> 1.083333333
C141: Desfavorables | D141: 0 | E141: 0 | F141: 0 | G141: 0 | H141: 0 | I141: 0 | J141: 0 | K141: 0 | L141: 0 | M141: 0 | N141: 0 | O141: 0 | P141: 0 | Q141: =AVERAGE(D141:O141) -> 0
B142: 2.3.1.5 | C142: En trámite | D142: =D138-D139 -> 343 | E142: 343 | F142: 343 | G142: 342 | H142: 342 | I142: 344 | J142: 348 | K142: 342 | L142: 342 | M142: 343 | N142: 344 | O142: 346 | P142: 4122 | Q142: =AVERAGE(D142:P142) -> 634.1538462
B143: 2.3.5 Audiencias y diligencias en Juicios | D143: 3 | E143: 7 | F143: 6 | G143: 7 | H143: 3 | I143: 6 | J143: 5 | K143: 4 | L143: 3 | M143: 6 | N143: 3 | O143: 3 | P143: =SUM(D143:O143) -> 56 | Q143: =AVERAGE(D143:O143) -> 4.666666667
B144: 2.3.6 Asesorías y Reuniones. | D144: 6 | E144: 9 | F144: 8 | G144: 6 | H144: 6 | I144: 7 | J144: 3 | K144: 6 | L144: 5 | M144: 7 | N144: 5 | O144: 6 | P144: 74 | Q144: =AVERAGE(D144:O144) -> 6.166666667
B145: 2.3.7 Oficios.
B146: 2.3.7.1 | C146: Recibidos en el Área | D146: 28 | E146: 20 | F146: 19 | G146: 17 | H146: 22 | I146: 34 | J146: 20 | K146: 18 | L146: 26 | M146: 26 | N146: 24 | O146: 19 | P146: =SUM(D146:O146) -> 273 | Q146: =AVERAGE(D146:O146) -> 22.75
B147: 2.3.7.2 | C147: Generados por el Área | D147: 11 | E147: 26 | F147: 12 | G147: 5 | H147: 13 | I147: 14 | J147: 34 | K147: 17 | L147: 12 | M147: 15 | N147: 19 | O147: 7 | P147: =SUM(D147:O147) -> 185 | Q147: =AVERAGE(D147:O147) -> 15.41666667
A148: 2.5 | B148: Área de Procedimientos Penales
B149: Expedientes Generales(Av. Previas, Juicios, Internos)
B150: 2.5.1.1 | C150: Registro Anterior | D150: 657 | E150: =D154 -> 665 | F150: 666 | G150: 673 | H150: 675 | I150: 676 | J150: 683 | K150: 689 | L150: 688 | M150: 689 | N150: 692 | O150: 690 | P150: =SUM(D150:O150) -> 8143 | Q150: =AVERAGE(D150:O150) -> 678.5833333
B151: 2.5.1.2 | C151: Abiertos en el Mes | D151: 8 | E151: 3 | F151: 8 | G151: 2 | H151: 10 | I151: 8 | J151: 7 | K151: 4 | L151: 8 | M151: 12 | N151: 4 | O151: 3 | P151: =SUM(D151:O151) -> 77 | Q151: =AVERAGE(D151:O151) -> 6.416666667
B152: 2.5.1.3 | C152: Iniciales en | D152: =D150+D151 -> 665 | E152: 668 | F152: 674 | G152: 675 | H152: 685 | I152: 684 | J152: 690 | K152: 693 | L152: 696 | M152: 701 | N152: 696 | O152: 693 | P152: =SUM(D152:O152) -> 8220 | Q152: =P153/P151 -> 0.5584415584
B153: 2.5.1.4 | C153: Resueltos y concluidos | D153: 0 | E153: 2 | F153: 1 | G153: 0 | H153: 9 | I153: 1 | J153: 1 | K153: 5 | L153: 7 | M153: 9 | N153: 6 | O153: 2 | P153: =SUM(D153:O153) -> 43 | Q153: =AVERAGE(D153:O153) -> 3.583333333
B154: 2.5.1.5 | C154: En trámite | D154: =D152-D153 -> 665 | E154: 666 | F154: 673 | G154: 675 | H154: 676 | I154: 683 | J154: 689 | K154: 688 | L154: 689 | M154: 692 | N154: 690 | O154: 691 | P154: =SUM(D154:O154) -> 8177 | Q154: =AVERAGE(D154:P154) -> 1258
C155: Favorables | D155: 0 | E155: 0 | F155: 0 | G155: 0 | H155: 0 | I155: 0 | J155: 0 | K155: 0 | L155: 0 | M155: 0 | N155: 0 | O155: 0 | Q155: =AVERAGE(D155:O155) -> 0
C156: Archivados | D156: 0 | E156: 2 | F156: 1 | G156: 0 | H156: 9 | I156: 1 | J156: 1 | K156: 5 | L156: 7 | M156: 9 | N156: 6 | O156: 2 | Q156: =AVERAGE(D156:O156) -> 3.583333333
B157: Expedientes Daños a bienes Propiedad Municipal
B158: 2.5.2.1 | C158: Registro Anterior | D158: 208 | E158: =D162 -> 223 | F158: 220 | G158: 229 | H158: 222 | I158: 231 | J158: 239 | K158: 243 | L158: 249 | M158: 246 | N158: 256 | O158: 223 | P158: =SUM(D158:O158) -> 2789 | Q158: =AVERAGE(D158:O158) -> 232.4166667
B159: 2.5.2.2 | C159: Abiertos en el Mes | D159: 33 | E159: 18 | F159: 25 | G159: 10 | H159: 14 | I159: 20 | J159: 18 | K159: 17 | L159: 20 | M159: 25 | N159: 28 | O159: 14 | P159: 242 | Q159: =AVERAGE(D159:O159) -> 20.16666667
B160: 2.5.2.3 | C160: Iniciales en | D160: =D158+D159 -> 241 | E160: 241 | F160: 245 | G160: 239 | H160: 236 | I160: 251 | J160: 257 | K160: 260 | L160: 269 | M160: =M158+M159 -> 271 | N160: =N158+N159 -> 284 | O160: =O158+O159 -> 237 | P160: 3031 | Q160: =P161/P159 -> 0.9545454545
B161: 2.5.2.4 | C161: Resueltos y concluidos | D161: 18 | E161: 21 | F161: 16 | G161: 17 | H161: 5 | I161: 12 | J161: 14 | K161: 11 | L161: 23 | M161: 15 | N161: 61 | O161: 18 | P161: 231 | Q161: =AVERAGE(D161:O161) -> 19.25
B162: 2.5.2.5 | C162: En trámite | D162: =D160-D161 -> 223 | E162: 220 | F162: 229 | G162: =G160-G161 -> 222 | H162: 231 | I162: 239 | J162: 243 | K162: 249 | L162: 246 | M162: =M160-M161 -> 256 | N162: =N160-N161 -> 223 | O162: =O160-O161 -> 219 | P162: 2800 | Q162: =AVERAGE(D162:P162) -> 430.7692308
A163: , | B163: 2.5.2.4 | C163: Dinero Recaudado | D163: 61188.29 | E163: 89110 | F163: 89321 | G163: 73664.7 | H163: 63003.09 | I163: 51777 | J163: 62822 | K163: 26068 | L163: 128162.32 | M163: 135126 | N163: 129904 | O163: 94715 | P163: 1004861.4 | Q163: =AVERAGE(D163:O163) -> 83738.45
B164: 2.5.3 Preliberados.
B165: 2.5.3.1 | C165: Registro Anterior | D165: 658 | E165: =D169 -> 652 | F165: 651 | G165: 652 | H165: 645 | I165: 643 | J165: 641 | K165: 636 | L165: 633 | M165: 629 | N165: 630 | O165: 628 | P165: =SUM(D165:O165) -> 7698 | Q165: =AVERAGE(D165:O165) -> 641.5
B166: 2.5.3.2 | C166: Abiertos en el Mes | D166: 0 | E166: 2 | F166: 7 | G166: 2 | H166: 5 | I166: 1 | J166: 5 | K166: 2 | L166: 4 | M166: 5 | N166: 5 | O166: 2 | P166: 40 | Q166: =AVERAGE(D166:O166) -> 3.333333333
B167: 2.5.3.3 | C167: Iniciales en | D167: =D165+D166 -> 658 | E167: 654 | F167: 658 | G167: 654 | H167: 650 | I167: 644 | J167: 646 | K167: 638 | L167: 637 | M167: 634 | N167: 635 | O167: 630 | P167: 7738 | Q167: =P168/P166 -> 1.8
B168: 2.5.3.4 | C168: Cumplimentaron | D168: 6 | E168: 3 | F168: 6 | G168: 9 | H168: 7 | I168: 3 | J168: 10 | K168: 5 | L168: 8 | M168: 4 | N168: 7 | O168: 4 | P168: 72 | Q168: =AVERAGE(D168:O168) -> 6
B169: 2.5.3.5 | C169: En seguimiento | D169: =D167-D168 -> 652 | E169: 651 | F169: 652 | G169: 645 | H169: 643 | I169: 641 | J169: 636 | K169: 633 | L169: 629 | M169: 630 | N169: 628 | O169: 626 | P169: 7666 | Q169: =AVERAGE(D169:P169) -> 1179.384615
D170: ENE | E170: FEB | F170: MAR | G170: ABR | H170: MAY | I170: JUN | J170: JUL | K170: AGO | L170: SEP | M170: OCT | N170: NOV | O170: DIC | P170: TOTAL | Q170: PROMEDIO
B171: 2.5.4 Audiencias y Diligencias | D171: 12 | E171: 13 | F171: 10 | G171: 8 | H171: 10 | I171: 15 | J171: 5 | K171: 10 | L171: 15 | M171: 10 | N171: 13 | O171: 8 | P171: 129 | Q171: =AVERAGE(D171:O171) -> 10.75
B172: 2.5.5 Asesorías y Reuniones. | D172: 18 | E172: 10 | F172: 12 | G172: 10 | H172: 10 | I172: 36 | J172: 6 | K172: 12 | L172: 16 | M172: 12 | N172: 14 | O172: 10 | P172: 166 | Q172: =AVERAGE(D172:O172) -> 13.83333333
B173: 2.5.6 Oficios.
B174: 2.5.6.1 | C174: Recibidos en el Área | D174: 84 | E174: 86 | F174: 69 | G174: 52 | H174: 52 | I174: 156 | J174: 59 | K174: 55 | L174: 70 | M174: 68 | N174: 93 | O174: 62 | P174: =SUM(D174:O174) -> 906 | Q174: =AVERAGE(D174:O174) -> 75.5
B175: 2.5.6.1 | C175: Generados por el Área | D175: 134 | E175: 122 | F175: 127 | G175: 72 | H175: 77 | I175: 229 | J175: 82 | K175: 72 | L175: 86 | M175: 108 | N175: 138 | O175: 74 | P175: =SUM(D175:O175) -> 1321 | Q175: =AVERAGE(D175:O175) -> 110.0833333
B176: 2.6 JUICIOS LABORALES
B177: 2.6.1 | C177: Registro Anterior | D177: 52 | E177: =D184 -> 78 | F177: 92 | G177: 103 | H177: 102 | I177: 122 | J177: 132 | K177: 145 | L177: 153 | M177: 170 | N177: 184 | O177: 199 | P177: =SUM(D177:O177) -> 1532 | Q177: =P177/12 -> 127.6666667
B178: 2.6.2 | C178: Abiertos en el Mes | D178: 26 | E178: 14 | F178: 11 | G178: 1 | H178: 20 | I178: 11 | J178: 13 | K178: 11 | L178: 17 | M178: 14 | N178: 15 | O178: 17 | P178: 170 | Q178: 14.16666667
B179: 2.6.3 | C179: Iniciales en | D179: =D177+D178 -> 78 | E179: =E177+E178 -> 92 | F179: 103 | G179: 104 | H179: 122 | I179: 133 | J179: 145 | K179: 156 | L179: 170 | M179: 184 | N179: 199 | O179: 216 | P179: 1702 | Q179: 141.8333333
B180: 2.6.4 | C180: Resueltos y concluidos | D180: 0 | E180: 0 | F180: 0 | G180: 2 | H180: 0 | I180: 1 | J180: 0 | K180: 3 | L180: 0 | M180: 0 | N180: 0 | O180: 0 | P180: 6 | Q180: 0.5
C181: Favorables | D181: 0 | E181: 0 | F181: 0 | G181: 0 | H181: 0 | I181: 1 | J181: 0 | K181: 1 | L181: 0 | M181: 0 | N181: 0 | O181: 0 | P181: 2 | Q181: 0.1666666667
C182: Desfavorables | D182: 0 | E182: 0 | F182: 0 | G182: 2 | H182: 0 | I182: 0 | J182: 0 | K182: 1 | L182: 0 | M182: 0 | N182: 0 | O182: 0 | P182: 3 | Q182: 0.25
C183: Parcialmente Favorables | D183: 0 | E183: 0 | F183: 0 | G183: 0 | H183: 0 | I183: 0 | J183: 0 | K183: 1 | L183: 0 | M183: 0 | N183: 0 | O183: 0 | P183: 1 | Q183: 0.08333333333
B184: 2.6.5 | C184: En trámite | D184: =D179-D180 -> 78 | E184: =E179-E180 -> 92 | F184: 103 | G184: 102 | H184: 122 | I184: 132 | J184: 145 | K184: 153 | L184: 170 | M184: 184 | N184: 199 | O184: 216 | P184: =SUM(D184:O184) -> 1696 | Q184: 141.3333333
C185: Turnadas a Despacho Externo | D185: 726 | E185: 726 | F185: 726 | G185: 726 | H185: 726 | I185: 730 | J185: 730 | K185: 730 | L185: 730 | M185: 730 | N185: 730 | O185: 732 | P185: =SUM(I185:O185) -> 5112 | Q185: =P185/12 -> 426
B186: 2.3.5 Audiencias y diligencias en Juicios | D186: 16 | E186: 26 | F186: 33 | G186: 32 | H186: 34 | I186: 64 | J186: 36 | K186: 57 | L186: 31 | M186: 42 | N186: 23 | O186: 13 | P186: =SUM(D186:O186) -> 407 | Q186: =AVERAGE(D186:O186) -> 33.91666667
B187: 2.3.6 Asesorías y Reuniones. | D187: 30 | E187: 20 | F187: 26 | G187: 16 | H187: 22 | I187: 25 | J187: 20 | K187: 15 | L187: 10 | M187: 5 | N187: 6 | O187: 10 | P187: =SUM(D187:O187) -> 205 | Q187: =AVERAGE(D187:O187) -> 17.08333333
B188: 2.3.7 Oficios.
B189: 2.3.7.1 | C189: Recibidos en el Área | D189: 280 | E189: 396 | F189: 380 | G189: 182 | H189: 368 | I189: 373 | J189: 338 | K189: 384 | L189: 461 | M189: 347 | N189: 330 | O189: 246 | P189: =SUM(D189:O189) -> 4085 | Q189: =AVERAGE(D189:O189) -> 340.4166667
B190: 2.3.7.2 | C190: Generados por el Área | D190: 114 | E190: 80 | F190: 95 | G190: 64 | H190: 120 | I190: 130 | J190: 106 | K190: 93 | L190: 90 | M190: 89 | N190: 97 | O190: 68 | P190: =SUM(D190:O190) -> 1146 | Q190: =AVERAGE(D190:O190) -> 95.5
B191: 2.3.4 Recuperacion de Espacios.
B192: 2.3.4.1 | C192: Registro Anterior | D192: 0 | E192: =D198 -> 6 | F192: =E198 -> 5 | G192: 194 | H192: =G198 -> 201 | I192: 206 | J192: 207 | K192: 198 | L192: 201 | M192: 199 | N192: 200 | O192: 201 | P192: =SUM(D192:O192) -> 1818 | Q192: =AVERAGE(D192:O192) -> 151.5
B193: 2.3.4.2 | C193: Abiertos en el Mes | D193: 14 | E193: 6 | F193: 17 | G193: 13 | H193: 9 | I193: 11 | J193: 6 | K193: 5 | L193: 6 | M193: 7 | N193: 8 | O193: 4 | P193: =SUM(D193:O193) -> 106 | Q193: =AVERAGE(D193:O193) -> 8.833333333
B194: 2.3.4.3 | C194: Iniciales en | D194: =D192+D193 -> 14 | E194: 12 | F194: 22 | G194: 207 | H194: 210 | I194: 217 | J194: 213 | K194: 203 | L194: 207 | M194: 206 | N194: 208 | O194: 205 | P194: =SUM(D194:O194) -> 1924 | Q194: =P195/P193 -> 0.9622641509
B195: 2.3.4.4 | C195: Resueltas y concluidas | D195: 8 | E195: 7 | F195: 20 | G195: 6 | H195: 4 | I195: 10 | J195: 15 | K195: 2 | L195: 8 | M195: 6 | N195: 7 | O195: 9 | P195: =SUM(D195:O195) -> 102 | Q195: =AVERAGE(D195:O195) -> 8.5
C196: con recuperacion | D196: 3 | E196: 1 | F196: 4 | G196: 3 | H196: 1 | I196: 4 | J196: 4 | K196: 1 | L196: 1 | M196: 2 | N196: 6 | O196: 4 | P196: =SUM(D196:O196) -> 34
C197: sin recuperacion | D197: 5 | E197: 6 | F197: 16 | G197: 3 | H197: 3 | I197: 6 | J197: 11 | K197: 1 | L197: 7 | M197: 4 | N197: 1 | O197: 5 | P197: 68
B198: 2.2.4.5 | C198: En trámite | D198: =D192+D193-D195 -> 6 | E198: =E192+E193-E195 -> 5 | F198: =F192+F193-F195 -> 2 | G198: =G194-G195 -> 201 | H198: 206 | I198: 207 | J198: 198 | K198: 201 | L198: 199 | M198: 200 | N198: 201 | O198: 196 | P198: =SUM(D198:O198) -> 1822 | Q198: =P198/12 -> 151.8333333
B202: 2.5.4 Audiencias y Diligencias | P202: =SUM(D202:O202) -> 0 | Q202: =AVERAGE(D202:O202) -> 
B203: 2.5.5 Asesorías y Reuniones. | P203: 0 | Q203: =AVERAGE(D203:O203) -> 
B204: 2.5.6 Oficios.
B205: 2.5.6.1 | C205: Recibidos en el Área | P205: =SUM(D205:O205) -> 0 | Q205: =AVERAGE(D205:O205) -> 
B206: 2.5.6.1 | C206: Generados por el Área | P206: =SUM(D206:O206) -> 0 | Q206: =AVERAGE(D206:O206) -> 
B209: 2.3.5 Operativos /Inspecciones | G209: 12 | H209: 27 | I209: 57 | J209: 25 | K209: 25 | L209: 26 | M209: 15 | N209: 42 | O209: 12 | P209: =SUM(D209:O209) -> 241 | Q209: =AVERAGE(D209:O209) -> 26.77777778
B210: 2.3.6 Asesorías y Reuniones. | G210: 4 | H210: 5 | I210: 6 | J210: 4 | K210: 6 | L210: 5 | M210: 4 | N210: 3 | O210: 4 | P210: =SUM(D210:O210) -> 41 | Q210: =AVERAGE(D210:O210) -> 4.555555556
B211: 2.3.7 Oficios.
B212: 2.3.7.1 | C212: Recibidos en el Área | G212: 19 | H212: 41 | I212: 38 | J212: 25 | K212: 26 | L212: 15 | M212: 30 | N212: 17 | O212: 18 | P212: =SUM(D212:O212) -> 229 | Q212: =AVERAGE(D212:O212) -> 25.44444444
B213: 2.3.7.2 | C213: Generados por el Área | G213: 29 | H213: 31 | I213: 42 | J213: 37 | K213: 22 | L213: 39 | M213: 18 | N213: 32 | O213: 21 | P213: =SUM(D213:O213) -> 271 | Q213: =AVERAGE(D213:O213) -> 30.11111111
C216: LIC. GABRIEL ALBERTO LARA CASTRO
C217: DIRECTOR JURIDICO CONTENCIOSO

Sheet 2018
B2: INFORME MENSUAL DE ACTIVIDADES 2018 DIRERCCIÓN JURÍDICA CONTENCIOSA | D2: ENE | E2: FEB | F2: MAR | G2: ABR | H2: MAY | I2: JUN | J2: JUL | K2: AGO | L2: SEP | M2: OCT | N2: NOV | O2: DIC | P2: TOTAL | Q2: PROMEDIO
A3: 2.1. | B3: Juicios de Amparo
B4: 2.1.1. | C4: Registro Anterior | D4: 858 | E4: =D12 -> 815 | F4: 898 | G4: 1001 | H4: 1032 | I4: 999 | J4: 1035 | K4: 985 | L4: 1070 | M4: 1056 | N4: 1108 | P4: =SUM(D4:O4) -> 10857 | Q4: =P4/12 -> 904.75
B5: 2.1.2 | C5: Abiertos en el Mes | D5: 35 | E5: 113 | F5: 108 | G5: 55 | H5: 44 | I5: 36 | J5: 49 | K5: 85 | L5: 43 | M5: 49 | N5: 38 | P5: 655 | Q5: 54.58333333
B6: 2.1.3 | C6: Iniciales en | D6: =D4+D5 -> 893 | E6: 928 | F6: 1006 | G6: 1056 | H6: 1076 | I6: 1035 | J6: 1084 | K6: 1070 | L6: 1113 | M6: 1105 | N6: 1105 | P6: 11471 | Q6: 955.9166667
B7: 2.1.4 | C7: Resueltos y concluidos | D7: 78 | E7: 30 | F7: 5 | G7: 24 | H7: 77 | I7: 0 | J7: 99 | K7: 0 | L7: 57 | M7: 0 | N7: 35 | P7: 405 | Q7: 33.75
C8: Sobreseimiento o Negativa de Amparo | D8: 48 | E8: 13 | F8: 3 | G8: 8 | H8: 48 | I8: 0 | J8: 55 | K8: 0 | L8: 57 | M8: 0 | N8: 23 | P8: 255 | Q8: 21.25
C9: Concediendo el amparo | D9: 8 | E9: 2 | F9: 0 | G9: 4 | H9: 13 | I9: 0 | J9: 15 | K9: 0 | L9: 0 | M9: 0 | N9: 0 | P9: 42 | Q9: 3.5
C10: Sobreseimiento y concede Amparo | D10: 15 | E10: 10 | F10: 2 | G10: 7 | H10: 8 | I10: 0 | J10: 25 | K10: 0 | L10: 0 | M10: 0 | N10: 10 | P10: 77 | Q10: 6.416666667
C11: Sobresee, no Ampara y Ampara | D11: 7 | E11: 5 | F11: 0 | G11: 4 | H11: 8 | I11: 0 | J11: 4 | K11: 0 | L11: 0 | M11: 0 | N11: 2 | P11: 30 | Q11: 2.5
B12: 2.1.5 | C12: En trámite | D12: =D6-D7 -> 815 | E12: 898 | F12: 1001 | G12: 1032 | H12: 999 | I12: 1035 | J12: 985 | K12: 1070 | L12: 1056 | M12: 1105 | N12: 1108 | P12: =SUM(D12:O12) -> 11104 | Q12: 925.3333333
B13: 2.1.6 Audiencias y diligencias en Juicios. | D13: 30 | E13: 15 | F13: 25 | G13: 35 | H13: 15 | I13: 25 | J13: 25 | K13: 30 | L13: 20 | M13: 20 | N13: 25 | P13: 265 | Q13: 22.08333333
B14: 2.1.7 Asesorías y Reuniones. | D14: 20 | E14: 25 | F14: 35 | G14: 25 | H14: 15 | I14: 15 | J14: 25 | K14: 15 | L14: 20 | M14: 20 | N14: 25 | P14: 240 | Q14: 20
B15: 2.1.8 Oficios.
B16: 2.1.8.1 | C16: Recibidos en el Área | D16: 692 | E16: 777 | F16: 911 | G16: 720 | H16: 999 | I16: 909 | J16: 874 | K16: 925 | L16: 692 | M16: 783 | N16: 758 | P16: =SUM(D16:O16) -> 9040 | Q16: =P16/12 -> 753.3333333
B17: 2.1.8.2 | C17: Generados por el Área | D17: 595 | E17: 641 | F17: 804 | G17: 867 | H17: 158 | I17: 973 | J17: 944 | K17: 853 | L17: 566 | M17: 734 | N17: 477 | P17: =SUM(D17:O17) -> 7612 | Q17: =P17/12 -> 634.3333333
A18: 2.2 | B18: Juicios Agrarios
B19: 2.1.2.1 | C19: Registro Anterior | D19: 49 | E19: =D25 -> 48 | F19: 49 | G19: 49 | H19: 49 | I19: 49 | J19: 50 | K19: 50 | L19: 50 | M19: 50 | N19: 51 | P19: =SUM(D19:O19) -> 544 | Q19: =P19/12 -> 45.33333333
B20: 2.1.2.2 | C20: Abiertos en el Mes | D20: 1 | E20: 1 | F20: 0 | G20: 0 | H20: 0 | I20: 2 | J20: 0 | K20: 0 | L20: 0 | M20: 0 | N20: 0 | P20: 4 | Q20: 0.3333333333
B21: 2.1.2.3 | C21: Iniciales en | D21: =D19+D20 -> 50 | E21: 49 | F21: 49 | G21: 49 | H21: 49 | I21: 51 | J21: 50 | K21: 50 | L21: 50 | M21: 50 | N21: 51 | P21: 548 | Q21: 45.66666667
B22: 2.1.2.4 | C22: Resueltos y concluidos | D22: 2 | E22: 0 | F22: 0 | G22: 0 | H22: 0 | I22: 1 | J22: 0 | K22: 0 | L22: 0 | M22: 0 | N22: 0 | P22: 3 | Q22: 0.25
C23: Favorables | D23: 2 | E23: 0 | F23: 0 | G23: 0 | H23: 0 | I23: 1 | J23: 0 | K23: 0 | L23: 0 | M23: 0 | N23: 0 | P23: 3 | Q23: 0.25
C24: Desfavorables | D24: 0 | E24: 0 | F24: 0 | G24: 0 | H24: 0 | I24: 0 | J24: 0 | K24: 0 | L24: 0 | M24: 0 | N24: 0 | P24: 0 | Q24: 0
B25: 2.1.2.5 | C25: En trámite | D25: =D21-D22 -> 48 | E25: 49 | F25: 49 | G25: 49 | H25: 49 | I25: 50 | J25: 50 | K25: 50 | L25: 50 | M25: 51 | N25: 51 | P25: 546 | Q25: 45.5
B26: 2.1.4 Audiencias y diligencias en Juicios. | D26: 4 | E26: 4 | F26: 5 | G26: 5 | H26: 3 | I26: 6 | J26: 2 | K26: 8 | L26: 2 | M26: 2 | N26: 6 | Q26: 0
B27: 2.1.5 Asesorías y Reuniones. | D27: 5 | E27: 5 | F27: 5 | G27: 4 | H27: 5 | I27: 3 | J27: 5 | K27: 6 | L27: 5 | M27: 50 | N27: 3 | P27: 96 | Q27: 8
B28: 2.1.6 Oficios.
B29: 2.1.6.1 | C29: Recibidos en el Área | D29: 13 | E29: 19 | F29: 24 | G29: 21 | H29: 24 | I29: 10 | J29: 17 | K29: 9 | L29: 27 | M29: 13 | N29: 24 | P29: =SUM(D29:O29) -> 201 | Q29: =P29/12 -> 16.75
B30: 2.1.6.2 | C30: Generados por el Área | D30: 35 | E30: 20 | F30: 22 | G30: 17 | H30: 18 | I30: 18 | J30: 13 | K30: 31 | L30: 18 | M30: 8 | N30: 22 | P30: =SUM(D30:O30) -> 222 | Q30: =P30/12 -> 18.5
D33: ENE | E33: FEB | F33: MAR | G33: ABR | H33: MAY | I33: JUN | J33: JUL | K33: AGO | L33: SEP | M33: OCT | N33: NOV | O33: DIC | P33: TOTAL | Q33: PROMEDIO
A34: 2.3 | B34: Área de Juicios Administrativos
B35: 2.3.1 Juicios de Nulidad
B36: 2.3.1.1 | C36: Registro Anterior | D36: 2632 | E36: =D43 -> 2694 | F36: 2784 | G36: 2799 | H36: 2916 | I36: 3001 | J36: 3110 | K36: =J43 -> 3023 | L36: =K43 -> 3014 | M36: 3200 | N36: 3287 | P36: =SUM(D36:O36) -> 32460 | Q36: =P36/12 -> 2705
B37: 2.3.1.2 | C37: Abiertos en el Mes | D37: 153 | E37: 93 | F37: 64 | G37: 118 | H37: 86 | I37: 110 | J37: 56 | K37: 136 | L37: 187 | M37: 87 | N37: 87 | P37: 1177 | Q37: 98.08333333
B38: 2.3.1.3 | C38: Iniciales en | D38: =D36+D37 -> 2785 | E38: 2787 | F38: 2848 | G38: 2917 | H38: 3002 | I38: 3111 | J38: 3166 | K38: =K36+K37 -> 3159 | L38: =L36+L37 -> 3201 | M38: 3200 | N38: 3287 | P38: 33463 | Q38: 2788.583333
B39: 2.3.1.4 | C39: Resueltos y concluidos | D39: 91 | E39: 3 | F39: 49 | G39: 1 | H39: 1 | I39: 1 | J39: 143 | K39: 145 | L39: 1 | M39: 2 | N39: 1 | P39: 438 | Q39: 36.5
C40: Favorables | D40: 30 | E40: 1 | F40: 21 | G40: 1 | H40: 0 | I40: 1 | J40: 54 | K40: 61 | L40: 1 | M40: 1 | N40: 1 | P40: 172 | Q40: 14.33333333
C41: Desfavorables | D41: 61 | E41: 2 | F41: 28 | G41: 0 | H41: 1 | I41: 0 | J41: 89 | K41: 84 | L41: 0 | M41: 1 | N41: 0 | P41: 266 | Q41: 22.16666667
C42: Turnadas a Despacho Externo | D42: 0 | E42: 0 | F42: 0 | G42: 0 | H42: 0 | I42: 0 | J42: 0 | K42: 0 | L42: 0 | M42: 0 | N42: 0 | P42: =SUM(I42:O42) -> 0 | Q42: =P42/12 -> 0
B43: 2.3.1.5 | C43: En trámite | D43: =D38-D39 -> 2694 | E43: 2784 | F43: 2799 | G43: 2916 | H43: 3001 | I43: 3110 | J43: 3023 | K43: 3014 | L43: 3200 | M43: 3200 | N43: 3373
B44: 2.3.1.6 Audiencias y diligencias en Juicios y Proc | D44: 11 | E44: 11 | F44: 10 | G44: 10 | H44: 10 | I44: 5 | J44: 3 | K44: 6 | L44: 4 | M44: 2 | N44: 2 | P44: 74 | Q44: 6.166666667
B45: 2.3.1.7 Asesorías y Reuniones. | D45: 0 | E45: 0 | F45: 0 | G45: 0 | H45: 0 | I45: 0 | J45: 0 | K45: 0 | L45: 0 | M45: 0 | N45: 0 | P45: 0 | Q45: 0
B46: 2.3.1.8 Oficios.
C47: Recibidos en el Área | D47: 0 | E47: 0 | F47: 0 | G47: 0 | H47: 0 | I47: 0 | J47: 0 | K47: 0 | L47: 0 | M47: 0 | N47: 0 | P47: =SUM(D47:O47) -> 0 | Q47: =P47/12 -> 0
C48: Generados por el Área | D48: 367 | E48: 366 | F48: 470 | G48: 425 | H48: 274 | I48: 522 | J48: 242 | K48: 403 | L48: 292 | M48: 360 | N48: 443 | P48: =SUM(D48:O48) -> 4164 | Q48: =P48/12 -> 347
B49: 2.3.2 Juicios de Lesividad
B50: 2.3.2.1 | C50: Registro Anterior | D50: 19 | E50: =D57 -> 18 | F50: =E57 -> 18 | G50: =F57 -> 17 | H50: =G57 -> 18 | I50: =H57 -> 17 | J50: 18 | K50: 18 | L50: 17 | M50: 20 | N50: 17 | P50: =SUM(D50:O50) -> 197 | Q50: =P50/12 -> 16.41666667
B51: 2.3.2.2 | C51: Abiertos en el Mes | D51: 0 | E51: 0 | F51: 0 | G51: 1 | H51: 0 | I51: 1 | J51: 0 | K51: 0 | L51: 1 | M51: 0 | N51: 1 | P51: 4 | Q51: 0.3333333333
B52: 2.3.2.3 | C52: Sub-total | D52: =D50+D51 -> 19 | E52: 18 | F52: 18 | G52: 18 | H52: 18 | I52: 18 | J52: 18 | K52: 18 | L52: 18 | M52: 20 | N52: 18 | P52: 201 | Q52: 16.75
B53: 2.3.2.4 | C53: Resueltos y concluidos | D53: 1 | E53: 0 | F53: 1 | G53: 0 | H53: 1 | I53: 0 | J53: 0 | K53: 1 | L53: 2 | M53: 0 | N53: 0 | P53: 6 | Q53: 0.5
C54: Se declara la Nulidad del acto | D54: 1 | E54: 0 | F54: 0 | G54: 0 | H54: 0 | I54: 0 | J54: 0 | K54: 1 | L54: 1 | M54: 0 | N54: 0 | P54: 3 | Q54: 0.25
C55: desist.de la accion y validez del acto (Fav.al Part.) | D55: 0 | E55: 0 | F55: 1 | G55: 0 | H55: 1 | I55: 0 | J55: 0 | K55: 0 | L55: 1 | M55: 1 | N55: 1 | P55: 5 | Q55: 0.4166666667
C56: Defensa Legal en otras Dependencias | D56: 0 | E56: 0 | F56: 0 | G56: 0 | H56: 0 | I56: 0 | J56: 0 | K56: 0 | L56: 0 | M56: 0 | N56: 0 | P56: 0 | Q56: 0
B57: 2.3.2.5 | C57: En trámite | D57: =D52-D53 -> 18 | E57: 18 | F57: 17 | G57: 18 | H57: 17 | I57: 18 | J57: 18 | K57: 17 | L57: 16 | M57: 20 | N57: 21
A58: 2.3 | B58: Área de Procedimientos Administrativos
B59: Responsabilidad Laboral
B60: 2.3.1.1 | C60: Registro Anterior | D60: 13 | E60: =D66 -> 11 | F60: 9 | G60: 9 | H60: 14 | I60: 14 | J60: 16 | K60: 20 | L60: 21 | M60: 20 | N60: 30 | P60: =SUM(D60:O60) -> 177 | Q60: =AVERAGE(D60:O60) -> 16.09090909
B61: 2.3.1.2 | C61: Abiertos en el Mes | D61: 3 | E61: 3 | F61: 5 | G61: 6 | H61: 4 | I61: 5 | J61: 8 | K61: 6 | L61: 4 | M61: 5 | N61: 5 | P61: 54 | Q61: =AVERAGE(D61:O61) -> 4.909090909
B62: 2.3.1.3 | C62: Iniciales en | D62: =D60+D61 -> 16 | E62: 14 | F62: 14 | G62: 15 | H62: 18 | I62: 19 | J62: 24 | K62: 26 | L62: 25 | M62: 25 | N62: 25 | P62: 221 | Q62: =P63/P61 -> 1
B63: 2.3.1.4 | C63: Resueltos y concluidos | D63: 5 | E63: 5 | F63: 5 | G63: 1 | H63: 4 | I63: 3 | J63: 4 | K63: 5 | L63: 14 | M63: 7 | N63: 1 | P63: 54 | Q63: =AVERAGE(D63:O63) -> 4.909090909
C64: con sanción | D64: 1 | E64: 4 | F64: 4 | G64: 0 | H64: 0 | I64: 1 | J64: 2 | K64: 2 | L64: 7 | M64: 3 | N64: 1 | P64: 25 | Q64: =AVERAGE(D64:O64) -> 2.272727273
C65: sin sanción | D65: 4 | E65: 1 | F65: 1 | G65: 1 | H65: 4 | I65: 2 | J65: 2 | K65: 3 | L65: 7 | M65: 4 | N65: 1 | P65: 30 | Q65: =AVERAGE(D65:O65) -> 2.727272727
B66: 2.3.1.5 | C66: En trámite | D66: =D62-D63 -> 11 | E66: 9 | F66: 9 | G66: 14 | H66: 14 | I66: 16 | J66: 20 | K66: 21 | L66: 11 | M66: 5 | N66: 9 | P66: =SUM(D66:O66) -> 139
D67: ENE | E67: FEB | F67: MAR | G67: ABR | H67: MAY | I67: JUN | J67: JUL | K67: AGO | L67: SEP | M67: OCT | N67: NOV | O67: DIC | P67: TOTAL | Q67: PROMEDIO
B68: 2.3.6 Audiencias y Diligencias | D68: 4 | E68: 3 | F68: 5 | G68: 6 | H68: 7 | I68: 6 | J68: 13 | K68: 15 | L68: 18 | M68: 5 | N68: 7 | P68: =SUM(D68:O68) -> 89 | Q68: =AVERAGE(D68:O68) -> 8.090909091
B69: 2.3.7 Asesorías y Reuniones. | D69: 7 | E69: 6 | F69: 7 | G69: 11 | H69: 9 | I69: 8 | J69: 9 | K69: 14 | L69: 7 | M69: 6 | N69: 8 | P69: =SUM(D69:O69) -> 92 | Q69: =AVERAGE(D69:O69) -> 8.363636364
B70: 2.3.8 Oficios.
B71: 2.3.8.1 | C71: Recibidos en el Área | D71: 8 | E71: 9 | F71: 12 | G71: 14 | H71: 13 | I71: 16 | J71: 19 | K71: 16 | L71: 16 | M71: 7 | N71: 13 | P71: =SUM(D71:O71) -> 143 | Q71: =AVERAGE(D71:O71) -> 13
B72: 2.3.8.2 | C72: Generados por el Área | D72: 27 | E72: 15 | F72: 31 | G72: 33 | H72: 2 | I72: 31 | J72: 44 | K72: 51 | L72: 62 | M72: 16 | N72: 30 | P72: =SUM(D72:O72) -> 342 | Q72: =AVERAGE(D72:O72) -> 31.09090909
B73: Organo de Control Disciplinario (OCD)
B74: 2.3.2.1 | C74: Registro Anterior | D74: 162 | E74: =D81 -> 155 | F74: =E81 -> 142 | G74: =F81 -> 125 | H74: =G81 -> 119 | I74: =H81 -> 116 | J74: 94 | K74: 90 | L74: 88 | M74: 248 | N74: 45 | P74: =SUM(D74:O74) -> 1384 | Q74: =AVERAGE(D74:O74) -> 125.8181818
B75: 2.3.2.2 | C75: Abiertos en el Mes | D75: 4 | E75: 0 | F75: 0 | G75: 1 | H75: 0 | I75: 0 | J75: 1 | K75: 6 | L75: 1 | M75: 0 | N75: 0 | P75: 13 | Q75: =AVERAGE(D75:O75) -> 1.181818182
B76: 2.3.2.3 | C76: Iniciales en | D76: =D74+D75 -> 166 | E76: 155 | F76: 142 | G76: 126 | H76: 119 | I76: 116 | J76: 95 | K76: 96 | L76: 89 | M76: 105 | N76: 105 | P76: 1314 | Q76: =P77/P75 -> 10.07692308
B77: 2.3.2.4 | C77: Resueltos y concluidos | D77: 11 | E77: 13 | F77: 17 | G77: 7 | H77: 3 | I77: 22 | J77: 5 | K77: 8 | L77: 45 | M77: 0 | N77: 0 | P77: 131 | Q77: =AVERAGE(D77:O77) -> 11.90909091
C78: con sanción | D78: 2 | E78: 6 | F78: 8 | G78: 2 | H78: 1 | I78: 4 | J78: 0 | K78: 0 | L78: 5 | M78: 0 | N78: 0 | P78: 28 | Q78: =AVERAGE(D78:O78) -> 2.545454545
C79: sin sanción | D79: 9 | E79: 7 | F79: 8 | G79: 5 | H79: 2 | I79: 18 | J79: 5 | K79: 8 | L79: 40 | M79: 0 | N79: 0 | P79: 102 | Q79: =AVERAGE(D79:O79) -> 9.272727273
C80: no se admite (acumulado) | D80: 0 | E80: 0 | F80: 1 | G80: 0 | H80: 0 | I80: 0 | J80: 0 | K80: 0 | M80: 0 | N80: 0 | P80: 1
B81: 2.4.3.5 | C81: En trámite | D81: =D76-D77 -> 155 | E81: 142 | F81: 125 | G81: 119 | H81: 116 | I81: 94 | J81: 90 | K81: 88 | L81: 44 | M81: 111 | N81: 115 | P81: 1199
B82: 2.4.6 Audiencias y diligencias en Proc | D82: 28 | E82: 18 | F82: 13 | G82: 16 | H82: 1 | I82: 9 | J82: 8 | K82: 3 | L82: 0 | M82: 6 | N82: 115 | P82: 217 | Q82: =AVERAGE(D82:O82) -> 19.72727273
B83: 2.4.6 Asesorías y Reuniones. | D83: 24 | E83: 12 | F83: 2 | G83: 7 | H83: 3 | I83: 8 | J83: 5 | K83: 0 | L83: 0 | M83: 0 | N83: 66 | P83: 127 | Q83: =AVERAGE(D83:O83) -> 11.54545455
B84: 2.4.7 Oficios.
B85: 2.4.7.1 | C85: Recibidos en el Área | D85: 53 | E85: 23 | F85: 50 | G85: 29 | H85: 16 | I85: 19 | J85: 32 | K85: 12 | L85: 14 | M85: 10 | N85: 37 | P85: =SUM(D85:O85) -> 295 | Q85: =AVERAGE(D85:O85) -> 26.81818182
B86: 2.4.7.2 | C86: Generados por el Área | D86: 109 | E86: 102 | F86: 54 | G86: 59 | H86: 26 | I86: 94 | J86: 35 | K86: 48 | L86: 88 | M86: 111 | N86: 9 | P86: =SUM(D86:O86) -> 735 | Q86: =AVERAGE(D86:O86) -> 66.81818182
B87: Recursos
B88: 2.2.2.1 | C88: Registro Anterior | D88: 66 | E88: =D94 -> 71 | F88: 69 | G88: 76 | H88: 79 | I88: 88 | J88: 105 | K88: 120 | L88: 123 | M88: 123 | N88: 148 | P88: =SUM(D88:O88) -> 1068 | Q88: =P88/12 -> 89
B89: 2.2.2.2 | C89: Abiertos en el Mes | D89: 5 | E89: 7 | F89: 7 | G89: 8 | H89: 9 | I89: 17 | J89: 15 | K89: 14 | L89: 17 | M89: 17 | N89: 13 | P89: 129 | Q89: 10.75
B90: 2.2.2.3 | C90: Iniciales en | D90: =D88+D89 -> 71 | E90: 78 | F90: 76 | G90: 84 | H90: 88 | I90: 105 | J90: 120 | K90: 134 | L90: 140 | M90: 140 | N90: 148 | P90: 1184 | Q90: 98.66666667
B91: 2.2.2.4 | C91: Resueltos y concluidos | D91: 0 | E91: 9 | F91: 0 | G91: 5 | H91: 0 | I91: 0 | J91: 0 | K91: 11 | L91: 0 | M91: 0 | N91: 0 | P91: 25 | Q91: 2.083333333
C92: Se confirma el acto reclamado | D92: 0 | E92: 0 | F92: 0 | G92: 0 | H92: 0 | I92: 0 | J92: 0 | K92: 0 | L92: 0 | M92: 0 | N92: 0 | P92: 0 | Q92: 0
C93: Favorables al particular | D93: 0 | E93: 9 | F93: 0 | G93: 5 | H93: 0 | I93: 0 | J93: 0 | K93: 11 | L93: 0 | M93: 0 | N93: 0 | P93: 25 | Q93: 2.083333333
B94: 2.2.2.5 | C94: En trámite | D94: =D90-D91 -> 71 | E94: 69 | F94: 76 | G94: 79 | H94: 88 | I94: 105 | J94: 120 | K94: 123 | L94: 140 | M94: 140 | N94: 148 | P94: 1159 | Q94: 96.58333333
B95: Revocación de Licencia Municipal
B96: 2.2.3.1 | C96: Registro Anterior | D96: 28 | E96: =D102 -> 28 | F96: 32 | G96: 32 | H96: 32 | I96: 32 | J96: 33 | K96: 33 | L96: 35 | M96: 35 | N96: 35 | P96: =SUM(D96:O96) -> 355 | Q96: =P96/12 -> 29.58333333
B97: 2.2.3.2 | C97: Abiertos en el Mes | D97: 0 | E97: 4 | F97: 0 | G97: 0 | H97: 0 | I97: 1 | J97: 0 | K97: 2 | L97: 0 | M97: 0 | N97: 0 | P97: 7 | Q97: 0.5833333333
B98: 2.2.3.3 | C98: Iniciales en | D98: =D96+D97 -> 28 | E98: 32 | F98: 32 | G98: 32 | H98: 32 | I98: 33 | J98: 33 | K98: 35 | L98: 35 | M98: 35 | N98: 35 | P98: 362 | Q98: 30.16666667
B99: 2.2.3.4 | C99: Resueltos y concluidos | D99: 0 | E99: 0 | F99: 0 | G99: 0 | H99: 0 | I99: 0 | J99: 0 | K99: 0 | L99: 0 | M99: 0 | N99: 0 | P99: 0 | Q99: 0
C100: Procedentes | D100: 0 | E100: 0 | F100: 0 | G100: 0 | H100: 0 | I100: 0 | J100: 0 | K100: 0 | L100: 0 | M100: 0 | N100: 0 | P100: 0 | Q100: 0
C101: Favorables al particular | D101: 0 | E101: 0 | F101: 0 | G101: 0 | H101: 0 | I101: 0 | J101: 0 | K101: 0 | L101: 0 | M101: 0 | N101: 0 | P101: 0 | Q101: 0
B102: 2.2.3.5 | C102: En trámite | D102: =D98-D99 -> 28 | E102: 32 | F102: 32 | G102: 32 | H102: 32 | I102: 33 | J102: 33 | K102: 35 | L102: 35 | M102: 35 | N102: 35
D103: ENE | E103: FEB | F103: MAR | G103: ABR | H103: MAY | I103: JUN | J103: JUL | K103: AGO | L103: SEP | M103: OCT | N103: NOV | O103: DIC | P103: TOTAL | Q103: PROMEDIO
B104: 2.3.5 Audiencias y diligencias en Juicios | D104: 0 | E104: 0 | F104: 0 | G104: 0 | H104: 0 | I104: 0 | J104: 0 | K104: 0 | L104: 0 | M104: 0 | N104: 0 | P104: =SUM(D104:O104) -> 0 | Q104: =AVERAGE(D104:O104) -> 0
B105: 2.3.6 Asesorías y Reuniones. | D105: 8 | E105: 20 | F105: 8 | G105: 5 | H105: 8 | I105: 11 | J105: 14 | K105: 10 | L105: 20 | M105: 20 | N105: 12 | P105: =SUM(D105:O105) -> 136 | Q105: =AVERAGE(D105:O105) -> 12.36363636
B106: 2.3.7 Oficios.
B107: 2.3.7.1 | C107: Recibidos en el Área | D107: 75 | E107: 19 | F107: 45 | G107: 50 | H107: 57 | I107: 72 | J107: 74 | K107: 56 | L107: 61 | M107: 61 | N107: 13 | P107: =SUM(D107:O107) -> 583 | Q107: =AVERAGE(D107:O107) -> 53
B108: 2.3.7.2 | C108: Generados por el Área | D108: 51 | E108: 35 | F108: 35 | G108: 36 | H108: 32 | I108: 54 | J108: 51 | K108: 45 | L108: 61 | M108: 61 | N108: 17 | P108: =SUM(D108:O108) -> 478 | Q108: =AVERAGE(D108:O108) -> 43.45454545
B109: Responsabilidad Patrimonial
B110: 2.2.4.1 | C110: Registro Anterior | D110: 61 | E110: =D117 -> 54 | F110: 44 | G110: 46 | H110: 42 | I110: 28 | J110: 24 | K110: 24 | L110: 25 | M110: 42 | N110: 46 | P110: =SUM(D110:O110) -> 436 | Q110: =P110/12 -> 36.33333333
B111: 2.2.4.2 | C111: Abiertos en el Mes | D111: 7 | E111: 5 | F111: 7 | G111: 2 | H111: 5 | I111: 6 | J111: 7 | K111: 11 | L111: 20 | M111: 19 | N111: 8 | P111: 97 | Q111: 8.083333333
B112: 2.2.4.3 | C112: Iniciales en | D112: =D110+D111 -> 68 | E112: 59 | F112: 51 | G112: 48 | H112: 47 | I112: 34 | J112: 31 | K112: 35 | L112: 45 | M112: 46 | N112: 54 | P112: 518 | Q112: 43.16666667
B113: 2.2.4.4 | C113: Resueltos y concluidos | D113: 14 | E113: 15 | F113: 5 | G113: 6 | H113: 19 | I113: 10 | J113: 7 | K113: 10 | L113: 3 | M113: 10 | N113: 4 | P113: 103 | Q113: 8.583333333
C114: Favorables al particular | D114: 1 | E114: 2 | F114: 1 | G114: 2 | H114: 4 | I114: 5 | J114: 2 | K114: 2 | L114: 2 | M114: 1 | N114: 0 | P114: 22 | Q114: 1.833333333
C115: Favorables al aytto. | D115: 8 | E115: 13 | F115: 4 | G115: 2 | H115: 10 | I115: 0 | J115: 4 | K115: 5 | L115: 1 | M115: 4 | N115: 2 | P115: 53 | Q115: 4.416666667
C116: Incompetentes | D116: 5 | E116: 0 | F116: 0 | G116: 2 | H116: 5 | I116: 5 | J116: 1 | K116: 3 | L116: 0 | M116: 5 | N116: 0 | P116: 26 | Q116: 2.166666667
B117: 2.2.4.5 | C117: En trámite | D117: =D112-D113 -> 54 | E117: 44 | F117: 46 | G117: 42 | H117: 28 | I117: 24 | J117: 24 | K117: 25 | L117: 42 | M117: 46 | N117: 50 | P117: =SUM(D117:O117) -> 425 | Q117: 35.41666667
B118: 2.3.5 Audiencias y diligencias en Juicios | D118: 3 | E118: 4 | F118: 4 | G118: 0 | H118: 0 | I118: 0 | J118: 0 | K118: 3 | L118: 0 | M118: 0 | N118: 0 | P118: =SUM(D118:O118) -> 14 | Q118: =AVERAGE(D118:O118) -> 1.272727273
B119: 2.3.6 Asesorías y Reuniones. | D119: 17 | E119: 15 | F119: 15 | G119: 12 | H119: 17 | I119: 17 | J119: 17 | K119: 17 | L119: 10 | M119: 14 | N119: 15 | P119: =SUM(D119:O119) -> 166 | Q119: =AVERAGE(D119:O119) -> 15.09090909
B120: 2.3.7 Oficios.
B121: 2.3.7.1 | C121: Recibidos en el Área | D121: 36 | E121: 39 | F121: 39 | G121: 24 | H121: 33 | I121: 25 | J121: 31 | K121: 46 | L121: 30 | M121: 48 | N121: 29 | P121: =SUM(D121:O121) -> 380 | Q121: =AVERAGE(D121:O121) -> 34.54545455
B122: 2.3.7.2 | C122: Generados por el Área | D122: 26 | E122: 19 | F122: 18 | G122: 13 | H122: 13 | I122: 16 | J122: 18 | K122: 10 | L122: 17 | M122: 10 | N122: 9 | P122: =SUM(D122:O122) -> 169 | Q122: =AVERAGE(D122:O122) -> 15.36363636
A123: 2.4 | B123: Área de Procedimientos Civiles.
B124: 2.3.1 Juicios Civiles
B125: 2.3.1.1 | C125: Registro Anterior | D125: 346 | E125: =D131 -> 350 | F125: 350 | G125: 350 | H125: 350 | I125: 351 | J125: 354 | K125: 354 | L125: 355 | M125: 357 | N125: 359 | P125: =SUM(D125:O125) -> 3876 | Q125: =AVERAGE(D125:O125) -> 352.3636364
B126: 2.3.1.2 | C126: Abiertos en el Mes | D126: 4 | E126: 0 | F126: 0 | G126: 1 | H126: 1 | I126: 4 | J126: 0 | K126: 1 | L126: 2 | M126: 2 | N126: 0 | P126: 15 | Q126: =AVERAGE(D126:O126) -> 1.363636364
B127: 2.3.1.3 | C127: Iniciales en | D127: =D125+D126 -> 350 | E127: 350 | F127: 350 | G127: 351 | H127: 351 | I127: 355 | J127: 354 | K127: 355 | L127: 357 | M127: 359 | N127: 360 | P127: 3892 | Q127: =P128/P126 -> 0.1333333333
B128: 2.3.1.4 | C128: Resueltos y concluidos | D128: 0 | E128: 0 | F128: 0 | G128: 1 | H128: 0 | I128: 1 | J128: 0 | K128: 0 | L128: 0 | M128: 0 | N128: 0 | P128: 2 | Q128: =AVERAGE(D128:O128) -> 0.1818181818
C129: Favorables | D129: 0 | E129: 0 | F129: 0 | G129: 0 | H129: 0 | I129: 0 | J129: 0 | K129: 0 | L129: 0 | M129: 0 | N129: 0 | P129: 0 | Q129: =AVERAGE(D129:O129) -> 0
C130: Desfavorables | D130: 0 | E130: 0 | F130: 0 | G130: 1 | H130: 0 | I130: 1 | J130: 0 | K130: 0 | L130: 0 | M130: 0 | N130: 0 | P130: 2 | Q130: =AVERAGE(D130:O130) -> 0.1818181818
B131: 2.3.1.5 | C131: En trámite | D131: =D127-D128 -> 350 | E131: 350 | F131: 350 | G131: 350 | H131: 351 | I131: 354 | J131: 354 | K131: 355 | L131: 357 | M131: 359 | N131: 359 | P131: 3889 | Q131: =AVERAGE(D131:P131) -> 648.1666667
B132: 2.3.5 Audiencias y diligencias en Juicios | D132: 4 | E132: 5 | F132: 4 | G132: 2 | H132: 0 | I132: 9 | J132: 4 | K132: 3 | L132: 2 | M132: 2 | N132: 5 | P132: 40 | Q132: =AVERAGE(D132:O132) -> 3.636363636
B133: 2.3.6 Asesorías y Reuniones. | D133: 7 | E133: 7 | F133: 7 | G133: 3 | H133: 0 | I133: 7 | J133: 7 | K133: 6 | L133: 6 | M133: 55 | N133: 62 | P133: 167 | Q133: =AVERAGE(D133:O133) -> 15.18181818
B134: 2.3.7 Oficios.
B135: 2.3.7.1 | C135: Recibidos en el Área | D135: 40 | E135: 25 | F135: 10 | G135: 18 | H135: 0 | I135: 38 | J135: 19 | K135: 20 | L135: 23 | M135: 40 | N135: 17 | P135: =SUM(D135:O135) -> 250 | Q135: =AVERAGE(D135:O135) -> 22.72727273
B136: 2.3.7.2 | C136: Generados por el Área | D136: 16 | E136: 19 | F136: 4 | G136: 10 | H136: 0 | I136: 26 | J136: 10 | K136: 17 | L136: 10 | M136: 12 | N136: 18 | P136: =SUM(D136:O136) -> 142 | Q136: =AVERAGE(D136:O136) -> 12.90909091
D139: ENE | E139: FEB | F139: MAR | G139: ABR | H139: MAY | I139: JU N | J139: JUL | K139: AGO | L139: SEP | M139: OCT | N139: NOV | O139: DIC | P139: TOTAL | Q139: PROMEDIO
A140: 2.5 | B140: Área de Procedimientos Penales
B141: Expedientes Generales(Av. Previas, Juicios, Internos)
B142: 2.5.1.1 | C142: Registro Anterior | D142: 130 | E142: =D146 -> 138 | F142: 142 | G142: 151 | H142: 154 | I142: 159 | J142: 166 | K142: 171 | L142: 146 | M142: 147 | N142: 157 | P142: =SUM(D142:O142) -> 1661 | Q142: =AVERAGE(D142:O142) -> 151
B143: 2.5.1.2 | C143: Abiertos en el Mes | D143: 8 | E143: 7 | F143: 9 | G143: 8 | H143: 13 | I143: 7 | J143: 5 | K143: 2 | L143: 5 | M143: 10 | N143: 3 | P143: =SUM(D143:O143) -> 77 | Q143: =AVERAGE(D143:O143) -> 7
B144: 2.5.1.3 | C144: Iniciales en | D144: =D142+D143 -> 138 | E144: 145 | F144: 151 | G144: 159 | H144: 167 | I144: 166 | J144: 171 | K144: 173 | L144: 151 | M144: 157 | N144: 157 | P144: =SUM(D144:O144) -> 1735 | Q144: =P145/P143 -> 0.6103896104
B145: 2.5.1.4 | C145: Resueltos y concluidos | D145: 0 | E145: 3 | F145: 0 | G145: 5 | H145: 8 | I145: 0 | J145: 0 | K145: 27 | L145: 4 | M145: 0 | N145: 0 | P145: =SUM(D145:O145) -> 47 | Q145: =AVERAGE(D145:O145) -> 4.272727273
B146: 2.5.1.5 | C146: En trámite | D146: =D144-D145 -> 138 | E146: 142 | F146: 151 | G146: 154 | H146: 159 | I146: 166 | J146: 171 | K146: 146 | L146: 147 | M146: 157 | N146: 157 | P146: =SUM(D146:O146) -> 1688 | Q146: =AVERAGE(D146:P146) -> 281.3333333
C147: Favorables | D147: 0 | E147: 0 | F147: 0 | G147: 0 | H147: 0 | I147: 0 | J147: 0 | K147: 0 | L147: 0 | M147: 0 | N147: O | Q147: =AVERAGE(D147:O147) -> 0
C148: Archivados | D148: 0 | E148: 3 | F148: 0 | G148: 5 | H148: 8 | I148: 0 | J148: 0 | K148: 23 | L148: 4 | M148: 0 | N148: 0 | Q148: =AVERAGE(D148:O148) -> 3.909090909
B149: Expedientes Daños a bienes Propiedad Municipal
B150: 2.5.2.1 | C150: Registro Anterior | D150: 123 | E150: =D154 -> 132 | F150: 141 | G150: 133 | H150: 132 | I150: 137 | J150: 131 | K150: 134 | L150: 133 | M150: 134 | N150: 134 | P150: =SUM(D150:O150) -> 1464 | Q150: =AVERAGE(D150:O150) -> 133.0909091
B151: 2.5.2.2 | C151: Abiertos en el Mes | D151: 24 | E151: 26 | F151: 18 | G151: 10 | H151: 24 | I151: 12 | J151: 17 | K151: 11 | L151: 12 | M151: 11 | N151: 12 | P151: 177 | Q151: =AVERAGE(D151:O151) -> 16.09090909
B152: 2.5.2.3 | C152: Iniciales en | D152: =D150+D151 -> 147 | E152: 158 | F152: 159 | G152: 143 | H152: 156 | I152: 149 | J152: 148 | K152: 145 | L152: 145 | M152: 157 | N152: 157 | P152: 1664 | Q152: =P153/P151 -> 0.9322033898
B153: 2.5.2.4 | C153: Resueltos y concluidos | D153: 15 | E153: 17 | F153: 26 | G153: 11 | H153: 19 | I153: 18 | J153: 14 | K153: 12 | L153: 11 | M153: 11 | N153: 11 | P153: 165 | Q153: =AVERAGE(D153:O153) -> 15
B154: 2.5.2.5 | C154: En trámite | D154: =D152-D153 -> 132 | E154: 141 | F154: 133 | G154: 132 | H154: 137 | I154: 131 | J154: 134 | K154: 133 | L154: 134 | M154: 134 | N154: 134 | P154: 1475 | Q154: =AVERAGE(D154:P154) -> 245.8333333
A155: , | B155: 2.5.2.4 | C155: Dinero Recaudado | D155: 73467 | E155: 111201 | F155: 84823 | G155: 57932 | H155: 81351 | I155: 84061 | J155: 68307 | K155: 44695.33 | L155: 51690.75 | M155: 48308.65 | N155: 75070 | P155: 780906.73 | Q155: =AVERAGE(D155:O155) -> 70991.52091
B156: 2.5.3 Preliberados.
B157: 2.5.3.1 | C157: Registro Anterior | D157: 374 | E157: =D161 -> 368 | F157: 396 | G157: 397 | H157: 399 | I157: 400 | J157: 398 | K157: 404 | L157: 397 | M157: 396 | N157: 394 | P157: =SUM(D157:O157) -> 4323 | Q157: =AVERAGE(D157:O157) -> 393
B158: 2.5.3.2 | C158: Abiertos en el Mes | D158: 1 | E158: 32 | F158: 3 | G158: 8 | H158: 8 | I158: 3 | J158: 10 | K158: 3 | L158: 4 | M158: 3 | N158: 2 | P158: 77 | Q158: =AVERAGE(D158:O158) -> 7
B159: 2.5.3.3 | C159: Iniciales en | D159: =D157+D158 -> 375 | E159: 400 | F159: 399 | G159: 405 | H159: 407 | I159: 403 | J159: 408 | K159: 407 | L159: 401 | M159: 394 | N159: 393 | P159: 4392 | Q159: =P160/P158 -> 0.7922077922
B160: 2.5.3.4 | C160: Cumplimentaron | D160: 7 | E160: 4 | F160: 2 | G160: 6 | H160: 7 | I160: 5 | J160: 4 | K160: 10 | L160: 5 | M160: 5 | N160: 6 | P160: 61 | Q160: =AVERAGE(D160:O160) -> 5.545454545
B161: 2.5.3.5 | C161: En seguimiento | D161: =D159-D160 -> 368 | E161: 396 | F161: 397 | G161: 399 | H161: 400 | I161: 398 | J161: 404 | K161: 397 | L161: 396 | M161: 395 | N161: 396 | P161: 4346 | Q161: =AVERAGE(D161:P161) -> 724.3333333
B163: 2.5.4 Audiencias y Diligencias | D163: 6 | E163: 8 | F163: 12 | G163: 10 | H163: 12 | I163: 14 | J163: 16 | K163: 12 | L163: 10 | M163: 8 | N163: 6 | P163: 114 | Q163: =AVERAGE(D163:O163) -> 10.36363636
B164: 2.5.5 Asesorías y Reuniones. | D164: 18 | E164: 7 | F164: 8 | G164: 10 | H164: 11 | I164: 12 | J164: 10 | K164: 14 | L164: 12 | M164: 12 | N164: 10 | P164: 124 | Q164: =AVERAGE(D164:O164) -> 11.27272727
B165: 2.5.6 Oficios.
B166: 2.5.6.1 | C166: Recibidos en el Área | D166: 78 | E166: 91 | F166: 86 | G166: 59 | H166: 48 | I166: 69 | J166: 73 | K166: 46 | L166: 74 | M166: 70 | N166: 63 | P166: =SUM(D166:O166) -> 757 | Q166: =AVERAGE(D166:O166) -> 68.81818182
B167: 2.5.6.1 | C167: Generados por el Área | D167: 111 | E167: 111 | F167: 108 | G167: 87 | H167: 103 | I167: 73 | J167: 94 | K167: 77 | L167: 81 | M167: 74 | N167: 68 | P167: =SUM(D167:O167) -> 987 | Q167: =AVERAGE(D167:O167) -> 89.72727273
D169: ENE | E169: FEB | F169: MAR | G169: ABR | H169: MAY | I169: JU N | J169: JUL | K169: AGO | L169: SEP | M169: OCT | N169: NOV | O169: DIC | P169: TOTAL | Q169: PROMEDIO
B170: 2.6 JUICIOS LABORALES
B171: 2.6.1 | C171: Registro Anterior | D171: 216 | E171: =D179 -> 220 | F171: 230 | G171: 234 | H171: 236 | I171: 252 | J171: 264 | K171: 269 | L171: 282 | P171: =SUM(D171:O171) -> 2203 | Q171: =P171/12 -> 183.5833333
B172: 2.6.2 | C172: Abiertos en el Mes | D172: 4 | E172: 12 | F172: 4 | G172: 2 | H172: 16 | I172: 12 | J172: 6 | K172: 13 | P172: 69 | Q172: 5.75
B173: 2.6.3 | C173: Iniciales en | D173: =D171+D172 -> 220 | E173: 232 | F173: 234 | G173: 236 | H173: 252 | I173: 264 | J173: 270 | K173: 282 | L173: 282 | P173: 2272 | Q173: 189.3333333
B174: 2.6.4 | C174: Resueltos y concluidos | D174: 0 | E174: 2 | F174: 0 | G174: 0 | H174: 0 | I174: 0 | J174: 1 | K174: 0 | P174: 3 | Q174: 0.25
C175: Favorables | D175: 0 | E175: 0 | F175: 0 | G175: 0 | H175: 0 | I175: 0 | J175: 0 | K175: 0 | P175: 0 | Q175: 0
C176: Desfavorables | D176: 0 | E176: 0 | F176: 0 | G176: 0 | H176: 0 | I176: 0 | J176: 1 | K176: 0 | P176: 1 | Q176: 0.08333333333
C177: Parcialmente Favorables | D177: 0 | E177: 0 | F177: 0 | G177: 0 | H177: 0 | I177: 0 | J177: 0 | K177: 0
C178: TURNADOS A DESPACHO EXTERNO | D178: 0 | E178: 0 | F178: 0 | G178: 0 | H178: 0 | I178: 0 | J178: 0 | K178: 0 | P178: 0 | Q178: 0
B179: 2.6.5 | C179: En trámite | D179: =D173-D174 -> 220 | E179: 230 | F179: 234 | G179: 236 | H179: 252 | I179: 264 | J179: 269 | K179: 282 | L179: 282 | P179: =SUM(D179:O179) -> 2269 | Q179: 189.0833333
C180: Turnadas a Despacho Externo | D180: 726 | E180: =D180+E178 -> 726 | F180: 726 | G180: 726 | H180: 726 | I180: 726 | J180: 726 | K180: 726 | P180: =SUM(I180:O180) -> 2178 | Q180: =P180/12 -> 181.5
B181: 2.3.5 Audiencias y diligencias en Juicios | D181: 15 | E181: 45 | F181: 22 | G181: 15 | H181: 28 | I181: 18 | J181: 49 | K181: 81 | P181: =SUM(D181:O181) -> 273 | Q181: =AVERAGE(D181:O181) -> 34.125
B182: 2.3.6 Asesorías y Reuniones. | D182: 5 | E182: 7 | F182: 5 | G182: 3 | H182: 5 | I182: 3 | J182: 4 | K182: 5 | P182: =SUM(D182:O182) -> 37 | Q182: =AVERAGE(D182:O182) -> 4.625
B183: 2.3.7 Oficios.
B184: 2.3.7.1 | C184: Recibidos en el Área | D184: 297 | E184: 485 | F184: 287 | G184: 240 | H184: 207 | I184: 338 | J184: 218 | K184: 386 | P184: =SUM(D184:O184) -> 2458 | Q184: =AVERAGE(D184:O184) -> 307.25
B185: 2.3.7.2 | C185: Generados por el Área | D185: 88 | E185: 70 | F185: 87 | G185: 35 | H185: 356 | I185: 356 | J185: 139 | K185: 159 | P185: =SUM(D185:O185) -> 1290 | Q185: =AVERAGE(D185:O185) -> 161.25
B186: 2.3.4 Recuperacion de Espacios.
B187: 2.3.4.1 | C187: Registro Anterior | D187: 196 | E187: =D193 -> 196 | F187: =E193 -> 198 | G187: =F193 -> 195 | H187: =G193 -> 198 | I187: 206 | J187: 213 | K187: 250 | L187: 301 | M187: 301 | N187: 323 | P187: =SUM(D187:O187) -> 2577 | Q187: =AVERAGE(D187:O187) -> 234.2727273
B188: 2.3.4.2 | C188: Abiertos en el Mes | D188: 4 | E188: 13 | F188: 4 | G188: 4 | H188: 8 | I188: 14 | J188: 42 | K188: 58 | L188: 18 | M188: 4 | N188: 0 | P188: =SUM(D188:O188) -> 169 | Q188: =AVERAGE(D188:O188) -> 15.36363636
B189: 2.3.4.3 | C189: Iniciales en | D189: =D187+D188 -> 200 | E189: 209 | F189: 202 | G189: 199 | H189: 206 | I189: 220 | J189: 255 | K189: 308 | L189: 319 | M189: 322 | N189: 323 | P189: =SUM(D189:O189) -> 2763 | Q189: =P190/P188 -> 0.2603550296
B190: 2.3.4.4 | C190: Resueltas y concluidas | D190: 4 | E190: 11 | F190: 7 | G190: 1 | H190: 0 | I190: 7 | J190: 5 | K190: 7 | L190: 1 | M190: 1 | N190: 0 | P190: =SUM(D190:O190) -> 44 | Q190: =AVERAGE(D190:O190) -> 4
C191: con recuperacion | D191: 1 | E191: 4 | F191: 4 | G191: 1 | H191: 0 | I191: 3 | J191: 1 | K191: 2 | L191: 0 | M191: 1 | N191: 0 | P191: =SUM(D191:O191) -> 17
C192: sin recuperacion | D192: 3 | E192: 7 | F192: 3 | G192: 0 | H192: 0 | I192: 4 | J192: 4 | K192: 5 | L192: 1 | M192: 0 | N192: 0 | P192: 27
B193: 2.2.4.5 | C193: En trámite | D193: =D187+D188-D190 -> 196 | E193: 198 | F193: 195 | G193: 198 | H193: 206 | I193: 213 | J193: 250 | K193: 301 | L193: 318 | M193: 323 | N193: 323 | P193: =SUM(D193:O193) -> 2721 | Q193: =P193/12 -> 226.75
B194: 2.3.5 Operativos /Inspecciones | D194: 25 | E194: 18 | F194: 17 | G194: 11 | H194: 9 | I194: 15 | J194: 54 | K194: 46 | L194: 38 | M194: 6 | N194: 1 | P194: =SUM(D194:O194) -> 240 | Q194: =AVERAGE(D194:O194) -> 21.81818182
B195: 2.3.6 Asesorías y Reuniones. | D195: 3 | E195: 6 | F195: 4 | G195: 1 | H195: 0 | I195: 2 | J195: 5 | K195: 3 | L195: 2 | M195: 3 | N195: 4 | P195: =SUM(D195:O195) -> 33 | Q195: =AVERAGE(D195:O195) -> 3
B196: 2.3.7 Oficios.
B197: 2.3.7.1 | C197: Recibidos en el Área | D197: 18 | E197: 16 | F197: 18 | G197: 12 | H197: 9 | I197: 25 | J197: 58 | K197: 74 | L197: 37 | M197: 10 | N197: 18 | P197: =SUM(D197:O197) -> 295 | Q197: =AVERAGE(D197:O197) -> 26.81818182
B198: 2.3.7.2 | C198: Generados por el Área | D198: 37 | E198: 30 | F198: 17 | G198: 1 | H198: 0 | I198: 23 | J198: 20 | K198: 14 | L198: 36 | M198: 21 | N198: 21 | P198: =SUM(D198:O198) -> 220 | Q198: =AVERAGE(D198:O198) -> 20
C201: MTRO. ISIDRO RODRIGUEZ CARDENAS
C202: DIRECTOR JURIDICO CONTENCIOSO
